{"text_format":"1","workbook":"xlsx","n_sheets":9,"sheets":["Consignes","Données","Rubrique covid 19","Age (Année en cours)","Simulation Age","Age Ancienneté","Age Compétences","Simulation Compétences Métiers ","Population et santé"],"not_rendered":{"charts":24,"images":1,"macros":1,"external_links":1,"defined_names":3,"comments":0,"pivot_tables":13},"unopened":[],"bounds":{"document_bytes":16777216,"sheet_cells":100000,"rows_first":2000,"rows_last":500,"rows_between":2000,"halvings":0,"cell_chars":16384,"cell_head_chars":4096},"cells_cut":0,"cells_raw":0,"read":"whole","date_system":"1900"}

{"sheet":"Consignes","index":0,"n_rows":25,"n_cols":3,"rows_kept":25,"cut":false,"hidden":false,"merged":[[17,1,20,1],[21,1,24,1],[27,1,27,2],[13,1,16,1]]}
[]
[]
[]
[]
[]
[]
[]
[]
[]
[]
[]
[]
[]
[null,"CARACTERISTIQUES POPULATION\n\nQui sont les salariés de votre entreprise ?","RUBRIQUE COVID19"]
[null,null,"EFFECTIFS PAR AGE"]
[null,null,"PYRAMIDE D'AGES DANS 1, 2 ou X années "]
[null,null,"AGE ANCIENNETE"]
[null,"COMPETENCES CRITIQUES \nMETIER EN TENSION\n\nQui détient les compétences critiques ? \nLes compétences dites critiques sont définies comme « les compétences acquises par un individu au cours de son expérience, et qui font de lui quelqu’un d’irremplaçable dans certaines tâches » \n« le caractère critique d’une compétence ne se mesure pas seulement au caractère difficilement remplaçable de l’individu qui la possède mais aussi à la difficulté qu’il y a à l’acquérir »,\n\"des compétences critiques sont identifiées comme étant stratégoqies pour le fonctionnement de l'organisation\"\n\nQu'est ce qu'un métier en tension ?\nUn métier en tension correspond à des difficultés à recruter.","COMPETENCES CRITIQUES PAR AGE\n\nMETIER EN TENSION PAR AGE"]
[null,null,"PYRAMIDES D'AGES DES COMPETENCES CRITIQUES DANS 1, 2 ou X années."]
[null,null,"PYRAMIDES D'AGES DES METIERS EN TENSION DANS 1, 2 ou X années."]
[]
[null,"SANTE\n\nQui est exposé à quoi ? Quel est l'état de santé des salariés ?","ARRET DE TRAVAIL PAR AGE"]
[null,null,"ACCIDENTS DU TRAVAIL PAR AGE"]
[null,null,"ARRET DE TRAVAIL PAR ANCIENNETE AU POSTE"]
[null,null,"ACCIDENTS DU TRAVAIL PAR ANCIENNETE AU POSTE"]

{"sheet":"Données","index":1,"n_rows":57,"n_cols":26,"rows_kept":57,"cut":false,"hidden":false,"merged":[[2,4,2,7],[3,4,3,7],[5,23,5,25],[0,14,2,25],[5,17,5,19],[5,20,5,22],[5,8,5,13]]}
[null,null,null,null,null,null,null,null,null,null,null,null,null,null,"NE PAS TOUCHER LES CELLULES GRISES\nPRESENCE DE FORMULE"]
[]
[null,"Date",null,null,"SIMULER votre population en (choississez ci-dessous votre année ?)"]
[null,{"$f":"TODAY()","v":"2020-07-29"},{"$f":"YEAR(B4)","v":2020},null,2024,null,null,null,null,null,null,null,null,null,{"$f":"$E$4-$C$4","v":4},null,null,{"$f":"C4+1","v":2021},null,null,{"$f":"R4+1","v":2022}]
[]
[null,null,null,null,null,null,null,null,"REMPLIR LA CASE PAR la lettre X ou x si OUI",null,null,null,null,null,null,null,null,"A PLUS 1 ANS",null,null,"A PLUS 2 ANS",null,null,"Votre année de référence"]
[null,"Numéro","NOM","SEXE\n (F ou H)","ANNEE DE NAISSANCE","ANNEE EMBAUCHE ENTREPRISE","ANNEE ENTREE POSTE","METIER","COMPETENCES CRITIQUES ","METIER EN TENSION","Le tavail exercé représente-t-il un Risque lié au COVID  19 ? ","Colonne1","ACCIDENT DE TRAVAIL DANS L'ANNEE ","ARRET DE TRAVAIL DANS L'ANNEE","Age","ANCIENNETE","ANCIENNETE POSTE","AGE 1","ANCIENNETE 1","ANCIENNETE POSTE 1","AGE2","ANCIENNETE 2","ANCIENNETE POSTE 2","AGE X","ANCIENNETE X","ANCIENNETE POSTE X"]
[null,1,"A","F",1978,2011,2011,"CM","x","x","x",null,null,null,{"$f":"IF(Tableau1[[#This Row],[ANNEE DE NAISSANCE]]=\"\", \"\", $C$4-Tableau1[[#This Row],[ANNEE DE NAISSANCE]])","v":42},{"$f":"IF(Tableau1[[#This Row],[ANNEE EMBAUCHE ENTREPRISE]]=\"\", \"\", $C$4-Tableau1[[#This Row],[ANNEE EMBAUCHE ENTREPRISE]])","v":9},{"$f":"IF(Tableau1[[#This Row],[ANNEE ENTREE POSTE]]=\"\", \"\", $C$4-Tableau1[[#This Row],[ANNEE ENTREE POSTE]])","v":9},{"$f":"IF(Tableau1[[#This Row],[ANNEE DE NAISSANCE]]=\"\", \"\", $R$4-Tableau1[[#This Row],[ANNEE DE NAISSANCE]])","v":43},{"$f":"IF(Tableau1[[#This Row],[ANNEE EMBAUCHE ENTREPRISE]]=\"\", \"\", $R$4-Tableau1[[#This Row],[ANNEE EMBAUCHE ENTREPRISE]])","v":10},{"$f":"IF(Tableau1[[#This Row],[ANNEE ENTREE POSTE]]=\"\", \"\", $R$4-Tableau1[[#This Row],[ANNEE ENTREE POSTE]])","v":10},{"$f":"IF(Tableau1[[#This Row],[ANNEE DE NAISSANCE]]=\"\", \"\", $U$4-Tableau1[[#This Row],[ANNEE DE NAISSANCE]])","v":44},{"$f":"IF(Tableau1[[#This Row],[ANNEE EMBAUCHE ENTREPRISE]]=\"\", \"\", $U$4-Tableau1[[#This Row],[ANNEE EMBAUCHE ENTREPRISE]])","v":11},{"$f":"IF(Tableau1[[#This Row],[ANNEE ENTREE POSTE]]=\"\", \"\", $U$4-Tableau1[[#This Row],[ANNEE ENTREE POSTE]])","v":11},{"$f":"IF(Tableau1[[#This Row],[ANNEE DE NAISSANCE]]=\"\", \"\", $E$4-Tableau1[[#This Row],[ANNEE DE NAISSANCE]])","v":46},{"$f":"IF(Tableau1[[#This Row],[ANNEE EMBAUCHE ENTREPRISE]]=\"\", \"\", $E$4-Tableau1[[#This Row],[ANNEE EMBAUCHE ENTREPRISE]])","v":13},{"$f":"IF(Tableau1[[#This Row],[ANNEE ENTREE POSTE]]=\"\", \"\", $E$4-Tableau1[[#This Row],[ANNEE ENTREE POSTE]])","v":13}]
[null,{"$f":"1+B8","v":2},"B","F",1970,1992,1992,"Secrétaire médical","x",null,null,null,null,null,{"$f":"IF(Tableau1[[#This Row],[ANNEE DE NAISSANCE]]=\"\", \"\", $C$4-Tableau1[[#This Row],[ANNEE DE NAISSANCE]])","v":50},{"$f":"IF(Tableau1[[#This Row],[ANNEE EMBAUCHE ENTREPRISE]]=\"\", \"\", $C$4-Tableau1[[#This Row],[ANNEE EMBAUCHE ENTREPRISE]])","v":28},{"$f":"IF(Tableau1[[#This Row],[ANNEE ENTREE POSTE]]=\"\", \"\", $C$4-Tableau1[[#This Row],[ANNEE ENTREE POSTE]])","v":28},{"$f":"IF(Tableau1[[#This Row],[ANNEE DE NAISSANCE]]=\"\", \"\", $R$4-Tableau1[[#This Row],[ANNEE DE NAISSANCE]])","v":51},{"$f":"IF(Tableau1[[#This Row],[ANNEE EMBAUCHE ENTREPRISE]]=\"\", \"\", $R$4-Tableau1[[#This Row],[ANNEE EMBAUCHE ENTREPRISE]])","v":29},{"$f":"IF(Tableau1[[#This Row],[ANNEE ENTREE POSTE]]=\"\", \"\", $R$4-Tableau1[[#This Row],[ANNEE ENTREE POSTE]])","v":29},{"$f":"IF(Tableau1[[#This Row],[ANNEE DE NAISSANCE]]=\"\", \"\", $U$4-Tableau1[[#This Row],[ANNEE DE NAISSANCE]])","v":52},{"$f":"IF(Tableau1[[#This Row],[ANNEE EMBAUCHE ENTREPRISE]]=\"\", \"\", $U$4-Tableau1[[#This Row],[ANNEE EMBAUCHE ENTREPRISE]])","v":30},{"$f":"IF(Tableau1[[#This Row],[ANNEE ENTREE POSTE]]=\"\", \"\", $U$4-Tableau1[[#This Row],[ANNEE ENTREE POSTE]])","v":30},{"$f":"IF(Tableau1[[#This Row],[ANNEE DE NAISSANCE]]=\"\", \"\", $E$4-Tableau1[[#This Row],[ANNEE DE NAISSANCE]])","v":54},{"$f":"IF(Tableau1[[#This Row],[ANNEE EMBAUCHE ENTREPRISE]]=\"\", \"\", $E$4-Tableau1[[#This Row],[ANNEE EMBAUCHE ENTREPRISE]])","v":32},{"$f":"IF(Tableau1[[#This Row],[ANNEE ENTREE POSTE]]=\"\", \"\", $E$4-Tableau1[[#This Row],[ANNEE ENTREE POSTE]])","v":32}]
[null,3,"A","F",1965,1990,1990,"Secrétaire médical","x",null,null,null,null,null,{"$f":"IF(Tableau1[[#This Row],[ANNEE DE NAISSANCE]]=\"\", \"\", $C$4-Tableau1[[#This Row],[ANNEE DE NAISSANCE]])","v":55},{"$f":"IF(Tableau1[[#This Row],[ANNEE EMBAUCHE ENTREPRISE]]=\"\", \"\", $C$4-Tableau1[[#This Row],[ANNEE EMBAUCHE ENTREPRISE]])","v":30},{"$f":"IF(Tableau1[[#This Row],[ANNEE ENTREE POSTE]]=\"\", \"\", $C$4-Tableau1[[#This Row],[ANNEE ENTREE POSTE]])","v":30},{"$f":"IF(Tableau1[[#This Row],[ANNEE DE NAISSANCE]]=\"\", \"\", $R$4-Tableau1[[#This Row],[ANNEE DE NAISSANCE]])","v":56},{"$f":"IF(Tableau1[[#This Row],[ANNEE EMBAUCHE ENTREPRISE]]=\"\", \"\", $R$4-Tableau1[[#This Row],[ANNEE EMBAUCHE ENTREPRISE]])","v":31},{"$f":"IF(Tableau1[[#This Row],[ANNEE ENTREE POSTE]]=\"\", \"\", $R$4-Tableau1[[#This Row],[ANNEE ENTREE POSTE]])","v":31},{"$f":"IF(Tableau1[[#This Row],[ANNEE DE NAISSANCE]]=\"\", \"\", $U$4-Tableau1[[#This Row],[ANNEE DE NAISSANCE]])","v":57},{"$f":"IF(Tableau1[[#This Row],[ANNEE EMBAUCHE ENTREPRISE]]=\"\", \"\", $U$4-Tableau1[[#This Row],[ANNEE EMBAUCHE ENTREPRISE]])","v":32},{"$f":"IF(Tableau1[[#This Row],[ANNEE ENTREE POSTE]]=\"\", \"\", $U$4-Tableau1[[#This Row],[ANNEE ENTREE POSTE]])","v":32},{"$f":"IF(Tableau1[[#This Row],[ANNEE DE NAISSANCE]]=\"\", \"\", $E$4-Tableau1[[#This Row],[ANNEE DE NAISSANCE]])","v":59},{"$f":"IF(Tableau1[[#This Row],[ANNEE EMBAUCHE ENTREPRISE]]=\"\", \"\", $E$4-Tableau1[[#This Row],[ANNEE EMBAUCHE ENTREPRISE]])","v":34},{"$f":"IF(Tableau1[[#This Row],[ANNEE ENTREE POSTE]]=\"\", \"\", $E$4-Tableau1[[#This Row],[ANNEE ENTREE POSTE]])","v":34}]
[null,4,"B","F",1962,2002,2002,"MDT",null,"x","x",null,null,null,{"$f":"IF(Tableau1[[#This Row],[ANNEE DE NAISSANCE]]=\"\", \"\", $C$4-Tableau1[[#This Row],[ANNEE DE NAISSANCE]])","v":58},{"$f":"IF(Tableau1[[#This Row],[ANNEE EMBAUCHE ENTREPRISE]]=\"\", \"\", $C$4-Tableau1[[#This Row],[ANNEE EMBAUCHE ENTREPRISE]])","v":18},{"$f":"IF(Tableau1[[#This Row],[ANNEE ENTREE POSTE]]=\"\", \"\", $C$4-Tableau1[[#This Row],[ANNEE ENTREE POSTE]])","v":18},{"$f":"IF(Tableau1[[#This Row],[ANNEE DE NAISSANCE]]=\"\", \"\", $R$4-Tableau1[[#This Row],[ANNEE DE NAISSANCE]])","v":59},{"$f":"IF(Tableau1[[#This Row],[ANNEE EMBAUCHE ENTREPRISE]]=\"\", \"\", $R$4-Tableau1[[#This Row],[ANNEE EMBAUCHE ENTREPRISE]])","v":19},{"$f":"IF(Tableau1[[#This Row],[ANNEE ENTREE POSTE]]=\"\", \"\", $R$4-Tableau1[[#This Row],[ANNEE ENTREE POSTE]])","v":19},{"$f":"IF(Tableau1[[#This Row],[ANNEE DE NAISSANCE]]=\"\", \"\", $U$4-Tableau1[[#This Row],[ANNEE DE NAISSANCE]])","v":60},{"$f":"IF(Tableau1[[#This Row],[ANNEE EMBAUCHE ENTREPRISE]]=\"\", \"\", $U$4-Tableau1[[#This Row],[ANNEE EMBAUCHE ENTREPRISE]])","v":20},{"$f":"IF(Tableau1[[#This Row],[ANNEE ENTREE POSTE]]=\"\", \"\", $U$4-Tableau1[[#This Row],[ANNEE ENTREE POSTE]])","v":20},{"$f":"IF(Tableau1[[#This Row],[ANNEE DE NAISSANCE]]=\"\", \"\", $E$4-Tableau1[[#This Row],[ANNEE DE NAISSANCE]])","v":62},{"$f":"IF(Tableau1[[#This Row],[ANNEE EMBAUCHE ENTREPRISE]]=\"\", \"\", $E$4-Tableau1[[#This Row],[ANNEE EMBAUCHE ENTREPRISE]])","v":22},{"$f":"IF(Tableau1[[#This Row],[ANNEE ENTREE POSTE]]=\"\", \"\", $E$4-Tableau1[[#This Row],[ANNEE ENTREE POSTE]])","v":22}]
[null,5,"A","F",1973,2018,2018,"Secrétaire médical",null,null,null,null,null,null,{"$f":"IF(Tableau1[[#This Row],[ANNEE DE NAISSANCE]]=\"\", \"\", $C$4-Tableau1[[#This Row],[ANNEE DE NAISSANCE]])","v":47},{"$f":"IF(Tableau1[[#This Row],[ANNEE EMBAUCHE ENTREPRISE]]=\"\", \"\", $C$4-Tableau1[[#This Row],[ANNEE EMBAUCHE ENTREPRISE]])","v":2},{"$f":"IF(Tableau1[[#This Row],[ANNEE ENTREE POSTE]]=\"\", \"\", $C$4-Tableau1[[#This Row],[ANNEE ENTREE POSTE]])","v":2},{"$f":"IF(Tableau1[[#This Row],[ANNEE DE NAISSANCE]]=\"\", \"\", $R$4-Tableau1[[#This Row],[ANNEE DE NAISSANCE]])","v":48},{"$f":"IF(Tableau1[[#This Row],[ANNEE EMBAUCHE ENTREPRISE]]=\"\", \"\", $R$4-Tableau1[[#This Row],[ANNEE EMBAUCHE ENTREPRISE]])","v":3},{"$f":"IF(Tableau1[[#This Row],[ANNEE ENTREE POSTE]]=\"\", \"\", $R$4-Tableau1[[#This Row],[ANNEE ENTREE POSTE]])","v":3},{"$f":"IF(Tableau1[[#This Row],[ANNEE DE NAISSANCE]]=\"\", \"\", $U$4-Tableau1[[#This Row],[ANNEE DE NAISSANCE]])","v":49},{"$f":"IF(Tableau1[[#This Row],[ANNEE EMBAUCHE ENTREPRISE]]=\"\", \"\", $U$4-Tableau1[[#This Row],[ANNEE EMBAUCHE ENTREPRISE]])","v":4},{"$f":"IF(Tableau1[[#This Row],[ANNEE ENTREE POSTE]]=\"\", \"\", $U$4-Tableau1[[#This Row],[ANNEE ENTREE POSTE]])","v":4},{"$f":"IF(Tableau1[[#This Row],[ANNEE DE NAISSANCE]]=\"\", \"\", $E$4-Tableau1[[#This Row],[ANNEE DE NAISSANCE]])","v":51},{"$f":"IF(Tableau1[[#This Row],[ANNEE EMBAUCHE ENTREPRISE]]=\"\", \"\", $E$4-Tableau1[[#This Row],[ANNEE EMBAUCHE ENTREPRISE]])","v":6},{"$f":"IF(Tableau1[[#This Row],[ANNEE ENTREE POSTE]]=\"\", \"\", $E$4-Tableau1[[#This Row],[ANNEE ENTREE POSTE]])","v":6}]
[null,6,"B","F",1978,2015,2015,"MDT",null,"x","x",null,null,null,{"$f":"IF(Tableau1[[#This Row],[ANNEE DE NAISSANCE]]=\"\", \"\", $C$4-Tableau1[[#This Row],[ANNEE DE NAISSANCE]])","v":42},{"$f":"IF(Tableau1[[#This Row],[ANNEE EMBAUCHE ENTREPRISE]]=\"\", \"\", $C$4-Tableau1[[#This Row],[ANNEE EMBAUCHE ENTREPRISE]])","v":5},{"$f":"IF(Tableau1[[#This Row],[ANNEE ENTREE POSTE]]=\"\", \"\", $C$4-Tableau1[[#This Row],[ANNEE ENTREE POSTE]])","v":5},{"$f":"IF(Tableau1[[#This Row],[ANNEE DE NAISSANCE]]=\"\", \"\", $R$4-Tableau1[[#This Row],[ANNEE DE NAISSANCE]])","v":43},{"$f":"IF(Tableau1[[#This Row],[ANNEE EMBAUCHE ENTREPRISE]]=\"\", \"\", $R$4-Tableau1[[#This Row],[ANNEE EMBAUCHE ENTREPRISE]])","v":6},{"$f":"IF(Tableau1[[#This Row],[ANNEE ENTREE POSTE]]=\"\", \"\", $R$4-Tableau1[[#This Row],[ANNEE ENTREE POSTE]])","v":6},{"$f":"IF(Tableau1[[#This Row],[ANNEE DE NAISSANCE]]=\"\", \"\", $U$4-Tableau1[[#This Row],[ANNEE DE NAISSANCE]])","v":44},{"$f":"IF(Tableau1[[#This Row],[ANNEE EMBAUCHE ENTREPRISE]]=\"\", \"\", $U$4-Tableau1[[#This Row],[ANNEE EMBAUCHE ENTREPRISE]])","v":7},{"$f":"IF(Tableau1[[#This Row],[ANNEE ENTREE POSTE]]=\"\", \"\", $U$4-Tableau1[[#This Row],[ANNEE ENTREE POSTE]])","v":7},{"$f":"IF(Tableau1[[#This Row],[ANNEE DE NAISSANCE]]=\"\", \"\", $E$4-Tableau1[[#This Row],[ANNEE DE NAISSANCE]])","v":46},{"$f":"IF(Tableau1[[#This Row],[ANNEE EMBAUCHE ENTREPRISE]]=\"\", \"\", $E$4-Tableau1[[#This Row],[ANNEE EMBAUCHE ENTREPRISE]])","v":9},{"$f":"IF(Tableau1[[#This Row],[ANNEE ENTREE POSTE]]=\"\", \"\", $E$4-Tableau1[[#This Row],[ANNEE ENTREE POSTE]])","v":9}]
[null,7,"A","H",1972,1998,2010,"ASST",null,null,"x",null,null,null,{"$f":"IF(Tableau1[[#This Row],[ANNEE DE NAISSANCE]]=\"\", \"\", $C$4-Tableau1[[#This Row],[ANNEE DE NAISSANCE]])","v":48},{"$f":"IF(Tableau1[[#This Row],[ANNEE EMBAUCHE ENTREPRISE]]=\"\", \"\", $C$4-Tableau1[[#This Row],[ANNEE EMBAUCHE ENTREPRISE]])","v":22},{"$f":"IF(Tableau1[[#This Row],[ANNEE ENTREE POSTE]]=\"\", \"\", $C$4-Tableau1[[#This Row],[ANNEE ENTREE POSTE]])","v":10},{"$f":"IF(Tableau1[[#This Row],[ANNEE DE NAISSANCE]]=\"\", \"\", $R$4-Tableau1[[#This Row],[ANNEE DE NAISSANCE]])","v":49},{"$f":"IF(Tableau1[[#This Row],[ANNEE EMBAUCHE ENTREPRISE]]=\"\", \"\", $R$4-Tableau1[[#This Row],[ANNEE EMBAUCHE ENTREPRISE]])","v":23},{"$f":"IF(Tableau1[[#This Row],[ANNEE ENTREE POSTE]]=\"\", \"\", $R$4-Tableau1[[#This Row],[ANNEE ENTREE POSTE]])","v":11},{"$f":"IF(Tableau1[[#This Row],[ANNEE DE NAISSANCE]]=\"\", \"\", $U$4-Tableau1[[#This Row],[ANNEE DE NAISSANCE]])","v":50},{"$f":"IF(Tableau1[[#This Row],[ANNEE EMBAUCHE ENTREPRISE]]=\"\", \"\", $U$4-Tableau1[[#This Row],[ANNEE EMBAUCHE ENTREPRISE]])","v":24},{"$f":"IF(Tableau1[[#This Row],[ANNEE ENTREE POSTE]]=\"\", \"\", $U$4-Tableau1[[#This Row],[ANNEE ENTREE POSTE]])","v":12},{"$f":"IF(Tableau1[[#This Row],[ANNEE DE NAISSANCE]]=\"\", \"\", $E$4-Tableau1[[#This Row],[ANNEE DE NAISSANCE]])","v":52},{"$f":"IF(Tableau1[[#This Row],[ANNEE EMBAUCHE ENTREPRISE]]=\"\", \"\", $E$4-Tableau1[[#This Row],[ANNEE EMBAUCHE ENTREPRISE]])","v":26},{"$f":"IF(Tableau1[[#This Row],[ANNEE ENTREE POSTE]]=\"\", \"\", $E$4-Tableau1[[#This Row],[ANNEE ENTREE POSTE]])","v":14}]
[null,8,"B","F",1985,2018,2018,"IDEST",null,"x","x",null,null,"x",{"$f":"IF(Tableau1[[#This Row],[ANNEE DE NAISSANCE]]=\"\", \"\", $C$4-Tableau1[[#This Row],[ANNEE DE NAISSANCE]])","v":35},{"$f":"IF(Tableau1[[#This Row],[ANNEE EMBAUCHE ENTREPRISE]]=\"\", \"\", $C$4-Tableau1[[#This Row],[ANNEE EMBAUCHE ENTREPRISE]])","v":2},{"$f":"IF(Tableau1[[#This Row],[ANNEE ENTREE POSTE]]=\"\", \"\", $C$4-Tableau1[[#This Row],[ANNEE ENTREE POSTE]])","v":2},{"$f":"IF(Tableau1[[#This Row],[ANNEE DE NAISSANCE]]=\"\", \"\", $R$4-Tableau1[[#This Row],[ANNEE DE NAISSANCE]])","v":36},{"$f":"IF(Tableau1[[#This Row],[ANNEE EMBAUCHE ENTREPRISE]]=\"\", \"\", $R$4-Tableau1[[#This Row],[ANNEE EMBAUCHE ENTREPRISE]])","v":3},{"$f":"IF(Tableau1[[#This Row],[ANNEE ENTREE POSTE]]=\"\", \"\", $R$4-Tableau1[[#This Row],[ANNEE ENTREE POSTE]])","v":3},{"$f":"IF(Tableau1[[#This Row],[ANNEE DE NAISSANCE]]=\"\", \"\", $U$4-Tableau1[[#This Row],[ANNEE DE NAISSANCE]])","v":37},{"$f":"IF(Tableau1[[#This Row],[ANNEE EMBAUCHE ENTREPRISE]]=\"\", \"\", $U$4-Tableau1[[#This Row],[ANNEE EMBAUCHE ENTREPRISE]])","v":4},{"$f":"IF(Tableau1[[#This Row],[ANNEE ENTREE POSTE]]=\"\", \"\", $U$4-Tableau1[[#This Row],[ANNEE ENTREE POSTE]])","v":4},{"$f":"IF(Tableau1[[#This Row],[ANNEE DE NAISSANCE]]=\"\", \"\", $E$4-Tableau1[[#This Row],[ANNEE DE NAISSANCE]])","v":39},{"$f":"IF(Tableau1[[#This Row],[ANNEE EMBAUCHE ENTREPRISE]]=\"\", \"\", $E$4-Tableau1[[#This Row],[ANNEE EMBAUCHE ENTREPRISE]])","v":6},{"$f":"IF(Tableau1[[#This Row],[ANNEE ENTREE POSTE]]=\"\", \"\", $E$4-Tableau1[[#This Row],[ANNEE ENTREE POSTE]])","v":6}]
[null,9,null,null,null,null,null,null,null,null,null,null,null,null,{"$f":"IF(Tableau1[[#This Row],[ANNEE DE NAISSANCE]]=\"\", \"\", $C$4-Tableau1[[#This Row],[ANNEE DE NAISSANCE]])","v":""},{"$f":"IF(Tableau1[[#This Row],[ANNEE EMBAUCHE ENTREPRISE]]=\"\", \"\", $C$4-Tableau1[[#This Row],[ANNEE EMBAUCHE ENTREPRISE]])","v":""},{"$f":"IF(Tableau1[[#This Row],[ANNEE ENTREE POSTE]]=\"\", \"\", $C$4-Tableau1[[#This Row],[ANNEE ENTREE POSTE]])","v":""},{"$f":"IF(Tableau1[[#This Row],[ANNEE DE NAISSANCE]]=\"\", \"\", $R$4-Tableau1[[#This Row],[ANNEE DE NAISSANCE]])","v":""},{"$f":"IF(Tableau1[[#This Row],[ANNEE EMBAUCHE ENTREPRISE]]=\"\", \"\", $R$4-Tableau1[[#This Row],[ANNEE EMBAUCHE ENTREPRISE]])","v":""},{"$f":"IF(Tableau1[[#This Row],[ANNEE ENTREE POSTE]]=\"\", \"\", $R$4-Tableau1[[#This Row],[ANNEE ENTREE POSTE]])","v":""},{"$f":"IF(Tableau1[[#This Row],[ANNEE DE NAISSANCE]]=\"\", \"\", $U$4-Tableau1[[#This Row],[ANNEE DE NAISSANCE]])","v":""},{"$f":"IF(Tableau1[[#This Row],[ANNEE EMBAUCHE ENTREPRISE]]=\"\", \"\", $U$4-Tableau1[[#This Row],[ANNEE EMBAUCHE ENTREPRISE]])","v":""},{"$f":"IF(Tableau1[[#This Row],[ANNEE ENTREE POSTE]]=\"\", \"\", $U$4-Tableau1[[#This Row],[ANNEE ENTREE POSTE]])","v":""},{"$f":"IF(Tableau1[[#This Row],[ANNEE DE NAISSANCE]]=\"\", \"\", $E$4-Tableau1[[#This Row],[ANNEE DE NAISSANCE]])","v":""},{"$f":"IF(Tableau1[[#This Row],[ANNEE EMBAUCHE ENTREPRISE]]=\"\", \"\", $E$4-Tableau1[[#This Row],[ANNEE EMBAUCHE ENTREPRISE]])","v":""},{"$f":"IF(Tableau1[[#This Row],[ANNEE ENTREE POSTE]]=\"\", \"\", $E$4-Tableau1[[#This Row],[ANNEE ENTREE POSTE]])","v":""}]
[null,10,null,null,null,null,null,null,null,null,null,null,null,null,{"$f":"IF(Tableau1[[#This Row],[ANNEE DE NAISSANCE]]=\"\", \"\", $C$4-Tableau1[[#This Row],[ANNEE DE NAISSANCE]])","v":""},{"$f":"IF(Tableau1[[#This Row],[ANNEE EMBAUCHE ENTREPRISE]]=\"\", \"\", $C$4-Tableau1[[#This Row],[ANNEE EMBAUCHE ENTREPRISE]])","v":""},{"$f":"IF(Tableau1[[#This Row],[ANNEE ENTREE POSTE]]=\"\", \"\", $C$4-Tableau1[[#This Row],[ANNEE ENTREE POSTE]])","v":""},{"$f":"IF(Tableau1[[#This Row],[ANNEE DE NAISSANCE]]=\"\", \"\", $R$4-Tableau1[[#This Row],[ANNEE DE NAISSANCE]])","v":""},{"$f":"IF(Tableau1[[#This Row],[ANNEE EMBAUCHE ENTREPRISE]]=\"\", \"\", $R$4-Tableau1[[#This Row],[ANNEE EMBAUCHE ENTREPRISE]])","v":""},{"$f":"IF(Tableau1[[#This Row],[ANNEE ENTREE POSTE]]=\"\", \"\", $R$4-Tableau1[[#This Row],[ANNEE ENTREE POSTE]])","v":""},{"$f":"IF(Tableau1[[#This Row],[ANNEE DE NAISSANCE]]=\"\", \"\", $U$4-Tableau1[[#This Row],[ANNEE DE NAISSANCE]])","v":""},{"$f":"IF(Tableau1[[#This Row],[ANNEE EMBAUCHE ENTREPRISE]]=\"\", \"\", $U$4-Tableau1[[#This Row],[ANNEE EMBAUCHE ENTREPRISE]])","v":""},{"$f":"IF(Tableau1[[#This Row],[ANNEE ENTREE POSTE]]=\"\", \"\", $U$4-Tableau1[[#This Row],[ANNEE ENTREE POSTE]])","v":""},{"$f":"IF(Tableau1[[#This Row],[ANNEE DE NAISSANCE]]=\"\", \"\", $E$4-Tableau1[[#This Row],[ANNEE DE NAISSANCE]])","v":""},{"$f":"IF(Tableau1[[#This Row],[ANNEE EMBAUCHE ENTREPRISE]]=\"\", \"\", $E$4-Tableau1[[#This Row],[ANNEE EMBAUCHE ENTREPRISE]])","v":""},{"$f":"IF(Tableau1[[#This Row],[ANNEE ENTREE POSTE]]=\"\", \"\", $E$4-Tableau1[[#This Row],[ANNEE ENTREE POSTE]])","v":""}]
[null,11,null,null,null,null,null,null,null,null,null,null,null,null,{"$f":"IF(Tableau1[[#This Row],[ANNEE DE NAISSANCE]]=\"\", \"\", $C$4-Tableau1[[#This Row],[ANNEE DE NAISSANCE]])","v":""},{"$f":"IF(Tableau1[[#This Row],[ANNEE EMBAUCHE ENTREPRISE]]=\"\", \"\", $C$4-Tableau1[[#This Row],[ANNEE EMBAUCHE ENTREPRISE]])","v":""},{"$f":"IF(Tableau1[[#This Row],[ANNEE ENTREE POSTE]]=\"\", \"\", $C$4-Tableau1[[#This Row],[ANNEE ENTREE POSTE]])","v":""},{"$f":"IF(Tableau1[[#This Row],[ANNEE DE NAISSANCE]]=\"\", \"\", $R$4-Tableau1[[#This Row],[ANNEE DE NAISSANCE]])","v":""},{"$f":"IF(Tableau1[[#This Row],[ANNEE EMBAUCHE ENTREPRISE]]=\"\", \"\", $R$4-Tableau1[[#This Row],[ANNEE EMBAUCHE ENTREPRISE]])","v":""},{"$f":"IF(Tableau1[[#This Row],[ANNEE ENTREE POSTE]]=\"\", \"\", $R$4-Tableau1[[#This Row],[ANNEE ENTREE POSTE]])","v":""},{"$f":"IF(Tableau1[[#This Row],[ANNEE DE NAISSANCE]]=\"\", \"\", $U$4-Tableau1[[#This Row],[ANNEE DE NAISSANCE]])","v":""},{"$f":"IF(Tableau1[[#This Row],[ANNEE EMBAUCHE ENTREPRISE]]=\"\", \"\", $U$4-Tableau1[[#This Row],[ANNEE EMBAUCHE ENTREPRISE]])","v":""},{"$f":"IF(Tableau1[[#This Row],[ANNEE ENTREE POSTE]]=\"\", \"\", $U$4-Tableau1[[#This Row],[ANNEE ENTREE POSTE]])","v":""},{"$f":"IF(Tableau1[[#This Row],[ANNEE DE NAISSANCE]]=\"\", \"\", $E$4-Tableau1[[#This Row],[ANNEE DE NAISSANCE]])","v":""},{"$f":"IF(Tableau1[[#This Row],[ANNEE EMBAUCHE ENTREPRISE]]=\"\", \"\", $E$4-Tableau1[[#This Row],[ANNEE EMBAUCHE ENTREPRISE]])","v":""},{"$f":"IF(Tableau1[[#This Row],[ANNEE ENTREE POSTE]]=\"\", \"\", $E$4-Tableau1[[#This Row],[ANNEE ENTREE POSTE]])","v":""}]
[null,12,null,null,null,null,null,null,null,null,null,null,null,null,{"$f":"IF(Tableau1[[#This Row],[ANNEE DE NAISSANCE]]=\"\", \"\", $C$4-Tableau1[[#This Row],[ANNEE DE NAISSANCE]])","v":""},{"$f":"IF(Tableau1[[#This Row],[ANNEE EMBAUCHE ENTREPRISE]]=\"\", \"\", $C$4-Tableau1[[#This Row],[ANNEE EMBAUCHE ENTREPRISE]])","v":""},{"$f":"IF(Tableau1[[#This Row],[ANNEE ENTREE POSTE]]=\"\", \"\", $C$4-Tableau1[[#This Row],[ANNEE ENTREE POSTE]])","v":""},{"$f":"IF(Tableau1[[#This Row],[ANNEE DE NAISSANCE]]=\"\", \"\", $R$4-Tableau1[[#This Row],[ANNEE DE NAISSANCE]])","v":""},{"$f":"IF(Tableau1[[#This Row],[ANNEE EMBAUCHE ENTREPRISE]]=\"\", \"\", $R$4-Tableau1[[#This Row],[ANNEE EMBAUCHE ENTREPRISE]])","v":""},{"$f":"IF(Tableau1[[#This Row],[ANNEE ENTREE POSTE]]=\"\", \"\", $R$4-Tableau1[[#This Row],[ANNEE ENTREE POSTE]])","v":""},{"$f":"IF(Tableau1[[#This Row],[ANNEE DE NAISSANCE]]=\"\", \"\", $U$4-Tableau1[[#This Row],[ANNEE DE NAISSANCE]])","v":""},{"$f":"IF(Tableau1[[#This Row],[ANNEE EMBAUCHE ENTREPRISE]]=\"\", \"\", $U$4-Tableau1[[#This Row],[ANNEE EMBAUCHE ENTREPRISE]])","v":""},{"$f":"IF(Tableau1[[#This Row],[ANNEE ENTREE POSTE]]=\"\", \"\", $U$4-Tableau1[[#This Row],[ANNEE ENTREE POSTE]])","v":""},{"$f":"IF(Tableau1[[#This Row],[ANNEE DE NAISSANCE]]=\"\", \"\", $E$4-Tableau1[[#This Row],[ANNEE DE NAISSANCE]])","v":""},{"$f":"IF(Tableau1[[#This Row],[ANNEE EMBAUCHE ENTREPRISE]]=\"\", \"\", $E$4-Tableau1[[#This Row],[ANNEE EMBAUCHE ENTREPRISE]])","v":""},{"$f":"IF(Tableau1[[#This Row],[ANNEE ENTREE POSTE]]=\"\", \"\", $E$4-Tableau1[[#This Row],[ANNEE ENTREE POSTE]])","v":""}]
[null,13,null,null,null,null,null,null,null,null,null,null,null,null,{"$f":"IF(Tableau1[[#This Row],[ANNEE DE NAISSANCE]]=\"\", \"\", $C$4-Tableau1[[#This Row],[ANNEE DE NAISSANCE]])","v":""},{"$f":"IF(Tableau1[[#This Row],[ANNEE EMBAUCHE ENTREPRISE]]=\"\", \"\", $C$4-Tableau1[[#This Row],[ANNEE EMBAUCHE ENTREPRISE]])","v":""},{"$f":"IF(Tableau1[[#This Row],[ANNEE ENTREE POSTE]]=\"\", \"\", $C$4-Tableau1[[#This Row],[ANNEE ENTREE POSTE]])","v":""},{"$f":"IF(Tableau1[[#This Row],[ANNEE DE NAISSANCE]]=\"\", \"\", $R$4-Tableau1[[#This Row],[ANNEE DE NAISSANCE]])","v":""},{"$f":"IF(Tableau1[[#This Row],[ANNEE EMBAUCHE ENTREPRISE]]=\"\", \"\", $R$4-Tableau1[[#This Row],[ANNEE EMBAUCHE ENTREPRISE]])","v":""},{"$f":"IF(Tableau1[[#This Row],[ANNEE ENTREE POSTE]]=\"\", \"\", $R$4-Tableau1[[#This Row],[ANNEE ENTREE POSTE]])","v":""},{"$f":"IF(Tableau1[[#This Row],[ANNEE DE NAISSANCE]]=\"\", \"\", $U$4-Tableau1[[#This Row],[ANNEE DE NAISSANCE]])","v":""},{"$f":"IF(Tableau1[[#This Row],[ANNEE EMBAUCHE ENTREPRISE]]=\"\", \"\", $U$4-Tableau1[[#This Row],[ANNEE EMBAUCHE ENTREPRISE]])","v":""},{"$f":"IF(Tableau1[[#This Row],[ANNEE ENTREE POSTE]]=\"\", \"\", $U$4-Tableau1[[#This Row],[ANNEE ENTREE POSTE]])","v":""},{"$f":"IF(Tableau1[[#This Row],[ANNEE DE NAISSANCE]]=\"\", \"\", $E$4-Tableau1[[#This Row],[ANNEE DE NAISSANCE]])","v":""},{"$f":"IF(Tableau1[[#This Row],[ANNEE EMBAUCHE ENTREPRISE]]=\"\", \"\", $E$4-Tableau1[[#This Row],[ANNEE EMBAUCHE ENTREPRISE]])","v":""},{"$f":"IF(Tableau1[[#This Row],[ANNEE ENTREE POSTE]]=\"\", \"\", $E$4-Tableau1[[#This Row],[ANNEE ENTREE POSTE]])","v":""}]
[null,14,null,null,null,null,null,null,null,null,null,null,null,null,{"$f":"IF(Tableau1[[#This Row],[ANNEE DE NAISSANCE]]=\"\", \"\", $C$4-Tableau1[[#This Row],[ANNEE DE NAISSANCE]])","v":""},{"$f":"IF(Tableau1[[#This Row],[ANNEE EMBAUCHE ENTREPRISE]]=\"\", \"\", $C$4-Tableau1[[#This Row],[ANNEE EMBAUCHE ENTREPRISE]])","v":""},{"$f":"IF(Tableau1[[#This Row],[ANNEE ENTREE POSTE]]=\"\", \"\", $C$4-Tableau1[[#This Row],[ANNEE ENTREE POSTE]])","v":""},{"$f":"IF(Tableau1[[#This Row],[ANNEE DE NAISSANCE]]=\"\", \"\", $R$4-Tableau1[[#This Row],[ANNEE DE NAISSANCE]])","v":""},{"$f":"IF(Tableau1[[#This Row],[ANNEE EMBAUCHE ENTREPRISE]]=\"\", \"\", $R$4-Tableau1[[#This Row],[ANNEE EMBAUCHE ENTREPRISE]])","v":""},{"$f":"IF(Tableau1[[#This Row],[ANNEE ENTREE POSTE]]=\"\", \"\", $R$4-Tableau1[[#This Row],[ANNEE ENTREE POSTE]])","v":""},{"$f":"IF(Tableau1[[#This Row],[ANNEE DE NAISSANCE]]=\"\", \"\", $U$4-Tableau1[[#This Row],[ANNEE DE NAISSANCE]])","v":""},{"$f":"IF(Tableau1[[#This Row],[ANNEE EMBAUCHE ENTREPRISE]]=\"\", \"\", $U$4-Tableau1[[#This Row],[ANNEE EMBAUCHE ENTREPRISE]])","v":""},{"$f":"IF(Tableau1[[#This Row],[ANNEE ENTREE POSTE]]=\"\", \"\", $U$4-Tableau1[[#This Row],[ANNEE ENTREE POSTE]])","v":""},{"$f":"IF(Tableau1[[#This Row],[ANNEE DE NAISSANCE]]=\"\", \"\", $E$4-Tableau1[[#This Row],[ANNEE DE NAISSANCE]])","v":""},{"$f":"IF(Tableau1[[#This Row],[ANNEE EMBAUCHE ENTREPRISE]]=\"\", \"\", $E$4-Tableau1[[#This Row],[ANNEE EMBAUCHE ENTREPRISE]])","v":""},{"$f":"IF(Tableau1[[#This Row],[ANNEE ENTREE POSTE]]=\"\", \"\", $E$4-Tableau1[[#This Row],[ANNEE ENTREE POSTE]])","v":""}]
[null,15,null,null,null,null,null,null,null,null,null,null,null,null,{"$f":"IF(Tableau1[[#This Row],[ANNEE DE NAISSANCE]]=\"\", \"\", $C$4-Tableau1[[#This Row],[ANNEE DE NAISSANCE]])","v":""},{"$f":"IF(Tableau1[[#This Row],[ANNEE EMBAUCHE ENTREPRISE]]=\"\", \"\", $C$4-Tableau1[[#This Row],[ANNEE EMBAUCHE ENTREPRISE]])","v":""},{"$f":"IF(Tableau1[[#This Row],[ANNEE ENTREE POSTE]]=\"\", \"\", $C$4-Tableau1[[#This Row],[ANNEE ENTREE POSTE]])","v":""},{"$f":"IF(Tableau1[[#This Row],[ANNEE DE NAISSANCE]]=\"\", \"\", $R$4-Tableau1[[#This Row],[ANNEE DE NAISSANCE]])","v":""},{"$f":"IF(Tableau1[[#This Row],[ANNEE EMBAUCHE ENTREPRISE]]=\"\", \"\", $R$4-Tableau1[[#This Row],[ANNEE EMBAUCHE ENTREPRISE]])","v":""},{"$f":"IF(Tableau1[[#This Row],[ANNEE ENTREE POSTE]]=\"\", \"\", $R$4-Tableau1[[#This Row],[ANNEE ENTREE POSTE]])","v":""},{"$f":"IF(Tableau1[[#This Row],[ANNEE DE NAISSANCE]]=\"\", \"\", $U$4-Tableau1[[#This Row],[ANNEE DE NAISSANCE]])","v":""},{"$f":"IF(Tableau1[[#This Row],[ANNEE EMBAUCHE ENTREPRISE]]=\"\", \"\", $U$4-Tableau1[[#This Row],[ANNEE EMBAUCHE ENTREPRISE]])","v":""},{"$f":"IF(Tableau1[[#This Row],[ANNEE ENTREE POSTE]]=\"\", \"\", $U$4-Tableau1[[#This Row],[ANNEE ENTREE POSTE]])","v":""},{"$f":"IF(Tableau1[[#This Row],[ANNEE DE NAISSANCE]]=\"\", \"\", $E$4-Tableau1[[#This Row],[ANNEE DE NAISSANCE]])","v":""},{"$f":"IF(Tableau1[[#This Row],[ANNEE EMBAUCHE ENTREPRISE]]=\"\", \"\", $E$4-Tableau1[[#This Row],[ANNEE EMBAUCHE ENTREPRISE]])","v":""},{"$f":"IF(Tableau1[[#This Row],[ANNEE ENTREE POSTE]]=\"\", \"\", $E$4-Tableau1[[#This Row],[ANNEE ENTREE POSTE]])","v":""}]
[null,16,null,null,null,null,null,null,null,null,null,null,null,null,{"$f":"IF(Tableau1[[#This Row],[ANNEE DE NAISSANCE]]=\"\", \"\", $C$4-Tableau1[[#This Row],[ANNEE DE NAISSANCE]])","v":""},{"$f":"IF(Tableau1[[#This Row],[ANNEE EMBAUCHE ENTREPRISE]]=\"\", \"\", $C$4-Tableau1[[#This Row],[ANNEE EMBAUCHE ENTREPRISE]])","v":""},{"$f":"IF(Tableau1[[#This Row],[ANNEE ENTREE POSTE]]=\"\", \"\", $C$4-Tableau1[[#This Row],[ANNEE ENTREE POSTE]])","v":""},{"$f":"IF(Tableau1[[#This Row],[ANNEE DE NAISSANCE]]=\"\", \"\", $R$4-Tableau1[[#This Row],[ANNEE DE NAISSANCE]])","v":""},{"$f":"IF(Tableau1[[#This Row],[ANNEE EMBAUCHE ENTREPRISE]]=\"\", \"\", $R$4-Tableau1[[#This Row],[ANNEE EMBAUCHE ENTREPRISE]])","v":""},{"$f":"IF(Tableau1[[#This Row],[ANNEE ENTREE POSTE]]=\"\", \"\", $R$4-Tableau1[[#This Row],[ANNEE ENTREE POSTE]])","v":""},{"$f":"IF(Tableau1[[#This Row],[ANNEE DE NAISSANCE]]=\"\", \"\", $U$4-Tableau1[[#This Row],[ANNEE DE NAISSANCE]])","v":""},{"$f":"IF(Tableau1[[#This Row],[ANNEE EMBAUCHE ENTREPRISE]]=\"\", \"\", $U$4-Tableau1[[#This Row],[ANNEE EMBAUCHE ENTREPRISE]])","v":""},{"$f":"IF(Tableau1[[#This Row],[ANNEE ENTREE POSTE]]=\"\", \"\", $U$4-Tableau1[[#This Row],[ANNEE ENTREE POSTE]])","v":""},{"$f":"IF(Tableau1[[#This Row],[ANNEE DE NAISSANCE]]=\"\", \"\", $E$4-Tableau1[[#This Row],[ANNEE DE NAISSANCE]])","v":""},{"$f":"IF(Tableau1[[#This Row],[ANNEE EMBAUCHE ENTREPRISE]]=\"\", \"\", $E$4-Tableau1[[#This Row],[ANNEE EMBAUCHE ENTREPRISE]])","v":""},{"$f":"IF(Tableau1[[#This Row],[ANNEE ENTREE POSTE]]=\"\", \"\", $E$4-Tableau1[[#This Row],[ANNEE ENTREE POSTE]])","v":""}]
[null,17,null,null,null,null,null,null,null,null,null,null,null,null,{"$f":"IF(Tableau1[[#This Row],[ANNEE DE NAISSANCE]]=\"\", \"\", $C$4-Tableau1[[#This Row],[ANNEE DE NAISSANCE]])","v":""},{"$f":"IF(Tableau1[[#This Row],[ANNEE EMBAUCHE ENTREPRISE]]=\"\", \"\", $C$4-Tableau1[[#This Row],[ANNEE EMBAUCHE ENTREPRISE]])","v":""},{"$f":"IF(Tableau1[[#This Row],[ANNEE ENTREE POSTE]]=\"\", \"\", $C$4-Tableau1[[#This Row],[ANNEE ENTREE POSTE]])","v":""},{"$f":"IF(Tableau1[[#This Row],[ANNEE DE NAISSANCE]]=\"\", \"\", $R$4-Tableau1[[#This Row],[ANNEE DE NAISSANCE]])","v":""},{"$f":"IF(Tableau1[[#This Row],[ANNEE EMBAUCHE ENTREPRISE]]=\"\", \"\", $R$4-Tableau1[[#This Row],[ANNEE EMBAUCHE ENTREPRISE]])","v":""},{"$f":"IF(Tableau1[[#This Row],[ANNEE ENTREE POSTE]]=\"\", \"\", $R$4-Tableau1[[#This Row],[ANNEE ENTREE POSTE]])","v":""},{"$f":"IF(Tableau1[[#This Row],[ANNEE DE NAISSANCE]]=\"\", \"\", $U$4-Tableau1[[#This Row],[ANNEE DE NAISSANCE]])","v":""},{"$f":"IF(Tableau1[[#This Row],[ANNEE EMBAUCHE ENTREPRISE]]=\"\", \"\", $U$4-Tableau1[[#This Row],[ANNEE EMBAUCHE ENTREPRISE]])","v":""},{"$f":"IF(Tableau1[[#This Row],[ANNEE ENTREE POSTE]]=\"\", \"\", $U$4-Tableau1[[#This Row],[ANNEE ENTREE POSTE]])","v":""},{"$f":"IF(Tableau1[[#This Row],[ANNEE DE NAISSANCE]]=\"\", \"\", $E$4-Tableau1[[#This Row],[ANNEE DE NAISSANCE]])","v":""},{"$f":"IF(Tableau1[[#This Row],[ANNEE EMBAUCHE ENTREPRISE]]=\"\", \"\", $E$4-Tableau1[[#This Row],[ANNEE EMBAUCHE ENTREPRISE]])","v":""},{"$f":"IF(Tableau1[[#This Row],[ANNEE ENTREE POSTE]]=\"\", \"\", $E$4-Tableau1[[#This Row],[ANNEE ENTREE POSTE]])","v":""}]
[null,18,null,null,null,null,null,null,null,null,null,null,null,null,{"$f":"IF(Tableau1[[#This Row],[ANNEE DE NAISSANCE]]=\"\", \"\", $C$4-Tableau1[[#This Row],[ANNEE DE NAISSANCE]])","v":""},{"$f":"IF(Tableau1[[#This Row],[ANNEE EMBAUCHE ENTREPRISE]]=\"\", \"\", $C$4-Tableau1[[#This Row],[ANNEE EMBAUCHE ENTREPRISE]])","v":""},{"$f":"IF(Tableau1[[#This Row],[ANNEE ENTREE POSTE]]=\"\", \"\", $C$4-Tableau1[[#This Row],[ANNEE ENTREE POSTE]])","v":""},{"$f":"IF(Tableau1[[#This Row],[ANNEE DE NAISSANCE]]=\"\", \"\", $R$4-Tableau1[[#This Row],[ANNEE DE NAISSANCE]])","v":""},{"$f":"IF(Tableau1[[#This Row],[ANNEE EMBAUCHE ENTREPRISE]]=\"\", \"\", $R$4-Tableau1[[#This Row],[ANNEE EMBAUCHE ENTREPRISE]])","v":""},{"$f":"IF(Tableau1[[#This Row],[ANNEE ENTREE POSTE]]=\"\", \"\", $R$4-Tableau1[[#This Row],[ANNEE ENTREE POSTE]])","v":""},{"$f":"IF(Tableau1[[#This Row],[ANNEE DE NAISSANCE]]=\"\", \"\", $U$4-Tableau1[[#This Row],[ANNEE DE NAISSANCE]])","v":""},{"$f":"IF(Tableau1[[#This Row],[ANNEE EMBAUCHE ENTREPRISE]]=\"\", \"\", $U$4-Tableau1[[#This Row],[ANNEE EMBAUCHE ENTREPRISE]])","v":""},{"$f":"IF(Tableau1[[#This Row],[ANNEE ENTREE POSTE]]=\"\", \"\", $U$4-Tableau1[[#This Row],[ANNEE ENTREE POSTE]])","v":""},{"$f":"IF(Tableau1[[#This Row],[ANNEE DE NAISSANCE]]=\"\", \"\", $E$4-Tableau1[[#This Row],[ANNEE DE NAISSANCE]])","v":""},{"$f":"IF(Tableau1[[#This Row],[ANNEE EMBAUCHE ENTREPRISE]]=\"\", \"\", $E$4-Tableau1[[#This Row],[ANNEE EMBAUCHE ENTREPRISE]])","v":""},{"$f":"IF(Tableau1[[#This Row],[ANNEE ENTREE POSTE]]=\"\", \"\", $E$4-Tableau1[[#This Row],[ANNEE ENTREE POSTE]])","v":""}]
[null,19,null,null,null,null,null,null,null,null,null,null,null,null,{"$f":"IF(Tableau1[[#This Row],[ANNEE DE NAISSANCE]]=\"\", \"\", $C$4-Tableau1[[#This Row],[ANNEE DE NAISSANCE]])","v":""},{"$f":"IF(Tableau1[[#This Row],[ANNEE EMBAUCHE ENTREPRISE]]=\"\", \"\", $C$4-Tableau1[[#This Row],[ANNEE EMBAUCHE ENTREPRISE]])","v":""},{"$f":"IF(Tableau1[[#This Row],[ANNEE ENTREE POSTE]]=\"\", \"\", $C$4-Tableau1[[#This Row],[ANNEE ENTREE POSTE]])","v":""},{"$f":"IF(Tableau1[[#This Row],[ANNEE DE NAISSANCE]]=\"\", \"\", $R$4-Tableau1[[#This Row],[ANNEE DE NAISSANCE]])","v":""},{"$f":"IF(Tableau1[[#This Row],[ANNEE EMBAUCHE ENTREPRISE]]=\"\", \"\", $R$4-Tableau1[[#This Row],[ANNEE EMBAUCHE ENTREPRISE]])","v":""},{"$f":"IF(Tableau1[[#This Row],[ANNEE ENTREE POSTE]]=\"\", \"\", $R$4-Tableau1[[#This Row],[ANNEE ENTREE POSTE]])","v":""},{"$f":"IF(Tableau1[[#This Row],[ANNEE DE NAISSANCE]]=\"\", \"\", $U$4-Tableau1[[#This Row],[ANNEE DE NAISSANCE]])","v":""},{"$f":"IF(Tableau1[[#This Row],[ANNEE EMBAUCHE ENTREPRISE]]=\"\", \"\", $U$4-Tableau1[[#This Row],[ANNEE EMBAUCHE ENTREPRISE]])","v":""},{"$f":"IF(Tableau1[[#This Row],[ANNEE ENTREE POSTE]]=\"\", \"\", $U$4-Tableau1[[#This Row],[ANNEE ENTREE POSTE]])","v":""},{"$f":"IF(Tableau1[[#This Row],[ANNEE DE NAISSANCE]]=\"\", \"\", $E$4-Tableau1[[#This Row],[ANNEE DE NAISSANCE]])","v":""},{"$f":"IF(Tableau1[[#This Row],[ANNEE EMBAUCHE ENTREPRISE]]=\"\", \"\", $E$4-Tableau1[[#This Row],[ANNEE EMBAUCHE ENTREPRISE]])","v":""},{"$f":"IF(Tableau1[[#This Row],[ANNEE ENTREE POSTE]]=\"\", \"\", $E$4-Tableau1[[#This Row],[ANNEE ENTREE POSTE]])","v":""}]
[null,20,null,null,null,null,null,null,null,null,null,null,null,null,{"$f":"IF(Tableau1[[#This Row],[ANNEE DE NAISSANCE]]=\"\", \"\", $C$4-Tableau1[[#This Row],[ANNEE DE NAISSANCE]])","v":""},{"$f":"IF(Tableau1[[#This Row],[ANNEE EMBAUCHE ENTREPRISE]]=\"\", \"\", $C$4-Tableau1[[#This Row],[ANNEE EMBAUCHE ENTREPRISE]])","v":""},{"$f":"IF(Tableau1[[#This Row],[ANNEE ENTREE POSTE]]=\"\", \"\", $C$4-Tableau1[[#This Row],[ANNEE ENTREE POSTE]])","v":""},{"$f":"IF(Tableau1[[#This Row],[ANNEE DE NAISSANCE]]=\"\", \"\", $R$4-Tableau1[[#This Row],[ANNEE DE NAISSANCE]])","v":""},{"$f":"IF(Tableau1[[#This Row],[ANNEE EMBAUCHE ENTREPRISE]]=\"\", \"\", $R$4-Tableau1[[#This Row],[ANNEE EMBAUCHE ENTREPRISE]])","v":""},{"$f":"IF(Tableau1[[#This Row],[ANNEE ENTREE POSTE]]=\"\", \"\", $R$4-Tableau1[[#This Row],[ANNEE ENTREE POSTE]])","v":""},{"$f":"IF(Tableau1[[#This Row],[ANNEE DE NAISSANCE]]=\"\", \"\", $U$4-Tableau1[[#This Row],[ANNEE DE NAISSANCE]])","v":""},{"$f":"IF(Tableau1[[#This Row],[ANNEE EMBAUCHE ENTREPRISE]]=\"\", \"\", $U$4-Tableau1[[#This Row],[ANNEE EMBAUCHE ENTREPRISE]])","v":""},{"$f":"IF(Tableau1[[#This Row],[ANNEE ENTREE POSTE]]=\"\", \"\", $U$4-Tableau1[[#This Row],[ANNEE ENTREE POSTE]])","v":""},{"$f":"IF(Tableau1[[#This Row],[ANNEE DE NAISSANCE]]=\"\", \"\", $E$4-Tableau1[[#This Row],[ANNEE DE NAISSANCE]])","v":""},{"$f":"IF(Tableau1[[#This Row],[ANNEE EMBAUCHE ENTREPRISE]]=\"\", \"\", $E$4-Tableau1[[#This Row],[ANNEE EMBAUCHE ENTREPRISE]])","v":""},{"$f":"IF(Tableau1[[#This Row],[ANNEE ENTREE POSTE]]=\"\", \"\", $E$4-Tableau1[[#This Row],[ANNEE ENTREE POSTE]])","v":""}]
[null,21,null,null,null,null,null,null,null,null,null,null,null,null,{"$f":"IF(Tableau1[[#This Row],[ANNEE DE NAISSANCE]]=\"\", \"\", $C$4-Tableau1[[#This Row],[ANNEE DE NAISSANCE]])","v":""},{"$f":"IF(Tableau1[[#This Row],[ANNEE EMBAUCHE ENTREPRISE]]=\"\", \"\", $C$4-Tableau1[[#This Row],[ANNEE EMBAUCHE ENTREPRISE]])","v":""},{"$f":"IF(Tableau1[[#This Row],[ANNEE ENTREE POSTE]]=\"\", \"\", $C$4-Tableau1[[#This Row],[ANNEE ENTREE POSTE]])","v":""},{"$f":"IF(Tableau1[[#This Row],[ANNEE DE NAISSANCE]]=\"\", \"\", $R$4-Tableau1[[#This Row],[ANNEE DE NAISSANCE]])","v":""},{"$f":"IF(Tableau1[[#This Row],[ANNEE EMBAUCHE ENTREPRISE]]=\"\", \"\", $R$4-Tableau1[[#This Row],[ANNEE EMBAUCHE ENTREPRISE]])","v":""},{"$f":"IF(Tableau1[[#This Row],[ANNEE ENTREE POSTE]]=\"\", \"\", $R$4-Tableau1[[#This Row],[ANNEE ENTREE POSTE]])","v":""},{"$f":"IF(Tableau1[[#This Row],[ANNEE DE NAISSANCE]]=\"\", \"\", $U$4-Tableau1[[#This Row],[ANNEE DE NAISSANCE]])","v":""},{"$f":"IF(Tableau1[[#This Row],[ANNEE EMBAUCHE ENTREPRISE]]=\"\", \"\", $U$4-Tableau1[[#This Row],[ANNEE EMBAUCHE ENTREPRISE]])","v":""},{"$f":"IF(Tableau1[[#This Row],[ANNEE ENTREE POSTE]]=\"\", \"\", $U$4-Tableau1[[#This Row],[ANNEE ENTREE POSTE]])","v":""},{"$f":"IF(Tableau1[[#This Row],[ANNEE DE NAISSANCE]]=\"\", \"\", $E$4-Tableau1[[#This Row],[ANNEE DE NAISSANCE]])","v":""},{"$f":"IF(Tableau1[[#This Row],[ANNEE EMBAUCHE ENTREPRISE]]=\"\", \"\", $E$4-Tableau1[[#This Row],[ANNEE EMBAUCHE ENTREPRISE]])","v":""},{"$f":"IF(Tableau1[[#This Row],[ANNEE ENTREE POSTE]]=\"\", \"\", $E$4-Tableau1[[#This Row],[ANNEE ENTREE POSTE]])","v":""}]
[null,22,null,null,null,null,null,null,null,null,null,null,null,null,{"$f":"IF(Tableau1[[#This Row],[ANNEE DE NAISSANCE]]=\"\", \"\", $C$4-Tableau1[[#This Row],[ANNEE DE NAISSANCE]])","v":""},{"$f":"IF(Tableau1[[#This Row],[ANNEE EMBAUCHE ENTREPRISE]]=\"\", \"\", $C$4-Tableau1[[#This Row],[ANNEE EMBAUCHE ENTREPRISE]])","v":""},{"$f":"IF(Tableau1[[#This Row],[ANNEE ENTREE POSTE]]=\"\", \"\", $C$4-Tableau1[[#This Row],[ANNEE ENTREE POSTE]])","v":""},{"$f":"IF(Tableau1[[#This Row],[ANNEE DE NAISSANCE]]=\"\", \"\", $R$4-Tableau1[[#This Row],[ANNEE DE NAISSANCE]])","v":""},{"$f":"IF(Tableau1[[#This Row],[ANNEE EMBAUCHE ENTREPRISE]]=\"\", \"\", $R$4-Tableau1[[#This Row],[ANNEE EMBAUCHE ENTREPRISE]])","v":""},{"$f":"IF(Tableau1[[#This Row],[ANNEE ENTREE POSTE]]=\"\", \"\", $R$4-Tableau1[[#This Row],[ANNEE ENTREE POSTE]])","v":""},{"$f":"IF(Tableau1[[#This Row],[ANNEE DE NAISSANCE]]=\"\", \"\", $U$4-Tableau1[[#This Row],[ANNEE DE NAISSANCE]])","v":""},{"$f":"IF(Tableau1[[#This Row],[ANNEE EMBAUCHE ENTREPRISE]]=\"\", \"\", $U$4-Tableau1[[#This Row],[ANNEE EMBAUCHE ENTREPRISE]])","v":""},{"$f":"IF(Tableau1[[#This Row],[ANNEE ENTREE POSTE]]=\"\", \"\", $U$4-Tableau1[[#This Row],[ANNEE ENTREE POSTE]])","v":""},{"$f":"IF(Tableau1[[#This Row],[ANNEE DE NAISSANCE]]=\"\", \"\", $E$4-Tableau1[[#This Row],[ANNEE DE NAISSANCE]])","v":""},{"$f":"IF(Tableau1[[#This Row],[ANNEE EMBAUCHE ENTREPRISE]]=\"\", \"\", $E$4-Tableau1[[#This Row],[ANNEE EMBAUCHE ENTREPRISE]])","v":""},{"$f":"IF(Tableau1[[#This Row],[ANNEE ENTREE POSTE]]=\"\", \"\", $E$4-Tableau1[[#This Row],[ANNEE ENTREE POSTE]])","v":""}]
[null,23,null,null,null,null,null,null,null,null,null,null,null,null,{"$f":"IF(Tableau1[[#This Row],[ANNEE DE NAISSANCE]]=\"\", \"\", $C$4-Tableau1[[#This Row],[ANNEE DE NAISSANCE]])","v":""},{"$f":"IF(Tableau1[[#This Row],[ANNEE EMBAUCHE ENTREPRISE]]=\"\", \"\", $C$4-Tableau1[[#This Row],[ANNEE EMBAUCHE ENTREPRISE]])","v":""},{"$f":"IF(Tableau1[[#This Row],[ANNEE ENTREE POSTE]]=\"\", \"\", $C$4-Tableau1[[#This Row],[ANNEE ENTREE POSTE]])","v":""},{"$f":"IF(Tableau1[[#This Row],[ANNEE DE NAISSANCE]]=\"\", \"\", $R$4-Tableau1[[#This Row],[ANNEE DE NAISSANCE]])","v":""},{"$f":"IF(Tableau1[[#This Row],[ANNEE EMBAUCHE ENTREPRISE]]=\"\", \"\", $R$4-Tableau1[[#This Row],[ANNEE EMBAUCHE ENTREPRISE]])","v":""},{"$f":"IF(Tableau1[[#This Row],[ANNEE ENTREE POSTE]]=\"\", \"\", $R$4-Tableau1[[#This Row],[ANNEE ENTREE POSTE]])","v":""},{"$f":"IF(Tableau1[[#This Row],[ANNEE DE NAISSANCE]]=\"\", \"\", $U$4-Tableau1[[#This Row],[ANNEE DE NAISSANCE]])","v":""},{"$f":"IF(Tableau1[[#This Row],[ANNEE EMBAUCHE ENTREPRISE]]=\"\", \"\", $U$4-Tableau1[[#This Row],[ANNEE EMBAUCHE ENTREPRISE]])","v":""},{"$f":"IF(Tableau1[[#This Row],[ANNEE ENTREE POSTE]]=\"\", \"\", $U$4-Tableau1[[#This Row],[ANNEE ENTREE POSTE]])","v":""},{"$f":"IF(Tableau1[[#This Row],[ANNEE DE NAISSANCE]]=\"\", \"\", $E$4-Tableau1[[#This Row],[ANNEE DE NAISSANCE]])","v":""},{"$f":"IF(Tableau1[[#This Row],[ANNEE EMBAUCHE ENTREPRISE]]=\"\", \"\", $E$4-Tableau1[[#This Row],[ANNEE EMBAUCHE ENTREPRISE]])","v":""},{"$f":"IF(Tableau1[[#This Row],[ANNEE ENTREE POSTE]]=\"\", \"\", $E$4-Tableau1[[#This Row],[ANNEE ENTREE POSTE]])","v":""}]
[null,24,null,null,null,null,null,null,null,null,null,null,null,null,{"$f":"IF(Tableau1[[#This Row],[ANNEE DE NAISSANCE]]=\"\", \"\", $C$4-Tableau1[[#This Row],[ANNEE DE NAISSANCE]])","v":""},{"$f":"IF(Tableau1[[#This Row],[ANNEE EMBAUCHE ENTREPRISE]]=\"\", \"\", $C$4-Tableau1[[#This Row],[ANNEE EMBAUCHE ENTREPRISE]])","v":""},{"$f":"IF(Tableau1[[#This Row],[ANNEE ENTREE POSTE]]=\"\", \"\", $C$4-Tableau1[[#This Row],[ANNEE ENTREE POSTE]])","v":""},{"$f":"IF(Tableau1[[#This Row],[ANNEE DE NAISSANCE]]=\"\", \"\", $R$4-Tableau1[[#This Row],[ANNEE DE NAISSANCE]])","v":""},{"$f":"IF(Tableau1[[#This Row],[ANNEE EMBAUCHE ENTREPRISE]]=\"\", \"\", $R$4-Tableau1[[#This Row],[ANNEE EMBAUCHE ENTREPRISE]])","v":""},{"$f":"IF(Tableau1[[#This Row],[ANNEE ENTREE POSTE]]=\"\", \"\", $R$4-Tableau1[[#This Row],[ANNEE ENTREE POSTE]])","v":""},{"$f":"IF(Tableau1[[#This Row],[ANNEE DE NAISSANCE]]=\"\", \"\", $U$4-Tableau1[[#This Row],[ANNEE DE NAISSANCE]])","v":""},{"$f":"IF(Tableau1[[#This Row],[ANNEE EMBAUCHE ENTREPRISE]]=\"\", \"\", $U$4-Tableau1[[#This Row],[ANNEE EMBAUCHE ENTREPRISE]])","v":""},{"$f":"IF(Tableau1[[#This Row],[ANNEE ENTREE POSTE]]=\"\", \"\", $U$4-Tableau1[[#This Row],[ANNEE ENTREE POSTE]])","v":""},{"$f":"IF(Tableau1[[#This Row],[ANNEE DE NAISSANCE]]=\"\", \"\", $E$4-Tableau1[[#This Row],[ANNEE DE NAISSANCE]])","v":""},{"$f":"IF(Tableau1[[#This Row],[ANNEE EMBAUCHE ENTREPRISE]]=\"\", \"\", $E$4-Tableau1[[#This Row],[ANNEE EMBAUCHE ENTREPRISE]])","v":""},{"$f":"IF(Tableau1[[#This Row],[ANNEE ENTREE POSTE]]=\"\", \"\", $E$4-Tableau1[[#This Row],[ANNEE ENTREE POSTE]])","v":""}]
[null,25,null,null,null,null,null,null,null,null,null,null,null,null,{"$f":"IF(Tableau1[[#This Row],[ANNEE DE NAISSANCE]]=\"\", \"\", $C$4-Tableau1[[#This Row],[ANNEE DE NAISSANCE]])","v":""},{"$f":"IF(Tableau1[[#This Row],[ANNEE EMBAUCHE ENTREPRISE]]=\"\", \"\", $C$4-Tableau1[[#This Row],[ANNEE EMBAUCHE ENTREPRISE]])","v":""},{"$f":"IF(Tableau1[[#This Row],[ANNEE ENTREE POSTE]]=\"\", \"\", $C$4-Tableau1[[#This Row],[ANNEE ENTREE POSTE]])","v":""},{"$f":"IF(Tableau1[[#This Row],[ANNEE DE NAISSANCE]]=\"\", \"\", $R$4-Tableau1[[#This Row],[ANNEE DE NAISSANCE]])","v":""},{"$f":"IF(Tableau1[[#This Row],[ANNEE EMBAUCHE ENTREPRISE]]=\"\", \"\", $R$4-Tableau1[[#This Row],[ANNEE EMBAUCHE ENTREPRISE]])","v":""},{"$f":"IF(Tableau1[[#This Row],[ANNEE ENTREE POSTE]]=\"\", \"\", $R$4-Tableau1[[#This Row],[ANNEE ENTREE POSTE]])","v":""},{"$f":"IF(Tableau1[[#This Row],[ANNEE DE NAISSANCE]]=\"\", \"\", $U$4-Tableau1[[#This Row],[ANNEE DE NAISSANCE]])","v":""},{"$f":"IF(Tableau1[[#This Row],[ANNEE EMBAUCHE ENTREPRISE]]=\"\", \"\", $U$4-Tableau1[[#This Row],[ANNEE EMBAUCHE ENTREPRISE]])","v":""},{"$f":"IF(Tableau1[[#This Row],[ANNEE ENTREE POSTE]]=\"\", \"\", $U$4-Tableau1[[#This Row],[ANNEE ENTREE POSTE]])","v":""},{"$f":"IF(Tableau1[[#This Row],[ANNEE DE NAISSANCE]]=\"\", \"\", $E$4-Tableau1[[#This Row],[ANNEE DE NAISSANCE]])","v":""},{"$f":"IF(Tableau1[[#This Row],[ANNEE EMBAUCHE ENTREPRISE]]=\"\", \"\", $E$4-Tableau1[[#This Row],[ANNEE EMBAUCHE ENTREPRISE]])","v":""},{"$f":"IF(Tableau1[[#This Row],[ANNEE ENTREE POSTE]]=\"\", \"\", $E$4-Tableau1[[#This Row],[ANNEE ENTREE POSTE]])","v":""}]
[null,26,null,null,null,null,null,null,null,null,null,null,null,null,{"$f":"IF(Tableau1[[#This Row],[ANNEE DE NAISSANCE]]=\"\", \"\", $C$4-Tableau1[[#This Row],[ANNEE DE NAISSANCE]])","v":""},{"$f":"IF(Tableau1[[#This Row],[ANNEE EMBAUCHE ENTREPRISE]]=\"\", \"\", $C$4-Tableau1[[#This Row],[ANNEE EMBAUCHE ENTREPRISE]])","v":""},{"$f":"IF(Tableau1[[#This Row],[ANNEE ENTREE POSTE]]=\"\", \"\", $C$4-Tableau1[[#This Row],[ANNEE ENTREE POSTE]])","v":""},{"$f":"IF(Tableau1[[#This Row],[ANNEE DE NAISSANCE]]=\"\", \"\", $R$4-Tableau1[[#This Row],[ANNEE DE NAISSANCE]])","v":""},{"$f":"IF(Tableau1[[#This Row],[ANNEE EMBAUCHE ENTREPRISE]]=\"\", \"\", $R$4-Tableau1[[#This Row],[ANNEE EMBAUCHE ENTREPRISE]])","v":""},{"$f":"IF(Tableau1[[#This Row],[ANNEE ENTREE POSTE]]=\"\", \"\", $R$4-Tableau1[[#This Row],[ANNEE ENTREE POSTE]])","v":""},{"$f":"IF(Tableau1[[#This Row],[ANNEE DE NAISSANCE]]=\"\", \"\", $U$4-Tableau1[[#This Row],[ANNEE DE NAISSANCE]])","v":""},{"$f":"IF(Tableau1[[#This Row],[ANNEE EMBAUCHE ENTREPRISE]]=\"\", \"\", $U$4-Tableau1[[#This Row],[ANNEE EMBAUCHE ENTREPRISE]])","v":""},{"$f":"IF(Tableau1[[#This Row],[ANNEE ENTREE POSTE]]=\"\", \"\", $U$4-Tableau1[[#This Row],[ANNEE ENTREE POSTE]])","v":""},{"$f":"IF(Tableau1[[#This Row],[ANNEE DE NAISSANCE]]=\"\", \"\", $E$4-Tableau1[[#This Row],[ANNEE DE NAISSANCE]])","v":""},{"$f":"IF(Tableau1[[#This Row],[ANNEE EMBAUCHE ENTREPRISE]]=\"\", \"\", $E$4-Tableau1[[#This Row],[ANNEE EMBAUCHE ENTREPRISE]])","v":""},{"$f":"IF(Tableau1[[#This Row],[ANNEE ENTREE POSTE]]=\"\", \"\", $E$4-Tableau1[[#This Row],[ANNEE ENTREE POSTE]])","v":""}]
[null,27,null,null,null,null,null,null,null,null,null,null,null,null,{"$f":"IF(Tableau1[[#This Row],[ANNEE DE NAISSANCE]]=\"\", \"\", $C$4-Tableau1[[#This Row],[ANNEE DE NAISSANCE]])","v":""},{"$f":"IF(Tableau1[[#This Row],[ANNEE EMBAUCHE ENTREPRISE]]=\"\", \"\", $C$4-Tableau1[[#This Row],[ANNEE EMBAUCHE ENTREPRISE]])","v":""},{"$f":"IF(Tableau1[[#This Row],[ANNEE ENTREE POSTE]]=\"\", \"\", $C$4-Tableau1[[#This Row],[ANNEE ENTREE POSTE]])","v":""},{"$f":"IF(Tableau1[[#This Row],[ANNEE DE NAISSANCE]]=\"\", \"\", $R$4-Tableau1[[#This Row],[ANNEE DE NAISSANCE]])","v":""},{"$f":"IF(Tableau1[[#This Row],[ANNEE EMBAUCHE ENTREPRISE]]=\"\", \"\", $R$4-Tableau1[[#This Row],[ANNEE EMBAUCHE ENTREPRISE]])","v":""},{"$f":"IF(Tableau1[[#This Row],[ANNEE ENTREE POSTE]]=\"\", \"\", $R$4-Tableau1[[#This Row],[ANNEE ENTREE POSTE]])","v":""},{"$f":"IF(Tableau1[[#This Row],[ANNEE DE NAISSANCE]]=\"\", \"\", $U$4-Tableau1[[#This Row],[ANNEE DE NAISSANCE]])","v":""},{"$f":"IF(Tableau1[[#This Row],[ANNEE EMBAUCHE ENTREPRISE]]=\"\", \"\", $U$4-Tableau1[[#This Row],[ANNEE EMBAUCHE ENTREPRISE]])","v":""},{"$f":"IF(Tableau1[[#This Row],[ANNEE ENTREE POSTE]]=\"\", \"\", $U$4-Tableau1[[#This Row],[ANNEE ENTREE POSTE]])","v":""},{"$f":"IF(Tableau1[[#This Row],[ANNEE DE NAISSANCE]]=\"\", \"\", $E$4-Tableau1[[#This Row],[ANNEE DE NAISSANCE]])","v":""},{"$f":"IF(Tableau1[[#This Row],[ANNEE EMBAUCHE ENTREPRISE]]=\"\", \"\", $E$4-Tableau1[[#This Row],[ANNEE EMBAUCHE ENTREPRISE]])","v":""},{"$f":"IF(Tableau1[[#This Row],[ANNEE ENTREE POSTE]]=\"\", \"\", $E$4-Tableau1[[#This Row],[ANNEE ENTREE POSTE]])","v":""}]
[null,28,null,null,null,null,null,null,null,null,null,null,null,null,{"$f":"IF(Tableau1[[#This Row],[ANNEE DE NAISSANCE]]=\"\", \"\", $C$4-Tableau1[[#This Row],[ANNEE DE NAISSANCE]])","v":""},{"$f":"IF(Tableau1[[#This Row],[ANNEE EMBAUCHE ENTREPRISE]]=\"\", \"\", $C$4-Tableau1[[#This Row],[ANNEE EMBAUCHE ENTREPRISE]])","v":""},{"$f":"IF(Tableau1[[#This Row],[ANNEE ENTREE POSTE]]=\"\", \"\", $C$4-Tableau1[[#This Row],[ANNEE ENTREE POSTE]])","v":""},{"$f":"IF(Tableau1[[#This Row],[ANNEE DE NAISSANCE]]=\"\", \"\", $R$4-Tableau1[[#This Row],[ANNEE DE NAISSANCE]])","v":""},{"$f":"IF(Tableau1[[#This Row],[ANNEE EMBAUCHE ENTREPRISE]]=\"\", \"\", $R$4-Tableau1[[#This Row],[ANNEE EMBAUCHE ENTREPRISE]])","v":""},{"$f":"IF(Tableau1[[#This Row],[ANNEE ENTREE POSTE]]=\"\", \"\", $R$4-Tableau1[[#This Row],[ANNEE ENTREE POSTE]])","v":""},{"$f":"IF(Tableau1[[#This Row],[ANNEE DE NAISSANCE]]=\"\", \"\", $U$4-Tableau1[[#This Row],[ANNEE DE NAISSANCE]])","v":""},{"$f":"IF(Tableau1[[#This Row],[ANNEE EMBAUCHE ENTREPRISE]]=\"\", \"\", $U$4-Tableau1[[#This Row],[ANNEE EMBAUCHE ENTREPRISE]])","v":""},{"$f":"IF(Tableau1[[#This Row],[ANNEE ENTREE POSTE]]=\"\", \"\", $U$4-Tableau1[[#This Row],[ANNEE ENTREE POSTE]])","v":""},{"$f":"IF(Tableau1[[#This Row],[ANNEE DE NAISSANCE]]=\"\", \"\", $E$4-Tableau1[[#This Row],[ANNEE DE NAISSANCE]])","v":""},{"$f":"IF(Tableau1[[#This Row],[ANNEE EMBAUCHE ENTREPRISE]]=\"\", \"\", $E$4-Tableau1[[#This Row],[ANNEE EMBAUCHE ENTREPRISE]])","v":""},{"$f":"IF(Tableau1[[#This Row],[ANNEE ENTREE POSTE]]=\"\", \"\", $E$4-Tableau1[[#This Row],[ANNEE ENTREE POSTE]])","v":""}]
[null,29,null,null,null,null,null,null,null,null,null,null,null,null,{"$f":"IF(Tableau1[[#This Row],[ANNEE DE NAISSANCE]]=\"\", \"\", $C$4-Tableau1[[#This Row],[ANNEE DE NAISSANCE]])","v":""},{"$f":"IF(Tableau1[[#This Row],[ANNEE EMBAUCHE ENTREPRISE]]=\"\", \"\", $C$4-Tableau1[[#This Row],[ANNEE EMBAUCHE ENTREPRISE]])","v":""},{"$f":"IF(Tableau1[[#This Row],[ANNEE ENTREE POSTE]]=\"\", \"\", $C$4-Tableau1[[#This Row],[ANNEE ENTREE POSTE]])","v":""},{"$f":"IF(Tableau1[[#This Row],[ANNEE DE NAISSANCE]]=\"\", \"\", $R$4-Tableau1[[#This Row],[ANNEE DE NAISSANCE]])","v":""},{"$f":"IF(Tableau1[[#This Row],[ANNEE EMBAUCHE ENTREPRISE]]=\"\", \"\", $R$4-Tableau1[[#This Row],[ANNEE EMBAUCHE ENTREPRISE]])","v":""},{"$f":"IF(Tableau1[[#This Row],[ANNEE ENTREE POSTE]]=\"\", \"\", $R$4-Tableau1[[#This Row],[ANNEE ENTREE POSTE]])","v":""},{"$f":"IF(Tableau1[[#This Row],[ANNEE DE NAISSANCE]]=\"\", \"\", $U$4-Tableau1[[#This Row],[ANNEE DE NAISSANCE]])","v":""},{"$f":"IF(Tableau1[[#This Row],[ANNEE EMBAUCHE ENTREPRISE]]=\"\", \"\", $U$4-Tableau1[[#This Row],[ANNEE EMBAUCHE ENTREPRISE]])","v":""},{"$f":"IF(Tableau1[[#This Row],[ANNEE ENTREE POSTE]]=\"\", \"\", $U$4-Tableau1[[#This Row],[ANNEE ENTREE POSTE]])","v":""},{"$f":"IF(Tableau1[[#This Row],[ANNEE DE NAISSANCE]]=\"\", \"\", $E$4-Tableau1[[#This Row],[ANNEE DE NAISSANCE]])","v":""},{"$f":"IF(Tableau1[[#This Row],[ANNEE EMBAUCHE ENTREPRISE]]=\"\", \"\", $E$4-Tableau1[[#This Row],[ANNEE EMBAUCHE ENTREPRISE]])","v":""},{"$f":"IF(Tableau1[[#This Row],[ANNEE ENTREE POSTE]]=\"\", \"\", $E$4-Tableau1[[#This Row],[ANNEE ENTREE POSTE]])","v":""}]
[null,30,null,null,null,null,null,null,null,null,null,null,null,null,{"$f":"IF(Tableau1[[#This Row],[ANNEE DE NAISSANCE]]=\"\", \"\", $C$4-Tableau1[[#This Row],[ANNEE DE NAISSANCE]])","v":""},{"$f":"IF(Tableau1[[#This Row],[ANNEE EMBAUCHE ENTREPRISE]]=\"\", \"\", $C$4-Tableau1[[#This Row],[ANNEE EMBAUCHE ENTREPRISE]])","v":""},{"$f":"IF(Tableau1[[#This Row],[ANNEE ENTREE POSTE]]=\"\", \"\", $C$4-Tableau1[[#This Row],[ANNEE ENTREE POSTE]])","v":""},{"$f":"IF(Tableau1[[#This Row],[ANNEE DE NAISSANCE]]=\"\", \"\", $R$4-Tableau1[[#This Row],[ANNEE DE NAISSANCE]])","v":""},{"$f":"IF(Tableau1[[#This Row],[ANNEE EMBAUCHE ENTREPRISE]]=\"\", \"\", $R$4-Tableau1[[#This Row],[ANNEE EMBAUCHE ENTREPRISE]])","v":""},{"$f":"IF(Tableau1[[#This Row],[ANNEE ENTREE POSTE]]=\"\", \"\", $R$4-Tableau1[[#This Row],[ANNEE ENTREE POSTE]])","v":""},{"$f":"IF(Tableau1[[#This Row],[ANNEE DE NAISSANCE]]=\"\", \"\", $U$4-Tableau1[[#This Row],[ANNEE DE NAISSANCE]])","v":""},{"$f":"IF(Tableau1[[#This Row],[ANNEE EMBAUCHE ENTREPRISE]]=\"\", \"\", $U$4-Tableau1[[#This Row],[ANNEE EMBAUCHE ENTREPRISE]])","v":""},{"$f":"IF(Tableau1[[#This Row],[ANNEE ENTREE POSTE]]=\"\", \"\", $U$4-Tableau1[[#This Row],[ANNEE ENTREE POSTE]])","v":""},{"$f":"IF(Tableau1[[#This Row],[ANNEE DE NAISSANCE]]=\"\", \"\", $E$4-Tableau1[[#This Row],[ANNEE DE NAISSANCE]])","v":""},{"$f":"IF(Tableau1[[#This Row],[ANNEE EMBAUCHE ENTREPRISE]]=\"\", \"\", $E$4-Tableau1[[#This Row],[ANNEE EMBAUCHE ENTREPRISE]])","v":""},{"$f":"IF(Tableau1[[#This Row],[ANNEE ENTREE POSTE]]=\"\", \"\", $E$4-Tableau1[[#This Row],[ANNEE ENTREE POSTE]])","v":""}]
[null,31,null,null,null,null,null,null,null,null,null,null,null,null,{"$f":"IF(Tableau1[[#This Row],[ANNEE DE NAISSANCE]]=\"\", \"\", $C$4-Tableau1[[#This Row],[ANNEE DE NAISSANCE]])","v":""},{"$f":"IF(Tableau1[[#This Row],[ANNEE EMBAUCHE ENTREPRISE]]=\"\", \"\", $C$4-Tableau1[[#This Row],[ANNEE EMBAUCHE ENTREPRISE]])","v":""},{"$f":"IF(Tableau1[[#This Row],[ANNEE ENTREE POSTE]]=\"\", \"\", $C$4-Tableau1[[#This Row],[ANNEE ENTREE POSTE]])","v":""},{"$f":"IF(Tableau1[[#This Row],[ANNEE DE NAISSANCE]]=\"\", \"\", $R$4-Tableau1[[#This Row],[ANNEE DE NAISSANCE]])","v":""},{"$f":"IF(Tableau1[[#This Row],[ANNEE EMBAUCHE ENTREPRISE]]=\"\", \"\", $R$4-Tableau1[[#This Row],[ANNEE EMBAUCHE ENTREPRISE]])","v":""},{"$f":"IF(Tableau1[[#This Row],[ANNEE ENTREE POSTE]]=\"\", \"\", $R$4-Tableau1[[#This Row],[ANNEE ENTREE POSTE]])","v":""},{"$f":"IF(Tableau1[[#This Row],[ANNEE DE NAISSANCE]]=\"\", \"\", $U$4-Tableau1[[#This Row],[ANNEE DE NAISSANCE]])","v":""},{"$f":"IF(Tableau1[[#This Row],[ANNEE EMBAUCHE ENTREPRISE]]=\"\", \"\", $U$4-Tableau1[[#This Row],[ANNEE EMBAUCHE ENTREPRISE]])","v":""},{"$f":"IF(Tableau1[[#This Row],[ANNEE ENTREE POSTE]]=\"\", \"\", $U$4-Tableau1[[#This Row],[ANNEE ENTREE POSTE]])","v":""},{"$f":"IF(Tableau1[[#This Row],[ANNEE DE NAISSANCE]]=\"\", \"\", $E$4-Tableau1[[#This Row],[ANNEE DE NAISSANCE]])","v":""},{"$f":"IF(Tableau1[[#This Row],[ANNEE EMBAUCHE ENTREPRISE]]=\"\", \"\", $E$4-Tableau1[[#This Row],[ANNEE EMBAUCHE ENTREPRISE]])","v":""},{"$f":"IF(Tableau1[[#This Row],[ANNEE ENTREE POSTE]]=\"\", \"\", $E$4-Tableau1[[#This Row],[ANNEE ENTREE POSTE]])","v":""}]
[null,{"$f":"1+B38","v":32},null,null,null,null,null,null,null,null,null,null,null,null,{"$f":"IF(Tableau1[[#This Row],[ANNEE DE NAISSANCE]]=\"\", \"\", $C$4-Tableau1[[#This Row],[ANNEE DE NAISSANCE]])","v":""},{"$f":"IF(Tableau1[[#This Row],[ANNEE EMBAUCHE ENTREPRISE]]=\"\", \"\", $C$4-Tableau1[[#This Row],[ANNEE EMBAUCHE ENTREPRISE]])","v":""},{"$f":"IF(Tableau1[[#This Row],[ANNEE ENTREE POSTE]]=\"\", \"\", $C$4-Tableau1[[#This Row],[ANNEE ENTREE POSTE]])","v":""},{"$f":"IF(Tableau1[[#This Row],[ANNEE DE NAISSANCE]]=\"\", \"\", $R$4-Tableau1[[#This Row],[ANNEE DE NAISSANCE]])","v":""},{"$f":"IF(Tableau1[[#This Row],[ANNEE EMBAUCHE ENTREPRISE]]=\"\", \"\", $R$4-Tableau1[[#This Row],[ANNEE EMBAUCHE ENTREPRISE]])","v":""},{"$f":"IF(Tableau1[[#This Row],[ANNEE ENTREE POSTE]]=\"\", \"\", $R$4-Tableau1[[#This Row],[ANNEE ENTREE POSTE]])","v":""},{"$f":"IF(Tableau1[[#This Row],[ANNEE DE NAISSANCE]]=\"\", \"\", $U$4-Tableau1[[#This Row],[ANNEE DE NAISSANCE]])","v":""},{"$f":"IF(Tableau1[[#This Row],[ANNEE EMBAUCHE ENTREPRISE]]=\"\", \"\", $U$4-Tableau1[[#This Row],[ANNEE EMBAUCHE ENTREPRISE]])","v":""},{"$f":"IF(Tableau1[[#This Row],[ANNEE ENTREE POSTE]]=\"\", \"\", $U$4-Tableau1[[#This Row],[ANNEE ENTREE POSTE]])","v":""},{"$f":"IF(Tableau1[[#This Row],[ANNEE DE NAISSANCE]]=\"\", \"\", $E$4-Tableau1[[#This Row],[ANNEE DE NAISSANCE]])","v":""},{"$f":"IF(Tableau1[[#This Row],[ANNEE EMBAUCHE ENTREPRISE]]=\"\", \"\", $E$4-Tableau1[[#This Row],[ANNEE EMBAUCHE ENTREPRISE]])","v":""},{"$f":"IF(Tableau1[[#This Row],[ANNEE ENTREE POSTE]]=\"\", \"\", $E$4-Tableau1[[#This Row],[ANNEE ENTREE POSTE]])","v":""}]
[null,33,null,null,null,null,null,null,null,null,null,null,null,null,{"$f":"IF(Tableau1[[#This Row],[ANNEE DE NAISSANCE]]=\"\", \"\", $C$4-Tableau1[[#This Row],[ANNEE DE NAISSANCE]])","v":""},{"$f":"IF(Tableau1[[#This Row],[ANNEE EMBAUCHE ENTREPRISE]]=\"\", \"\", $C$4-Tableau1[[#This Row],[ANNEE EMBAUCHE ENTREPRISE]])","v":""},{"$f":"IF(Tableau1[[#This Row],[ANNEE ENTREE POSTE]]=\"\", \"\", $C$4-Tableau1[[#This Row],[ANNEE ENTREE POSTE]])","v":""},{"$f":"IF(Tableau1[[#This Row],[ANNEE DE NAISSANCE]]=\"\", \"\", $R$4-Tableau1[[#This Row],[ANNEE DE NAISSANCE]])","v":""},{"$f":"IF(Tableau1[[#This Row],[ANNEE EMBAUCHE ENTREPRISE]]=\"\", \"\", $R$4-Tableau1[[#This Row],[ANNEE EMBAUCHE ENTREPRISE]])","v":""},{"$f":"IF(Tableau1[[#This Row],[ANNEE ENTREE POSTE]]=\"\", \"\", $R$4-Tableau1[[#This Row],[ANNEE ENTREE POSTE]])","v":""},{"$f":"IF(Tableau1[[#This Row],[ANNEE DE NAISSANCE]]=\"\", \"\", $U$4-Tableau1[[#This Row],[ANNEE DE NAISSANCE]])","v":""},{"$f":"IF(Tableau1[[#This Row],[ANNEE EMBAUCHE ENTREPRISE]]=\"\", \"\", $U$4-Tableau1[[#This Row],[ANNEE EMBAUCHE ENTREPRISE]])","v":""},{"$f":"IF(Tableau1[[#This Row],[ANNEE ENTREE POSTE]]=\"\", \"\", $U$4-Tableau1[[#This Row],[ANNEE ENTREE POSTE]])","v":""},{"$f":"IF(Tableau1[[#This Row],[ANNEE DE NAISSANCE]]=\"\", \"\", $E$4-Tableau1[[#This Row],[ANNEE DE NAISSANCE]])","v":""},{"$f":"IF(Tableau1[[#This Row],[ANNEE EMBAUCHE ENTREPRISE]]=\"\", \"\", $E$4-Tableau1[[#This Row],[ANNEE EMBAUCHE ENTREPRISE]])","v":""},{"$f":"IF(Tableau1[[#This Row],[ANNEE ENTREE POSTE]]=\"\", \"\", $E$4-Tableau1[[#This Row],[ANNEE ENTREE POSTE]])","v":""}]
[null,{"$f":"1+B40","v":34},null,null,null,null,null,null,null,null,null,null,null,null,{"$f":"IF(Tableau1[[#This Row],[ANNEE DE NAISSANCE]]=\"\", \"\", $C$4-Tableau1[[#This Row],[ANNEE DE NAISSANCE]])","v":""},{"$f":"IF(Tableau1[[#This Row],[ANNEE EMBAUCHE ENTREPRISE]]=\"\", \"\", $C$4-Tableau1[[#This Row],[ANNEE EMBAUCHE ENTREPRISE]])","v":""},{"$f":"IF(Tableau1[[#This Row],[ANNEE ENTREE POSTE]]=\"\", \"\", $C$4-Tableau1[[#This Row],[ANNEE ENTREE POSTE]])","v":""},{"$f":"IF(Tableau1[[#This Row],[ANNEE DE NAISSANCE]]=\"\", \"\", $R$4-Tableau1[[#This Row],[ANNEE DE NAISSANCE]])","v":""},{"$f":"IF(Tableau1[[#This Row],[ANNEE EMBAUCHE ENTREPRISE]]=\"\", \"\", $R$4-Tableau1[[#This Row],[ANNEE EMBAUCHE ENTREPRISE]])","v":""},{"$f":"IF(Tableau1[[#This Row],[ANNEE ENTREE POSTE]]=\"\", \"\", $R$4-Tableau1[[#This Row],[ANNEE ENTREE POSTE]])","v":""},{"$f":"IF(Tableau1[[#This Row],[ANNEE DE NAISSANCE]]=\"\", \"\", $U$4-Tableau1[[#This Row],[ANNEE DE NAISSANCE]])","v":""},{"$f":"IF(Tableau1[[#This Row],[ANNEE EMBAUCHE ENTREPRISE]]=\"\", \"\", $U$4-Tableau1[[#This Row],[ANNEE EMBAUCHE ENTREPRISE]])","v":""},{"$f":"IF(Tableau1[[#This Row],[ANNEE ENTREE POSTE]]=\"\", \"\", $U$4-Tableau1[[#This Row],[ANNEE ENTREE POSTE]])","v":""},{"$f":"IF(Tableau1[[#This Row],[ANNEE DE NAISSANCE]]=\"\", \"\", $E$4-Tableau1[[#This Row],[ANNEE DE NAISSANCE]])","v":""},{"$f":"IF(Tableau1[[#This Row],[ANNEE EMBAUCHE ENTREPRISE]]=\"\", \"\", $E$4-Tableau1[[#This Row],[ANNEE EMBAUCHE ENTREPRISE]])","v":""},{"$f":"IF(Tableau1[[#This Row],[ANNEE ENTREE POSTE]]=\"\", \"\", $E$4-Tableau1[[#This Row],[ANNEE ENTREE POSTE]])","v":""}]
[null,35,null,null,null,null,null,null,null,null,null,null,null,null,{"$f":"IF(Tableau1[[#This Row],[ANNEE DE NAISSANCE]]=\"\", \"\", $C$4-Tableau1[[#This Row],[ANNEE DE NAISSANCE]])","v":""},{"$f":"IF(Tableau1[[#This Row],[ANNEE EMBAUCHE ENTREPRISE]]=\"\", \"\", $C$4-Tableau1[[#This Row],[ANNEE EMBAUCHE ENTREPRISE]])","v":""},{"$f":"IF(Tableau1[[#This Row],[ANNEE ENTREE POSTE]]=\"\", \"\", $C$4-Tableau1[[#This Row],[ANNEE ENTREE POSTE]])","v":""},{"$f":"IF(Tableau1[[#This Row],[ANNEE DE NAISSANCE]]=\"\", \"\", $R$4-Tableau1[[#This Row],[ANNEE DE NAISSANCE]])","v":""},{"$f":"IF(Tableau1[[#This Row],[ANNEE EMBAUCHE ENTREPRISE]]=\"\", \"\", $R$4-Tableau1[[#This Row],[ANNEE EMBAUCHE ENTREPRISE]])","v":""},{"$f":"IF(Tableau1[[#This Row],[ANNEE ENTREE POSTE]]=\"\", \"\", $R$4-Tableau1[[#This Row],[ANNEE ENTREE POSTE]])","v":""},{"$f":"IF(Tableau1[[#This Row],[ANNEE DE NAISSANCE]]=\"\", \"\", $U$4-Tableau1[[#This Row],[ANNEE DE NAISSANCE]])","v":""},{"$f":"IF(Tableau1[[#This Row],[ANNEE EMBAUCHE ENTREPRISE]]=\"\", \"\", $U$4-Tableau1[[#This Row],[ANNEE EMBAUCHE ENTREPRISE]])","v":""},{"$f":"IF(Tableau1[[#This Row],[ANNEE ENTREE POSTE]]=\"\", \"\", $U$4-Tableau1[[#This Row],[ANNEE ENTREE POSTE]])","v":""},{"$f":"IF(Tableau1[[#This Row],[ANNEE DE NAISSANCE]]=\"\", \"\", $E$4-Tableau1[[#This Row],[ANNEE DE NAISSANCE]])","v":""},{"$f":"IF(Tableau1[[#This Row],[ANNEE EMBAUCHE ENTREPRISE]]=\"\", \"\", $E$4-Tableau1[[#This Row],[ANNEE EMBAUCHE ENTREPRISE]])","v":""},{"$f":"IF(Tableau1[[#This Row],[ANNEE ENTREE POSTE]]=\"\", \"\", $E$4-Tableau1[[#This Row],[ANNEE ENTREE POSTE]])","v":""}]
[null,36,null,null,null,null,null,null,null,null,null,null,null,null,{"$f":"IF(Tableau1[[#This Row],[ANNEE DE NAISSANCE]]=\"\", \"\", $C$4-Tableau1[[#This Row],[ANNEE DE NAISSANCE]])","v":""},{"$f":"IF(Tableau1[[#This Row],[ANNEE EMBAUCHE ENTREPRISE]]=\"\", \"\", $C$4-Tableau1[[#This Row],[ANNEE EMBAUCHE ENTREPRISE]])","v":""},{"$f":"IF(Tableau1[[#This Row],[ANNEE ENTREE POSTE]]=\"\", \"\", $C$4-Tableau1[[#This Row],[ANNEE ENTREE POSTE]])","v":""},{"$f":"IF(Tableau1[[#This Row],[ANNEE DE NAISSANCE]]=\"\", \"\", $R$4-Tableau1[[#This Row],[ANNEE DE NAISSANCE]])","v":""},{"$f":"IF(Tableau1[[#This Row],[ANNEE EMBAUCHE ENTREPRISE]]=\"\", \"\", $R$4-Tableau1[[#This Row],[ANNEE EMBAUCHE ENTREPRISE]])","v":""},{"$f":"IF(Tableau1[[#This Row],[ANNEE ENTREE POSTE]]=\"\", \"\", $R$4-Tableau1[[#This Row],[ANNEE ENTREE POSTE]])","v":""},{"$f":"IF(Tableau1[[#This Row],[ANNEE DE NAISSANCE]]=\"\", \"\", $U$4-Tableau1[[#This Row],[ANNEE DE NAISSANCE]])","v":""},{"$f":"IF(Tableau1[[#This Row],[ANNEE EMBAUCHE ENTREPRISE]]=\"\", \"\", $U$4-Tableau1[[#This Row],[ANNEE EMBAUCHE ENTREPRISE]])","v":""},{"$f":"IF(Tableau1[[#This Row],[ANNEE ENTREE POSTE]]=\"\", \"\", $U$4-Tableau1[[#This Row],[ANNEE ENTREE POSTE]])","v":""},{"$f":"IF(Tableau1[[#This Row],[ANNEE DE NAISSANCE]]=\"\", \"\", $E$4-Tableau1[[#This Row],[ANNEE DE NAISSANCE]])","v":""},{"$f":"IF(Tableau1[[#This Row],[ANNEE EMBAUCHE ENTREPRISE]]=\"\", \"\", $E$4-Tableau1[[#This Row],[ANNEE EMBAUCHE ENTREPRISE]])","v":""},{"$f":"IF(Tableau1[[#This Row],[ANNEE ENTREE POSTE]]=\"\", \"\", $E$4-Tableau1[[#This Row],[ANNEE ENTREE POSTE]])","v":""}]
[null,37,null,null,null,null,null,null,null,null,null,null,null,null,{"$f":"IF(Tableau1[[#This Row],[ANNEE DE NAISSANCE]]=\"\", \"\", $C$4-Tableau1[[#This Row],[ANNEE DE NAISSANCE]])","v":""},{"$f":"IF(Tableau1[[#This Row],[ANNEE EMBAUCHE ENTREPRISE]]=\"\", \"\", $C$4-Tableau1[[#This Row],[ANNEE EMBAUCHE ENTREPRISE]])","v":""},null,{"$f":"IF(Tableau1[[#This Row],[ANNEE DE NAISSANCE]]=\"\", \"\", $R$4-Tableau1[[#This Row],[ANNEE DE NAISSANCE]])","v":""},{"$f":"IF(Tableau1[[#This Row],[ANNEE EMBAUCHE ENTREPRISE]]=\"\", \"\", $R$4-Tableau1[[#This Row],[ANNEE EMBAUCHE ENTREPRISE]])","v":""},{"$f":"IF(Tableau1[[#This Row],[ANNEE ENTREE POSTE]]=\"\", \"\", $R$4-Tableau1[[#This Row],[ANNEE ENTREE POSTE]])","v":""},{"$f":"IF(Tableau1[[#This Row],[ANNEE DE NAISSANCE]]=\"\", \"\", $U$4-Tableau1[[#This Row],[ANNEE DE NAISSANCE]])","v":""},{"$f":"IF(Tableau1[[#This Row],[ANNEE EMBAUCHE ENTREPRISE]]=\"\", \"\", $U$4-Tableau1[[#This Row],[ANNEE EMBAUCHE ENTREPRISE]])","v":""},{"$f":"IF(Tableau1[[#This Row],[ANNEE ENTREE POSTE]]=\"\", \"\", $U$4-Tableau1[[#This Row],[ANNEE ENTREE POSTE]])","v":""},{"$f":"IF(Tableau1[[#This Row],[ANNEE DE NAISSANCE]]=\"\", \"\", $E$4-Tableau1[[#This Row],[ANNEE DE NAISSANCE]])","v":""},{"$f":"IF(Tableau1[[#This Row],[ANNEE EMBAUCHE ENTREPRISE]]=\"\", \"\", $E$4-Tableau1[[#This Row],[ANNEE EMBAUCHE ENTREPRISE]])","v":""},{"$f":"IF(Tableau1[[#This Row],[ANNEE ENTREE POSTE]]=\"\", \"\", $E$4-Tableau1[[#This Row],[ANNEE ENTREE POSTE]])","v":""}]
[null,38,null,null,null,null,null,null,null,null,null,null,null,null,{"$f":"IF(Tableau1[[#This Row],[ANNEE DE NAISSANCE]]=\"\", \"\", $C$4-Tableau1[[#This Row],[ANNEE DE NAISSANCE]])","v":""},{"$f":"IF(Tableau1[[#This Row],[ANNEE EMBAUCHE ENTREPRISE]]=\"\", \"\", $C$4-Tableau1[[#This Row],[ANNEE EMBAUCHE ENTREPRISE]])","v":""},null,{"$f":"IF(Tableau1[[#This Row],[ANNEE DE NAISSANCE]]=\"\", \"\", $R$4-Tableau1[[#This Row],[ANNEE DE NAISSANCE]])","v":""},{"$f":"IF(Tableau1[[#This Row],[ANNEE EMBAUCHE ENTREPRISE]]=\"\", \"\", $R$4-Tableau1[[#This Row],[ANNEE EMBAUCHE ENTREPRISE]])","v":""},{"$f":"IF(Tableau1[[#This Row],[ANNEE ENTREE POSTE]]=\"\", \"\", $R$4-Tableau1[[#This Row],[ANNEE ENTREE POSTE]])","v":""},{"$f":"IF(Tableau1[[#This Row],[ANNEE DE NAISSANCE]]=\"\", \"\", $U$4-Tableau1[[#This Row],[ANNEE DE NAISSANCE]])","v":""},{"$f":"IF(Tableau1[[#This Row],[ANNEE EMBAUCHE ENTREPRISE]]=\"\", \"\", $U$4-Tableau1[[#This Row],[ANNEE EMBAUCHE ENTREPRISE]])","v":""},{"$f":"IF(Tableau1[[#This Row],[ANNEE ENTREE POSTE]]=\"\", \"\", $U$4-Tableau1[[#This Row],[ANNEE ENTREE POSTE]])","v":""},{"$f":"IF(Tableau1[[#This Row],[ANNEE DE NAISSANCE]]=\"\", \"\", $E$4-Tableau1[[#This Row],[ANNEE DE NAISSANCE]])","v":""},{"$f":"IF(Tableau1[[#This Row],[ANNEE EMBAUCHE ENTREPRISE]]=\"\", \"\", $E$4-Tableau1[[#This Row],[ANNEE EMBAUCHE ENTREPRISE]])","v":""},{"$f":"IF(Tableau1[[#This Row],[ANNEE ENTREE POSTE]]=\"\", \"\", $E$4-Tableau1[[#This Row],[ANNEE ENTREE POSTE]])","v":""}]
[null,39,null,null,null,null,null,null,null,null,null,null,null,null,{"$f":"IF(Tableau1[[#This Row],[ANNEE DE NAISSANCE]]=\"\", \"\", $C$4-Tableau1[[#This Row],[ANNEE DE NAISSANCE]])","v":""},{"$f":"IF(Tableau1[[#This Row],[ANNEE EMBAUCHE ENTREPRISE]]=\"\", \"\", $C$4-Tableau1[[#This Row],[ANNEE EMBAUCHE ENTREPRISE]])","v":""},null,{"$f":"IF(Tableau1[[#This Row],[ANNEE DE NAISSANCE]]=\"\", \"\", $R$4-Tableau1[[#This Row],[ANNEE DE NAISSANCE]])","v":""},{"$f":"IF(Tableau1[[#This Row],[ANNEE EMBAUCHE ENTREPRISE]]=\"\", \"\", $R$4-Tableau1[[#This Row],[ANNEE EMBAUCHE ENTREPRISE]])","v":""},{"$f":"IF(Tableau1[[#This Row],[ANNEE ENTREE POSTE]]=\"\", \"\", $R$4-Tableau1[[#This Row],[ANNEE ENTREE POSTE]])","v":""},{"$f":"IF(Tableau1[[#This Row],[ANNEE DE NAISSANCE]]=\"\", \"\", $U$4-Tableau1[[#This Row],[ANNEE DE NAISSANCE]])","v":""},{"$f":"IF(Tableau1[[#This Row],[ANNEE EMBAUCHE ENTREPRISE]]=\"\", \"\", $U$4-Tableau1[[#This Row],[ANNEE EMBAUCHE ENTREPRISE]])","v":""},{"$f":"IF(Tableau1[[#This Row],[ANNEE ENTREE POSTE]]=\"\", \"\", $U$4-Tableau1[[#This Row],[ANNEE ENTREE POSTE]])","v":""},{"$f":"IF(Tableau1[[#This Row],[ANNEE DE NAISSANCE]]=\"\", \"\", $E$4-Tableau1[[#This Row],[ANNEE DE NAISSANCE]])","v":""},{"$f":"IF(Tableau1[[#This Row],[ANNEE EMBAUCHE ENTREPRISE]]=\"\", \"\", $E$4-Tableau1[[#This Row],[ANNEE EMBAUCHE ENTREPRISE]])","v":""},{"$f":"IF(Tableau1[[#This Row],[ANNEE ENTREE POSTE]]=\"\", \"\", $E$4-Tableau1[[#This Row],[ANNEE ENTREE POSTE]])","v":""}]
[null,40,null,null,null,null,null,null,null,null,null,null,null,null,{"$f":"IF(Tableau1[[#This Row],[ANNEE DE NAISSANCE]]=\"\", \"\", $C$4-Tableau1[[#This Row],[ANNEE DE NAISSANCE]])","v":""},{"$f":"IF(Tableau1[[#This Row],[ANNEE EMBAUCHE ENTREPRISE]]=\"\", \"\", $C$4-Tableau1[[#This Row],[ANNEE EMBAUCHE ENTREPRISE]])","v":""},null,{"$f":"IF(Tableau1[[#This Row],[ANNEE DE NAISSANCE]]=\"\", \"\", $R$4-Tableau1[[#This Row],[ANNEE DE NAISSANCE]])","v":""},{"$f":"IF(Tableau1[[#This Row],[ANNEE EMBAUCHE ENTREPRISE]]=\"\", \"\", $R$4-Tableau1[[#This Row],[ANNEE EMBAUCHE ENTREPRISE]])","v":""},{"$f":"IF(Tableau1[[#This Row],[ANNEE ENTREE POSTE]]=\"\", \"\", $R$4-Tableau1[[#This Row],[ANNEE ENTREE POSTE]])","v":""},{"$f":"IF(Tableau1[[#This Row],[ANNEE DE NAISSANCE]]=\"\", \"\", $U$4-Tableau1[[#This Row],[ANNEE DE NAISSANCE]])","v":""},{"$f":"IF(Tableau1[[#This Row],[ANNEE EMBAUCHE ENTREPRISE]]=\"\", \"\", $U$4-Tableau1[[#This Row],[ANNEE EMBAUCHE ENTREPRISE]])","v":""},{"$f":"IF(Tableau1[[#This Row],[ANNEE ENTREE POSTE]]=\"\", \"\", $U$4-Tableau1[[#This Row],[ANNEE ENTREE POSTE]])","v":""},{"$f":"IF(Tableau1[[#This Row],[ANNEE DE NAISSANCE]]=\"\", \"\", $E$4-Tableau1[[#This Row],[ANNEE DE NAISSANCE]])","v":""},{"$f":"IF(Tableau1[[#This Row],[ANNEE EMBAUCHE ENTREPRISE]]=\"\", \"\", $E$4-Tableau1[[#This Row],[ANNEE EMBAUCHE ENTREPRISE]])","v":""},{"$f":"IF(Tableau1[[#This Row],[ANNEE ENTREE POSTE]]=\"\", \"\", $E$4-Tableau1[[#This Row],[ANNEE ENTREE POSTE]])","v":""}]
[null,41,null,null,null,null,null,null,null,null,null,null,null,null,{"$f":"IF(Tableau1[[#This Row],[ANNEE DE NAISSANCE]]=\"\", \"\", $C$4-Tableau1[[#This Row],[ANNEE DE NAISSANCE]])","v":""},{"$f":"IF(Tableau1[[#This Row],[ANNEE EMBAUCHE ENTREPRISE]]=\"\", \"\", $C$4-Tableau1[[#This Row],[ANNEE EMBAUCHE ENTREPRISE]])","v":""},null,{"$f":"IF(Tableau1[[#This Row],[ANNEE DE NAISSANCE]]=\"\", \"\", $R$4-Tableau1[[#This Row],[ANNEE DE NAISSANCE]])","v":""},{"$f":"IF(Tableau1[[#This Row],[ANNEE EMBAUCHE ENTREPRISE]]=\"\", \"\", $R$4-Tableau1[[#This Row],[ANNEE EMBAUCHE ENTREPRISE]])","v":""},{"$f":"IF(Tableau1[[#This Row],[ANNEE ENTREE POSTE]]=\"\", \"\", $R$4-Tableau1[[#This Row],[ANNEE ENTREE POSTE]])","v":""},{"$f":"IF(Tableau1[[#This Row],[ANNEE DE NAISSANCE]]=\"\", \"\", $U$4-Tableau1[[#This Row],[ANNEE DE NAISSANCE]])","v":""},{"$f":"IF(Tableau1[[#This Row],[ANNEE EMBAUCHE ENTREPRISE]]=\"\", \"\", $U$4-Tableau1[[#This Row],[ANNEE EMBAUCHE ENTREPRISE]])","v":""},{"$f":"IF(Tableau1[[#This Row],[ANNEE ENTREE POSTE]]=\"\", \"\", $U$4-Tableau1[[#This Row],[ANNEE ENTREE POSTE]])","v":""},{"$f":"IF(Tableau1[[#This Row],[ANNEE DE NAISSANCE]]=\"\", \"\", $E$4-Tableau1[[#This Row],[ANNEE DE NAISSANCE]])","v":""},{"$f":"IF(Tableau1[[#This Row],[ANNEE EMBAUCHE ENTREPRISE]]=\"\", \"\", $E$4-Tableau1[[#This Row],[ANNEE EMBAUCHE ENTREPRISE]])","v":""},{"$f":"IF(Tableau1[[#This Row],[ANNEE ENTREE POSTE]]=\"\", \"\", $E$4-Tableau1[[#This Row],[ANNEE ENTREE POSTE]])","v":""}]
[null,42,null,null,null,null,null,null,null,null,null,null,null,null,{"$f":"IF(Tableau1[[#This Row],[ANNEE DE NAISSANCE]]=\"\", \"\", $C$4-Tableau1[[#This Row],[ANNEE DE NAISSANCE]])","v":""},{"$f":"IF(Tableau1[[#This Row],[ANNEE EMBAUCHE ENTREPRISE]]=\"\", \"\", $C$4-Tableau1[[#This Row],[ANNEE EMBAUCHE ENTREPRISE]])","v":""},null,{"$f":"IF(Tableau1[[#This Row],[ANNEE DE NAISSANCE]]=\"\", \"\", $R$4-Tableau1[[#This Row],[ANNEE DE NAISSANCE]])","v":""},{"$f":"IF(Tableau1[[#This Row],[ANNEE EMBAUCHE ENTREPRISE]]=\"\", \"\", $R$4-Tableau1[[#This Row],[ANNEE EMBAUCHE ENTREPRISE]])","v":""},{"$f":"IF(Tableau1[[#This Row],[ANNEE ENTREE POSTE]]=\"\", \"\", $R$4-Tableau1[[#This Row],[ANNEE ENTREE POSTE]])","v":""},{"$f":"IF(Tableau1[[#This Row],[ANNEE DE NAISSANCE]]=\"\", \"\", $U$4-Tableau1[[#This Row],[ANNEE DE NAISSANCE]])","v":""},{"$f":"IF(Tableau1[[#This Row],[ANNEE EMBAUCHE ENTREPRISE]]=\"\", \"\", $U$4-Tableau1[[#This Row],[ANNEE EMBAUCHE ENTREPRISE]])","v":""},{"$f":"IF(Tableau1[[#This Row],[ANNEE ENTREE POSTE]]=\"\", \"\", $U$4-Tableau1[[#This Row],[ANNEE ENTREE POSTE]])","v":""},{"$f":"IF(Tableau1[[#This Row],[ANNEE DE NAISSANCE]]=\"\", \"\", $E$4-Tableau1[[#This Row],[ANNEE DE NAISSANCE]])","v":""},{"$f":"IF(Tableau1[[#This Row],[ANNEE EMBAUCHE ENTREPRISE]]=\"\", \"\", $E$4-Tableau1[[#This Row],[ANNEE EMBAUCHE ENTREPRISE]])","v":""},{"$f":"IF(Tableau1[[#This Row],[ANNEE ENTREE POSTE]]=\"\", \"\", $E$4-Tableau1[[#This Row],[ANNEE ENTREE POSTE]])","v":""}]
[null,43,null,null,null,null,null,null,null,null,null,null,null,null,{"$f":"IF(Tableau1[[#This Row],[ANNEE DE NAISSANCE]]=\"\", \"\", $C$4-Tableau1[[#This Row],[ANNEE DE NAISSANCE]])","v":""},{"$f":"IF(Tableau1[[#This Row],[ANNEE EMBAUCHE ENTREPRISE]]=\"\", \"\", $C$4-Tableau1[[#This Row],[ANNEE EMBAUCHE ENTREPRISE]])","v":""},null,{"$f":"IF(Tableau1[[#This Row],[ANNEE DE NAISSANCE]]=\"\", \"\", $R$4-Tableau1[[#This Row],[ANNEE DE NAISSANCE]])","v":""},{"$f":"IF(Tableau1[[#This Row],[ANNEE EMBAUCHE ENTREPRISE]]=\"\", \"\", $R$4-Tableau1[[#This Row],[ANNEE EMBAUCHE ENTREPRISE]])","v":""},{"$f":"IF(Tableau1[[#This Row],[ANNEE ENTREE POSTE]]=\"\", \"\", $R$4-Tableau1[[#This Row],[ANNEE ENTREE POSTE]])","v":""},{"$f":"IF(Tableau1[[#This Row],[ANNEE DE NAISSANCE]]=\"\", \"\", $U$4-Tableau1[[#This Row],[ANNEE DE NAISSANCE]])","v":""},{"$f":"IF(Tableau1[[#This Row],[ANNEE EMBAUCHE ENTREPRISE]]=\"\", \"\", $U$4-Tableau1[[#This Row],[ANNEE EMBAUCHE ENTREPRISE]])","v":""},{"$f":"IF(Tableau1[[#This Row],[ANNEE ENTREE POSTE]]=\"\", \"\", $U$4-Tableau1[[#This Row],[ANNEE ENTREE POSTE]])","v":""},{"$f":"IF(Tableau1[[#This Row],[ANNEE DE NAISSANCE]]=\"\", \"\", $E$4-Tableau1[[#This Row],[ANNEE DE NAISSANCE]])","v":""},{"$f":"IF(Tableau1[[#This Row],[ANNEE EMBAUCHE ENTREPRISE]]=\"\", \"\", $E$4-Tableau1[[#This Row],[ANNEE EMBAUCHE ENTREPRISE]])","v":""},{"$f":"IF(Tableau1[[#This Row],[ANNEE ENTREE POSTE]]=\"\", \"\", $E$4-Tableau1[[#This Row],[ANNEE ENTREE POSTE]])","v":""}]
[null,44,null,null,null,null,null,null,null,null,null,null,null,null,{"$f":"IF(Tableau1[[#This Row],[ANNEE DE NAISSANCE]]=\"\", \"\", $C$4-Tableau1[[#This Row],[ANNEE DE NAISSANCE]])","v":""},{"$f":"IF(Tableau1[[#This Row],[ANNEE EMBAUCHE ENTREPRISE]]=\"\", \"\", $C$4-Tableau1[[#This Row],[ANNEE EMBAUCHE ENTREPRISE]])","v":""},null,{"$f":"IF(Tableau1[[#This Row],[ANNEE DE NAISSANCE]]=\"\", \"\", $R$4-Tableau1[[#This Row],[ANNEE DE NAISSANCE]])","v":""},{"$f":"IF(Tableau1[[#This Row],[ANNEE EMBAUCHE ENTREPRISE]]=\"\", \"\", $R$4-Tableau1[[#This Row],[ANNEE EMBAUCHE ENTREPRISE]])","v":""},{"$f":"IF(Tableau1[[#This Row],[ANNEE ENTREE POSTE]]=\"\", \"\", $R$4-Tableau1[[#This Row],[ANNEE ENTREE POSTE]])","v":""},{"$f":"IF(Tableau1[[#This Row],[ANNEE DE NAISSANCE]]=\"\", \"\", $U$4-Tableau1[[#This Row],[ANNEE DE NAISSANCE]])","v":""},{"$f":"IF(Tableau1[[#This Row],[ANNEE EMBAUCHE ENTREPRISE]]=\"\", \"\", $U$4-Tableau1[[#This Row],[ANNEE EMBAUCHE ENTREPRISE]])","v":""},{"$f":"IF(Tableau1[[#This Row],[ANNEE ENTREE POSTE]]=\"\", \"\", $U$4-Tableau1[[#This Row],[ANNEE ENTREE POSTE]])","v":""},{"$f":"IF(Tableau1[[#This Row],[ANNEE DE NAISSANCE]]=\"\", \"\", $E$4-Tableau1[[#This Row],[ANNEE DE NAISSANCE]])","v":""},{"$f":"IF(Tableau1[[#This Row],[ANNEE EMBAUCHE ENTREPRISE]]=\"\", \"\", $E$4-Tableau1[[#This Row],[ANNEE EMBAUCHE ENTREPRISE]])","v":""},{"$f":"IF(Tableau1[[#This Row],[ANNEE ENTREE POSTE]]=\"\", \"\", $E$4-Tableau1[[#This Row],[ANNEE ENTREE POSTE]])","v":""}]
[null,45,null,null,null,null,null,null,null,null,null,null,null,null,{"$f":"IF(Tableau1[[#This Row],[ANNEE DE NAISSANCE]]=\"\", \"\", $C$4-Tableau1[[#This Row],[ANNEE DE NAISSANCE]])","v":""},{"$f":"IF(Tableau1[[#This Row],[ANNEE EMBAUCHE ENTREPRISE]]=\"\", \"\", $C$4-Tableau1[[#This Row],[ANNEE EMBAUCHE ENTREPRISE]])","v":""},null,{"$f":"IF(Tableau1[[#This Row],[ANNEE DE NAISSANCE]]=\"\", \"\", $R$4-Tableau1[[#This Row],[ANNEE DE NAISSANCE]])","v":""},{"$f":"IF(Tableau1[[#This Row],[ANNEE EMBAUCHE ENTREPRISE]]=\"\", \"\", $R$4-Tableau1[[#This Row],[ANNEE EMBAUCHE ENTREPRISE]])","v":""},{"$f":"IF(Tableau1[[#This Row],[ANNEE ENTREE POSTE]]=\"\", \"\", $R$4-Tableau1[[#This Row],[ANNEE ENTREE POSTE]])","v":""},{"$f":"IF(Tableau1[[#This Row],[ANNEE DE NAISSANCE]]=\"\", \"\", $U$4-Tableau1[[#This Row],[ANNEE DE NAISSANCE]])","v":""},{"$f":"IF(Tableau1[[#This Row],[ANNEE EMBAUCHE ENTREPRISE]]=\"\", \"\", $U$4-Tableau1[[#This Row],[ANNEE EMBAUCHE ENTREPRISE]])","v":""},{"$f":"IF(Tableau1[[#This Row],[ANNEE ENTREE POSTE]]=\"\", \"\", $U$4-Tableau1[[#This Row],[ANNEE ENTREE POSTE]])","v":""},{"$f":"IF(Tableau1[[#This Row],[ANNEE DE NAISSANCE]]=\"\", \"\", $E$4-Tableau1[[#This Row],[ANNEE DE NAISSANCE]])","v":""},{"$f":"IF(Tableau1[[#This Row],[ANNEE EMBAUCHE ENTREPRISE]]=\"\", \"\", $E$4-Tableau1[[#This Row],[ANNEE EMBAUCHE ENTREPRISE]])","v":""},{"$f":"IF(Tableau1[[#This Row],[ANNEE ENTREE POSTE]]=\"\", \"\", $E$4-Tableau1[[#This Row],[ANNEE ENTREE POSTE]])","v":""}]
[null,46,null,null,null,null,null,null,null,null,null,null,null,null,{"$f":"IF(Tableau1[[#This Row],[ANNEE DE NAISSANCE]]=\"\", \"\", $C$4-Tableau1[[#This Row],[ANNEE DE NAISSANCE]])","v":""},{"$f":"IF(Tableau1[[#This Row],[ANNEE EMBAUCHE ENTREPRISE]]=\"\", \"\", $C$4-Tableau1[[#This Row],[ANNEE EMBAUCHE ENTREPRISE]])","v":""},null,{"$f":"IF(Tableau1[[#This Row],[ANNEE DE NAISSANCE]]=\"\", \"\", $R$4-Tableau1[[#This Row],[ANNEE DE NAISSANCE]])","v":""},{"$f":"IF(Tableau1[[#This Row],[ANNEE EMBAUCHE ENTREPRISE]]=\"\", \"\", $R$4-Tableau1[[#This Row],[ANNEE EMBAUCHE ENTREPRISE]])","v":""},{"$f":"IF(Tableau1[[#This Row],[ANNEE ENTREE POSTE]]=\"\", \"\", $R$4-Tableau1[[#This Row],[ANNEE ENTREE POSTE]])","v":""},{"$f":"IF(Tableau1[[#This Row],[ANNEE DE NAISSANCE]]=\"\", \"\", $U$4-Tableau1[[#This Row],[ANNEE DE NAISSANCE]])","v":""},{"$f":"IF(Tableau1[[#This Row],[ANNEE EMBAUCHE ENTREPRISE]]=\"\", \"\", $U$4-Tableau1[[#This Row],[ANNEE EMBAUCHE ENTREPRISE]])","v":""},{"$f":"IF(Tableau1[[#This Row],[ANNEE ENTREE POSTE]]=\"\", \"\", $U$4-Tableau1[[#This Row],[ANNEE ENTREE POSTE]])","v":""},{"$f":"IF(Tableau1[[#This Row],[ANNEE DE NAISSANCE]]=\"\", \"\", $E$4-Tableau1[[#This Row],[ANNEE DE NAISSANCE]])","v":""},{"$f":"IF(Tableau1[[#This Row],[ANNEE EMBAUCHE ENTREPRISE]]=\"\", \"\", $E$4-Tableau1[[#This Row],[ANNEE EMBAUCHE ENTREPRISE]])","v":""},{"$f":"IF(Tableau1[[#This Row],[ANNEE ENTREE POSTE]]=\"\", \"\", $E$4-Tableau1[[#This Row],[ANNEE ENTREE POSTE]])","v":""}]
[null,47,null,null,null,null,null,null,null,null,null,null,null,null,{"$f":"IF(Tableau1[[#This Row],[ANNEE DE NAISSANCE]]=\"\", \"\", $C$4-Tableau1[[#This Row],[ANNEE DE NAISSANCE]])","v":""},{"$f":"IF(Tableau1[[#This Row],[ANNEE EMBAUCHE ENTREPRISE]]=\"\", \"\", $C$4-Tableau1[[#This Row],[ANNEE EMBAUCHE ENTREPRISE]])","v":""},null,{"$f":"IF(Tableau1[[#This Row],[ANNEE DE NAISSANCE]]=\"\", \"\", $R$4-Tableau1[[#This Row],[ANNEE DE NAISSANCE]])","v":""},{"$f":"IF(Tableau1[[#This Row],[ANNEE EMBAUCHE ENTREPRISE]]=\"\", \"\", $R$4-Tableau1[[#This Row],[ANNEE EMBAUCHE ENTREPRISE]])","v":""},{"$f":"IF(Tableau1[[#This Row],[ANNEE ENTREE POSTE]]=\"\", \"\", $R$4-Tableau1[[#This Row],[ANNEE ENTREE POSTE]])","v":""},{"$f":"IF(Tableau1[[#This Row],[ANNEE DE NAISSANCE]]=\"\", \"\", $U$4-Tableau1[[#This Row],[ANNEE DE NAISSANCE]])","v":""},{"$f":"IF(Tableau1[[#This Row],[ANNEE EMBAUCHE ENTREPRISE]]=\"\", \"\", $U$4-Tableau1[[#This Row],[ANNEE EMBAUCHE ENTREPRISE]])","v":""},{"$f":"IF(Tableau1[[#This Row],[ANNEE ENTREE POSTE]]=\"\", \"\", $U$4-Tableau1[[#This Row],[ANNEE ENTREE POSTE]])","v":""},{"$f":"IF(Tableau1[[#This Row],[ANNEE DE NAISSANCE]]=\"\", \"\", $E$4-Tableau1[[#This Row],[ANNEE DE NAISSANCE]])","v":""},{"$f":"IF(Tableau1[[#This Row],[ANNEE EMBAUCHE ENTREPRISE]]=\"\", \"\", $E$4-Tableau1[[#This Row],[ANNEE EMBAUCHE ENTREPRISE]])","v":""},{"$f":"IF(Tableau1[[#This Row],[ANNEE ENTREE POSTE]]=\"\", \"\", $E$4-Tableau1[[#This Row],[ANNEE ENTREE POSTE]])","v":""}]
[null,48,null,null,null,null,null,null,null,null,null,null,null,null,{"$f":"IF(Tableau1[[#This Row],[ANNEE DE NAISSANCE]]=\"\", \"\", $C$4-Tableau1[[#This Row],[ANNEE DE NAISSANCE]])","v":""},{"$f":"IF(Tableau1[[#This Row],[ANNEE EMBAUCHE ENTREPRISE]]=\"\", \"\", $C$4-Tableau1[[#This Row],[ANNEE EMBAUCHE ENTREPRISE]])","v":""},null,{"$f":"IF(Tableau1[[#This Row],[ANNEE DE NAISSANCE]]=\"\", \"\", $R$4-Tableau1[[#This Row],[ANNEE DE NAISSANCE]])","v":""},{"$f":"IF(Tableau1[[#This Row],[ANNEE EMBAUCHE ENTREPRISE]]=\"\", \"\", $R$4-Tableau1[[#This Row],[ANNEE EMBAUCHE ENTREPRISE]])","v":""},{"$f":"IF(Tableau1[[#This Row],[ANNEE ENTREE POSTE]]=\"\", \"\", $R$4-Tableau1[[#This Row],[ANNEE ENTREE POSTE]])","v":""},{"$f":"IF(Tableau1[[#This Row],[ANNEE DE NAISSANCE]]=\"\", \"\", $U$4-Tableau1[[#This Row],[ANNEE DE NAISSANCE]])","v":""},{"$f":"IF(Tableau1[[#This Row],[ANNEE EMBAUCHE ENTREPRISE]]=\"\", \"\", $U$4-Tableau1[[#This Row],[ANNEE EMBAUCHE ENTREPRISE]])","v":""},{"$f":"IF(Tableau1[[#This Row],[ANNEE ENTREE POSTE]]=\"\", \"\", $U$4-Tableau1[[#This Row],[ANNEE ENTREE POSTE]])","v":""},{"$f":"IF(Tableau1[[#This Row],[ANNEE DE NAISSANCE]]=\"\", \"\", $E$4-Tableau1[[#This Row],[ANNEE DE NAISSANCE]])","v":""},{"$f":"IF(Tableau1[[#This Row],[ANNEE EMBAUCHE ENTREPRISE]]=\"\", \"\", $E$4-Tableau1[[#This Row],[ANNEE EMBAUCHE ENTREPRISE]])","v":""},{"$f":"IF(Tableau1[[#This Row],[ANNEE ENTREE POSTE]]=\"\", \"\", $E$4-Tableau1[[#This Row],[ANNEE ENTREE POSTE]])","v":""}]
[null,49,null,null,null,null,null,null,null,null,null,null,null,null,{"$f":"IF(Tableau1[[#This Row],[ANNEE DE NAISSANCE]]=\"\", \"\", $C$4-Tableau1[[#This Row],[ANNEE DE NAISSANCE]])","v":""},{"$f":"IF(Tableau1[[#This Row],[ANNEE EMBAUCHE ENTREPRISE]]=\"\", \"\", $C$4-Tableau1[[#This Row],[ANNEE EMBAUCHE ENTREPRISE]])","v":""},null,{"$f":"IF(Tableau1[[#This Row],[ANNEE DE NAISSANCE]]=\"\", \"\", $R$4-Tableau1[[#This Row],[ANNEE DE NAISSANCE]])","v":""},{"$f":"IF(Tableau1[[#This Row],[ANNEE EMBAUCHE ENTREPRISE]]=\"\", \"\", $R$4-Tableau1[[#This Row],[ANNEE EMBAUCHE ENTREPRISE]])","v":""},{"$f":"IF(Tableau1[[#This Row],[ANNEE ENTREE POSTE]]=\"\", \"\", $R$4-Tableau1[[#This Row],[ANNEE ENTREE POSTE]])","v":""},{"$f":"IF(Tableau1[[#This Row],[ANNEE DE NAISSANCE]]=\"\", \"\", $U$4-Tableau1[[#This Row],[ANNEE DE NAISSANCE]])","v":""},{"$f":"IF(Tableau1[[#This Row],[ANNEE EMBAUCHE ENTREPRISE]]=\"\", \"\", $U$4-Tableau1[[#This Row],[ANNEE EMBAUCHE ENTREPRISE]])","v":""},{"$f":"IF(Tableau1[[#This Row],[ANNEE ENTREE POSTE]]=\"\", \"\", $U$4-Tableau1[[#This Row],[ANNEE ENTREE POSTE]])","v":""},{"$f":"IF(Tableau1[[#This Row],[ANNEE DE NAISSANCE]]=\"\", \"\", $E$4-Tableau1[[#This Row],[ANNEE DE NAISSANCE]])","v":""},{"$f":"IF(Tableau1[[#This Row],[ANNEE EMBAUCHE ENTREPRISE]]=\"\", \"\", $E$4-Tableau1[[#This Row],[ANNEE EMBAUCHE ENTREPRISE]])","v":""},{"$f":"IF(Tableau1[[#This Row],[ANNEE ENTREE POSTE]]=\"\", \"\", $E$4-Tableau1[[#This Row],[ANNEE ENTREE POSTE]])","v":""}]
[null,50,null,null,null,null,null,null,null,null,null,null,null,null,{"$f":"IF(Tableau1[[#This Row],[ANNEE DE NAISSANCE]]=\"\", \"\", $C$4-Tableau1[[#This Row],[ANNEE DE NAISSANCE]])","v":""},{"$f":"IF(Tableau1[[#This Row],[ANNEE EMBAUCHE ENTREPRISE]]=\"\", \"\", $C$4-Tableau1[[#This Row],[ANNEE EMBAUCHE ENTREPRISE]])","v":""},null,{"$f":"IF(Tableau1[[#This Row],[ANNEE DE NAISSANCE]]=\"\", \"\", $R$4-Tableau1[[#This Row],[ANNEE DE NAISSANCE]])","v":""},{"$f":"IF(Tableau1[[#This Row],[ANNEE EMBAUCHE ENTREPRISE]]=\"\", \"\", $R$4-Tableau1[[#This Row],[ANNEE EMBAUCHE ENTREPRISE]])","v":""},{"$f":"IF(Tableau1[[#This Row],[ANNEE ENTREE POSTE]]=\"\", \"\", $R$4-Tableau1[[#This Row],[ANNEE ENTREE POSTE]])","v":""},{"$f":"IF(Tableau1[[#This Row],[ANNEE DE NAISSANCE]]=\"\", \"\", $U$4-Tableau1[[#This Row],[ANNEE DE NAISSANCE]])","v":""},{"$f":"IF(Tableau1[[#This Row],[ANNEE EMBAUCHE ENTREPRISE]]=\"\", \"\", $U$4-Tableau1[[#This Row],[ANNEE EMBAUCHE ENTREPRISE]])","v":""},{"$f":"IF(Tableau1[[#This Row],[ANNEE ENTREE POSTE]]=\"\", \"\", $U$4-Tableau1[[#This Row],[ANNEE ENTREE POSTE]])","v":""},{"$f":"IF(Tableau1[[#This Row],[ANNEE DE NAISSANCE]]=\"\", \"\", $E$4-Tableau1[[#This Row],[ANNEE DE NAISSANCE]])","v":""},{"$f":"IF(Tableau1[[#This Row],[ANNEE EMBAUCHE ENTREPRISE]]=\"\", \"\", $E$4-Tableau1[[#This Row],[ANNEE EMBAUCHE ENTREPRISE]])","v":""},{"$f":"IF(Tableau1[[#This Row],[ANNEE ENTREE POSTE]]=\"\", \"\", $E$4-Tableau1[[#This Row],[ANNEE ENTREE POSTE]])","v":""}]

{"sheet":"Rubrique covid 19","index":2,"n_rows":62,"n_cols":22,"rows_kept":62,"cut":false,"hidden":false,"merged":[[6,9,6,14]]}
[]
[null,"VOTRE STRUCTURE DEMOGRAPHIQUE EN LIEN AVEC LE COVID 19 ?"]
[null,null,null,null,null,null,null,null,null,null,null,null,null,null,null,null,null,null,{"$f":"COUNTIFS(T13:T62,\">=1\",U13:U62,\">=1\")","v":0}]
[null,"CARACTERISTIQUES POPULATION (ANNEE EN COURS)",null,null,"CARACTERISTIQUES POPULATION (ANNEE EN COURS)"]
[]
[]
[null,null,null,null,null,null,null,null,null,"Les métiers concernés par un risque d'exposition COVID 19"]
[]
[]
[null,null,null,null,null,null,null,null,null,"Étiquettes de lignes","Nombre de METIER"]
[null,null,null,null,null,null,null,null,null,"ASST",1,null,null,null,null,null,null,null,"ANNEE EN COURS"]
[null,null,null,null,null,null,null,null,null,"IDEST",1,null,null,null,null,null,null,null,"Nombre","Risque COVID19","Problématique de santé","COVID 19 et Problématique de santé"]
[null,null,null,null,null,null,null,null,null,"MDT",2,null,null,null,null,null,null,18,{"$f":"COUNTIF(Tableau1[Age], R13)","v":0},{"$f":"COUNTIFS(Tableau1[Age], R13, Tableau1[Le tavail exercé représente-t-il un Risque lié au COVID  19 ? ],\"x\",Tableau1[Le tavail exercé représente-t-il un Risque lié au COVID  19 ? ],\"X\")","v":0},{"$f":"COUNTIFS(Tableau1[Age],R13, Tableau1[Colonne1],\"x\",Tableau1[Colonne1],\"X\")","v":0},{"$f":"COUNTIFS(Tableau1[Age],R13, Tableau1[Colonne1],\"x\",Tableau1[Colonne1],\"X\", Tableau1[Le tavail exercé représente-t-il un Risque lié au COVID  19 ? ],\"x\",Tableau1[Le tavail exercé représente-t-il un Risque lié au COVID  19 ? ],\"X\")","v":0}]
[null,null,null,null,null,null,null,null,null,"Secrétaire médical",3,null,null,null,null,null,null,19,{"$f":"COUNTIF(Tableau1[Age], R14)","v":0},{"$f":"COUNTIFS(Tableau1[Age], R14, Tableau1[Le tavail exercé représente-t-il un Risque lié au COVID  19 ? ],\"x\",Tableau1[Le tavail exercé représente-t-il un Risque lié au COVID  19 ? ],\"X\")","v":0},{"$f":"COUNTIFS(Tableau1[Age],R14, Tableau1[Colonne1],\"x\",Tableau1[Colonne1],\"X\")","v":0},{"$f":"COUNTIFS(Tableau1[Age],R14, Tableau1[Colonne1],\"x\",Tableau1[Colonne1],\"X\", Tableau1[Le tavail exercé représente-t-il un Risque lié au COVID  19 ? ],\"x\",Tableau1[Le tavail exercé représente-t-il un Risque lié au COVID  19 ? ],\"X\")","v":0}]
[null,null,null,null,null,null,null,null,null,"(vide)",null,null,null,null,null,null,null,20,{"$f":"COUNTIF(Tableau1[Age], R15)","v":0},{"$f":"COUNTIFS(Tableau1[Age], R15, Tableau1[Le tavail exercé représente-t-il un Risque lié au COVID  19 ? ],\"x\",Tableau1[Le tavail exercé représente-t-il un Risque lié au COVID  19 ? ],\"X\")","v":0},{"$f":"COUNTIFS(Tableau1[Age],R15, Tableau1[Colonne1],\"x\",Tableau1[Colonne1],\"X\")","v":0},{"$f":"COUNTIFS(Tableau1[Age],R15, Tableau1[Colonne1],\"x\",Tableau1[Colonne1],\"X\", Tableau1[Le tavail exercé représente-t-il un Risque lié au COVID  19 ? ],\"x\",Tableau1[Le tavail exercé représente-t-il un Risque lié au COVID  19 ? ],\"X\")","v":0}]
[null,null,null,null,null,null,null,null,null,"CM",1,null,null,null,null,null,null,21,{"$f":"COUNTIF(Tableau1[Age], R16)","v":0},{"$f":"COUNTIFS(Tableau1[Age], R16, Tableau1[Le tavail exercé représente-t-il un Risque lié au COVID  19 ? ],\"x\",Tableau1[Le tavail exercé représente-t-il un Risque lié au COVID  19 ? ],\"X\")","v":0},{"$f":"COUNTIFS(Tableau1[Age],R16, Tableau1[Colonne1],\"x\",Tableau1[Colonne1],\"X\")","v":0},{"$f":"COUNTIFS(Tableau1[Age],R16, Tableau1[Colonne1],\"x\",Tableau1[Colonne1],\"X\", Tableau1[Le tavail exercé représente-t-il un Risque lié au COVID  19 ? ],\"x\",Tableau1[Le tavail exercé représente-t-il un Risque lié au COVID  19 ? ],\"X\")","v":0}]
[null,null,null,null,null,null,null,null,null,"Total général",8,null,null,null,null,null,null,22,{"$f":"COUNTIF(Tableau1[Age], R17)","v":0},{"$f":"COUNTIFS(Tableau1[Age], R17, Tableau1[Le tavail exercé représente-t-il un Risque lié au COVID  19 ? ],\"x\",Tableau1[Le tavail exercé représente-t-il un Risque lié au COVID  19 ? ],\"X\")","v":0},{"$f":"COUNTIFS(Tableau1[Age],R17, Tableau1[Colonne1],\"x\",Tableau1[Colonne1],\"X\")","v":0},{"$f":"COUNTIFS(Tableau1[Age],R17, Tableau1[Colonne1],\"x\",Tableau1[Colonne1],\"X\", Tableau1[Le tavail exercé représente-t-il un Risque lié au COVID  19 ? ],\"x\",Tableau1[Le tavail exercé représente-t-il un Risque lié au COVID  19 ? ],\"X\")","v":0}]
[null,null,null,null,null,null,null,null,null,null,null,null,null,null,null,null,null,23,{"$f":"COUNTIF(Tableau1[Age], R18)","v":0},{"$f":"COUNTIFS(Tableau1[Age], R18, Tableau1[Le tavail exercé représente-t-il un Risque lié au COVID  19 ? ],\"x\",Tableau1[Le tavail exercé représente-t-il un Risque lié au COVID  19 ? ],\"X\")","v":0},{"$f":"COUNTIFS(Tableau1[Age],R18, Tableau1[Colonne1],\"x\",Tableau1[Colonne1],\"X\")","v":0},{"$f":"COUNTIFS(Tableau1[Age],R18, Tableau1[Colonne1],\"x\",Tableau1[Colonne1],\"X\", Tableau1[Le tavail exercé représente-t-il un Risque lié au COVID  19 ? ],\"x\",Tableau1[Le tavail exercé représente-t-il un Risque lié au COVID  19 ? ],\"X\")","v":0}]
[null,null,null,null,null,null,null,null,null,null,null,null,null,null,null,null,null,24,{"$f":"COUNTIF(Tableau1[Age], R19)","v":0},{"$f":"COUNTIFS(Tableau1[Age], R19, Tableau1[Le tavail exercé représente-t-il un Risque lié au COVID  19 ? ],\"x\",Tableau1[Le tavail exercé représente-t-il un Risque lié au COVID  19 ? ],\"X\")","v":0},{"$f":"COUNTIFS(Tableau1[Age],R19, Tableau1[Colonne1],\"x\",Tableau1[Colonne1],\"X\")","v":0},{"$f":"COUNTIFS(Tableau1[Age],R19, Tableau1[Colonne1],\"x\",Tableau1[Colonne1],\"X\", Tableau1[Le tavail exercé représente-t-il un Risque lié au COVID  19 ? ],\"x\",Tableau1[Le tavail exercé représente-t-il un Risque lié au COVID  19 ? ],\"X\")","v":0}]
[null,null,null,null,null,null,null,null,null,null,null,null,null,null,null,null,null,25,{"$f":"COUNTIF(Tableau1[Age], R20)","v":0},{"$f":"COUNTIFS(Tableau1[Age], R20, Tableau1[Le tavail exercé représente-t-il un Risque lié au COVID  19 ? ],\"x\",Tableau1[Le tavail exercé représente-t-il un Risque lié au COVID  19 ? ],\"X\")","v":0},{"$f":"COUNTIFS(Tableau1[Age],R20, Tableau1[Colonne1],\"x\",Tableau1[Colonne1],\"X\")","v":0},{"$f":"COUNTIFS(Tableau1[Age],R20, Tableau1[Colonne1],\"x\",Tableau1[Colonne1],\"X\", Tableau1[Le tavail exercé représente-t-il un Risque lié au COVID  19 ? ],\"x\",Tableau1[Le tavail exercé représente-t-il un Risque lié au COVID  19 ? ],\"X\")","v":0}]
[null,null,null,null,null,null,null,null,null,null,null,null,null,null,null,null,null,26,{"$f":"COUNTIF(Tableau1[Age], R21)","v":0},{"$f":"COUNTIFS(Tableau1[Age], R21, Tableau1[Le tavail exercé représente-t-il un Risque lié au COVID  19 ? ],\"x\",Tableau1[Le tavail exercé représente-t-il un Risque lié au COVID  19 ? ],\"X\")","v":0},{"$f":"COUNTIFS(Tableau1[Age],R21, Tableau1[Colonne1],\"x\",Tableau1[Colonne1],\"X\")","v":0},{"$f":"COUNTIFS(Tableau1[Age],R21, Tableau1[Colonne1],\"x\",Tableau1[Colonne1],\"X\", Tableau1[Le tavail exercé représente-t-il un Risque lié au COVID  19 ? ],\"x\",Tableau1[Le tavail exercé représente-t-il un Risque lié au COVID  19 ? ],\"X\")","v":0}]
[null,null,null,null,null,null,null,null,null,null,null,null,null,null,null,null,null,27,{"$f":"COUNTIF(Tableau1[Age], R22)","v":0},{"$f":"COUNTIFS(Tableau1[Age], R22, Tableau1[Le tavail exercé représente-t-il un Risque lié au COVID  19 ? ],\"x\",Tableau1[Le tavail exercé représente-t-il un Risque lié au COVID  19 ? ],\"X\")","v":0},{"$f":"COUNTIFS(Tableau1[Age],R22, Tableau1[Colonne1],\"x\",Tableau1[Colonne1],\"X\")","v":0},{"$f":"COUNTIFS(Tableau1[Age],R22, Tableau1[Colonne1],\"x\",Tableau1[Colonne1],\"X\", Tableau1[Le tavail exercé représente-t-il un Risque lié au COVID  19 ? ],\"x\",Tableau1[Le tavail exercé représente-t-il un Risque lié au COVID  19 ? ],\"X\")","v":0}]
[null,null,null,null,null,null,null,null,null,null,null,null,null,null,null,null,null,28,{"$f":"COUNTIF(Tableau1[Age], R23)","v":0},{"$f":"COUNTIFS(Tableau1[Age], R23, Tableau1[Le tavail exercé représente-t-il un Risque lié au COVID  19 ? ],\"x\",Tableau1[Le tavail exercé représente-t-il un Risque lié au COVID  19 ? ],\"X\")","v":0},{"$f":"COUNTIFS(Tableau1[Age],R23, Tableau1[Colonne1],\"x\",Tableau1[Colonne1],\"X\")","v":0},{"$f":"COUNTIFS(Tableau1[Age],R23, Tableau1[Colonne1],\"x\",Tableau1[Colonne1],\"X\", Tableau1[Le tavail exercé représente-t-il un Risque lié au COVID  19 ? ],\"x\",Tableau1[Le tavail exercé représente-t-il un Risque lié au COVID  19 ? ],\"X\")","v":0}]
[null,null,null,null,null,null,null,null,null,null,null,null,null,null,null,null,null,29,{"$f":"COUNTIF(Tableau1[Age], R24)","v":0},{"$f":"COUNTIFS(Tableau1[Age], R24, Tableau1[Le tavail exercé représente-t-il un Risque lié au COVID  19 ? ],\"x\",Tableau1[Le tavail exercé représente-t-il un Risque lié au COVID  19 ? ],\"X\")","v":0},{"$f":"COUNTIFS(Tableau1[Age],R24, Tableau1[Colonne1],\"x\",Tableau1[Colonne1],\"X\")","v":0},{"$f":"COUNTIFS(Tableau1[Age],R24, Tableau1[Colonne1],\"x\",Tableau1[Colonne1],\"X\", Tableau1[Le tavail exercé représente-t-il un Risque lié au COVID  19 ? ],\"x\",Tableau1[Le tavail exercé représente-t-il un Risque lié au COVID  19 ? ],\"X\")","v":0}]
[null,null,null,null,null,null,null,null,null,null,null,null,null,null,null,null,null,30,{"$f":"COUNTIF(Tableau1[Age], R25)","v":0},{"$f":"COUNTIFS(Tableau1[Age], R25, Tableau1[Le tavail exercé représente-t-il un Risque lié au COVID  19 ? ],\"x\",Tableau1[Le tavail exercé représente-t-il un Risque lié au COVID  19 ? ],\"X\")","v":0},{"$f":"COUNTIFS(Tableau1[Age],R25, Tableau1[Colonne1],\"x\",Tableau1[Colonne1],\"X\")","v":0},{"$f":"COUNTIFS(Tableau1[Age],R25, Tableau1[Colonne1],\"x\",Tableau1[Colonne1],\"X\", Tableau1[Le tavail exercé représente-t-il un Risque lié au COVID  19 ? ],\"x\",Tableau1[Le tavail exercé représente-t-il un Risque lié au COVID  19 ? ],\"X\")","v":0}]
[null,null,null,null,null,null,null,null,null,null,null,null,null,null,null,null,null,31,{"$f":"COUNTIF(Tableau1[Age], R26)","v":0},{"$f":"COUNTIFS(Tableau1[Age], R26, Tableau1[Le tavail exercé représente-t-il un Risque lié au COVID  19 ? ],\"x\",Tableau1[Le tavail exercé représente-t-il un Risque lié au COVID  19 ? ],\"X\")","v":0},{"$f":"COUNTIFS(Tableau1[Age],R26, Tableau1[Colonne1],\"x\",Tableau1[Colonne1],\"X\")","v":0},{"$f":"COUNTIFS(Tableau1[Age],R26, Tableau1[Colonne1],\"x\",Tableau1[Colonne1],\"X\", Tableau1[Le tavail exercé représente-t-il un Risque lié au COVID  19 ? ],\"x\",Tableau1[Le tavail exercé représente-t-il un Risque lié au COVID  19 ? ],\"X\")","v":0}]
[null,null,null,null,null,null,null,null,null,null,null,null,null,null,null,null,null,32,{"$f":"COUNTIF(Tableau1[Age], R27)","v":0},{"$f":"COUNTIFS(Tableau1[Age], R27, Tableau1[Le tavail exercé représente-t-il un Risque lié au COVID  19 ? ],\"x\",Tableau1[Le tavail exercé représente-t-il un Risque lié au COVID  19 ? ],\"X\")","v":0},{"$f":"COUNTIFS(Tableau1[Age],R27, Tableau1[Colonne1],\"x\",Tableau1[Colonne1],\"X\")","v":0},{"$f":"COUNTIFS(Tableau1[Age],R27, Tableau1[Colonne1],\"x\",Tableau1[Colonne1],\"X\", Tableau1[Le tavail exercé représente-t-il un Risque lié au COVID  19 ? ],\"x\",Tableau1[Le tavail exercé représente-t-il un Risque lié au COVID  19 ? ],\"X\")","v":0}]
[null,null,null,null,null,null,null,null,null,null,null,null,null,null,null,null,null,33,{"$f":"COUNTIF(Tableau1[Age], R28)","v":0},{"$f":"COUNTIFS(Tableau1[Age], R28, Tableau1[Le tavail exercé représente-t-il un Risque lié au COVID  19 ? ],\"x\",Tableau1[Le tavail exercé représente-t-il un Risque lié au COVID  19 ? ],\"X\")","v":0},{"$f":"COUNTIFS(Tableau1[Age],R28, Tableau1[Colonne1],\"x\",Tableau1[Colonne1],\"X\")","v":0},{"$f":"COUNTIFS(Tableau1[Age],R28, Tableau1[Colonne1],\"x\",Tableau1[Colonne1],\"X\", Tableau1[Le tavail exercé représente-t-il un Risque lié au COVID  19 ? ],\"x\",Tableau1[Le tavail exercé représente-t-il un Risque lié au COVID  19 ? ],\"X\")","v":0}]
[null,null,null,null,null,null,null,null,null,"Les compétences critiques concernés par un risque d'exposition COVID 19",null,null,null,null,null,null,null,34,{"$f":"COUNTIF(Tableau1[Age], R29)","v":0},{"$f":"COUNTIFS(Tableau1[Age], R29, Tableau1[Le tavail exercé représente-t-il un Risque lié au COVID  19 ? ],\"x\",Tableau1[Le tavail exercé représente-t-il un Risque lié au COVID  19 ? ],\"X\")","v":0},{"$f":"COUNTIFS(Tableau1[Age],R29, Tableau1[Colonne1],\"x\",Tableau1[Colonne1],\"X\")","v":0},{"$f":"COUNTIFS(Tableau1[Age],R29, Tableau1[Colonne1],\"x\",Tableau1[Colonne1],\"X\", Tableau1[Le tavail exercé représente-t-il un Risque lié au COVID  19 ? ],\"x\",Tableau1[Le tavail exercé représente-t-il un Risque lié au COVID  19 ? ],\"X\")","v":0}]
[null,null,null,null,null,null,null,null,null,null,null,null,null,null,null,null,null,35,{"$f":"COUNTIF(Tableau1[Age], R30)","v":1},{"$f":"COUNTIFS(Tableau1[Age], R30, Tableau1[Le tavail exercé représente-t-il un Risque lié au COVID  19 ? ],\"x\",Tableau1[Le tavail exercé représente-t-il un Risque lié au COVID  19 ? ],\"X\")","v":1},{"$f":"COUNTIFS(Tableau1[Age],R30, Tableau1[Colonne1],\"x\",Tableau1[Colonne1],\"X\")","v":0},{"$f":"COUNTIFS(Tableau1[Age],R30, Tableau1[Colonne1],\"x\",Tableau1[Colonne1],\"X\", Tableau1[Le tavail exercé représente-t-il un Risque lié au COVID  19 ? ],\"x\",Tableau1[Le tavail exercé représente-t-il un Risque lié au COVID  19 ? ],\"X\")","v":0}]
[null,null,null,null,null,null,null,null,null,null,null,null,null,null,null,null,null,36,{"$f":"COUNTIF(Tableau1[Age], R31)","v":0},{"$f":"COUNTIFS(Tableau1[Age], R31, Tableau1[Le tavail exercé représente-t-il un Risque lié au COVID  19 ? ],\"x\",Tableau1[Le tavail exercé représente-t-il un Risque lié au COVID  19 ? ],\"X\")","v":0},{"$f":"COUNTIFS(Tableau1[Age],R31, Tableau1[Colonne1],\"x\",Tableau1[Colonne1],\"X\")","v":0},{"$f":"COUNTIFS(Tableau1[Age],R31, Tableau1[Colonne1],\"x\",Tableau1[Colonne1],\"X\", Tableau1[Le tavail exercé représente-t-il un Risque lié au COVID  19 ? ],\"x\",Tableau1[Le tavail exercé représente-t-il un Risque lié au COVID  19 ? ],\"X\")","v":0}]
[null,null,null,null,null,null,null,null,null,"Étiquettes de lignes","Nombre de METIER",null,null,null,null,null,null,40,{"$f":"COUNTIF(Tableau1[Age], R32)","v":0},{"$f":"COUNTIFS(Tableau1[Age], R32, Tableau1[Le tavail exercé représente-t-il un Risque lié au COVID  19 ? ],\"x\",Tableau1[Le tavail exercé représente-t-il un Risque lié au COVID  19 ? ],\"X\")","v":0},{"$f":"COUNTIFS(Tableau1[Age],R32, Tableau1[Colonne1],\"x\",Tableau1[Colonne1],\"X\")","v":0},{"$f":"COUNTIFS(Tableau1[Age],R32, Tableau1[Colonne1],\"x\",Tableau1[Colonne1],\"X\", Tableau1[Le tavail exercé représente-t-il un Risque lié au COVID  19 ? ],\"x\",Tableau1[Le tavail exercé représente-t-il un Risque lié au COVID  19 ? ],\"X\")","v":0}]
[null,null,null,null,null,null,null,null,null,"Secrétaire médical",2,null,null,null,null,null,null,41,{"$f":"COUNTIF(Tableau1[Age], R33)","v":0},{"$f":"COUNTIFS(Tableau1[Age], R33, Tableau1[Le tavail exercé représente-t-il un Risque lié au COVID  19 ? ],\"x\",Tableau1[Le tavail exercé représente-t-il un Risque lié au COVID  19 ? ],\"X\")","v":0},{"$f":"COUNTIFS(Tableau1[Age],R33, Tableau1[Colonne1],\"x\",Tableau1[Colonne1],\"X\")","v":0},{"$f":"COUNTIFS(Tableau1[Age],R33, Tableau1[Colonne1],\"x\",Tableau1[Colonne1],\"X\", Tableau1[Le tavail exercé représente-t-il un Risque lié au COVID  19 ? ],\"x\",Tableau1[Le tavail exercé représente-t-il un Risque lié au COVID  19 ? ],\"X\")","v":0}]
[null,null,null,null,null,null,null,null,null,"CM",1,null,null,null,null,null,null,42,{"$f":"COUNTIF(Tableau1[Age], R34)","v":2},{"$f":"COUNTIFS(Tableau1[Age], R34, Tableau1[Le tavail exercé représente-t-il un Risque lié au COVID  19 ? ],\"x\",Tableau1[Le tavail exercé représente-t-il un Risque lié au COVID  19 ? ],\"X\")","v":2},{"$f":"COUNTIFS(Tableau1[Age],R34, Tableau1[Colonne1],\"x\",Tableau1[Colonne1],\"X\")","v":0},{"$f":"COUNTIFS(Tableau1[Age],R34, Tableau1[Colonne1],\"x\",Tableau1[Colonne1],\"X\", Tableau1[Le tavail exercé représente-t-il un Risque lié au COVID  19 ? ],\"x\",Tableau1[Le tavail exercé représente-t-il un Risque lié au COVID  19 ? ],\"X\")","v":0}]
[null,null,null,null,null,null,null,null,null,"Total général",3,null,null,null,null,null,null,43,{"$f":"COUNTIF(Tableau1[Age], R35)","v":0},{"$f":"COUNTIFS(Tableau1[Age], R35, Tableau1[Le tavail exercé représente-t-il un Risque lié au COVID  19 ? ],\"x\",Tableau1[Le tavail exercé représente-t-il un Risque lié au COVID  19 ? ],\"X\")","v":0},{"$f":"COUNTIFS(Tableau1[Age],R35, Tableau1[Colonne1],\"x\",Tableau1[Colonne1],\"X\")","v":0},{"$f":"COUNTIFS(Tableau1[Age],R35, Tableau1[Colonne1],\"x\",Tableau1[Colonne1],\"X\", Tableau1[Le tavail exercé représente-t-il un Risque lié au COVID  19 ? ],\"x\",Tableau1[Le tavail exercé représente-t-il un Risque lié au COVID  19 ? ],\"X\")","v":0}]
[null,null,null,null,null,null,null,null,null,null,null,null,null,null,null,null,null,44,{"$f":"COUNTIF(Tableau1[Age], R36)","v":0},{"$f":"COUNTIFS(Tableau1[Age], R36, Tableau1[Le tavail exercé représente-t-il un Risque lié au COVID  19 ? ],\"x\",Tableau1[Le tavail exercé représente-t-il un Risque lié au COVID  19 ? ],\"X\")","v":0},{"$f":"COUNTIFS(Tableau1[Age],R36, Tableau1[Colonne1],\"x\",Tableau1[Colonne1],\"X\")","v":0},{"$f":"COUNTIFS(Tableau1[Age],R36, Tableau1[Colonne1],\"x\",Tableau1[Colonne1],\"X\", Tableau1[Le tavail exercé représente-t-il un Risque lié au COVID  19 ? ],\"x\",Tableau1[Le tavail exercé représente-t-il un Risque lié au COVID  19 ? ],\"X\")","v":0}]
[null,null,null,null,null,null,null,null,null,null,null,null,null,null,null,null,null,45,{"$f":"COUNTIF(Tableau1[Age], R37)","v":0},{"$f":"COUNTIFS(Tableau1[Age], R37, Tableau1[Le tavail exercé représente-t-il un Risque lié au COVID  19 ? ],\"x\",Tableau1[Le tavail exercé représente-t-il un Risque lié au COVID  19 ? ],\"X\")","v":0},{"$f":"COUNTIFS(Tableau1[Age],R37, Tableau1[Colonne1],\"x\",Tableau1[Colonne1],\"X\")","v":0},{"$f":"COUNTIFS(Tableau1[Age],R37, Tableau1[Colonne1],\"x\",Tableau1[Colonne1],\"X\", Tableau1[Le tavail exercé représente-t-il un Risque lié au COVID  19 ? ],\"x\",Tableau1[Le tavail exercé représente-t-il un Risque lié au COVID  19 ? ],\"X\")","v":0}]
[null,null,null,null,null,null,null,null,null,null,null,null,null,null,null,null,null,46,{"$f":"COUNTIF(Tableau1[Age], R38)","v":0},{"$f":"COUNTIFS(Tableau1[Age], R38, Tableau1[Le tavail exercé représente-t-il un Risque lié au COVID  19 ? ],\"x\",Tableau1[Le tavail exercé représente-t-il un Risque lié au COVID  19 ? ],\"X\")","v":0},{"$f":"COUNTIFS(Tableau1[Age],R38, Tableau1[Colonne1],\"x\",Tableau1[Colonne1],\"X\")","v":0},{"$f":"COUNTIFS(Tableau1[Age],R38, Tableau1[Colonne1],\"x\",Tableau1[Colonne1],\"X\", Tableau1[Le tavail exercé représente-t-il un Risque lié au COVID  19 ? ],\"x\",Tableau1[Le tavail exercé représente-t-il un Risque lié au COVID  19 ? ],\"X\")","v":0}]
[null,null,null,null,null,null,null,null,null,null,null,null,null,null,null,null,null,47,{"$f":"COUNTIF(Tableau1[Age], R39)","v":1},{"$f":"COUNTIFS(Tableau1[Age], R39, Tableau1[Le tavail exercé représente-t-il un Risque lié au COVID  19 ? ],\"x\",Tableau1[Le tavail exercé représente-t-il un Risque lié au COVID  19 ? ],\"X\")","v":0},{"$f":"COUNTIFS(Tableau1[Age],R39, Tableau1[Colonne1],\"x\",Tableau1[Colonne1],\"X\")","v":0},{"$f":"COUNTIFS(Tableau1[Age],R39, Tableau1[Colonne1],\"x\",Tableau1[Colonne1],\"X\", Tableau1[Le tavail exercé représente-t-il un Risque lié au COVID  19 ? ],\"x\",Tableau1[Le tavail exercé représente-t-il un Risque lié au COVID  19 ? ],\"X\")","v":0}]
[null,null,null,null,null,null,null,null,null,null,null,null,null,null,null,null,null,48,{"$f":"COUNTIF(Tableau1[Age], R40)","v":1},{"$f":"COUNTIFS(Tableau1[Age], R40, Tableau1[Le tavail exercé représente-t-il un Risque lié au COVID  19 ? ],\"x\",Tableau1[Le tavail exercé représente-t-il un Risque lié au COVID  19 ? ],\"X\")","v":1},{"$f":"COUNTIFS(Tableau1[Age],R40, Tableau1[Colonne1],\"x\",Tableau1[Colonne1],\"X\")","v":0},{"$f":"COUNTIFS(Tableau1[Age],R40, Tableau1[Colonne1],\"x\",Tableau1[Colonne1],\"X\", Tableau1[Le tavail exercé représente-t-il un Risque lié au COVID  19 ? ],\"x\",Tableau1[Le tavail exercé représente-t-il un Risque lié au COVID  19 ? ],\"X\")","v":0}]
[null,null,null,null,null,null,null,null,null,null,null,null,null,null,null,null,null,49,{"$f":"COUNTIF(Tableau1[Age], R41)","v":0},{"$f":"COUNTIFS(Tableau1[Age], R41, Tableau1[Le tavail exercé représente-t-il un Risque lié au COVID  19 ? ],\"x\",Tableau1[Le tavail exercé représente-t-il un Risque lié au COVID  19 ? ],\"X\")","v":0},{"$f":"COUNTIFS(Tableau1[Age],R41, Tableau1[Colonne1],\"x\",Tableau1[Colonne1],\"X\")","v":0},{"$f":"COUNTIFS(Tableau1[Age],R41, Tableau1[Colonne1],\"x\",Tableau1[Colonne1],\"X\", Tableau1[Le tavail exercé représente-t-il un Risque lié au COVID  19 ? ],\"x\",Tableau1[Le tavail exercé représente-t-il un Risque lié au COVID  19 ? ],\"X\")","v":0}]
[null,null,null,null,null,null,null,null,null,null,null,null,null,null,null,null,null,50,{"$f":"COUNTIF(Tableau1[Age], R42)","v":1},{"$f":"COUNTIFS(Tableau1[Age], R42, Tableau1[Le tavail exercé représente-t-il un Risque lié au COVID  19 ? ],\"x\",Tableau1[Le tavail exercé représente-t-il un Risque lié au COVID  19 ? ],\"X\")","v":0},{"$f":"COUNTIFS(Tableau1[Age],R42, Tableau1[Colonne1],\"x\",Tableau1[Colonne1],\"X\")","v":0},{"$f":"COUNTIFS(Tableau1[Age],R42, Tableau1[Colonne1],\"x\",Tableau1[Colonne1],\"X\", Tableau1[Le tavail exercé représente-t-il un Risque lié au COVID  19 ? ],\"x\",Tableau1[Le tavail exercé représente-t-il un Risque lié au COVID  19 ? ],\"X\")","v":0}]
[null,null,null,null,null,null,null,null,null,null,null,null,null,null,null,null,null,51,{"$f":"COUNTIF(Tableau1[Age], R43)","v":0},{"$f":"COUNTIFS(Tableau1[Age], R43, Tableau1[Le tavail exercé représente-t-il un Risque lié au COVID  19 ? ],\"x\",Tableau1[Le tavail exercé représente-t-il un Risque lié au COVID  19 ? ],\"X\")","v":0},{"$f":"COUNTIFS(Tableau1[Age],R43, Tableau1[Colonne1],\"x\",Tableau1[Colonne1],\"X\")","v":0},{"$f":"COUNTIFS(Tableau1[Age],R43, Tableau1[Colonne1],\"x\",Tableau1[Colonne1],\"X\", Tableau1[Le tavail exercé représente-t-il un Risque lié au COVID  19 ? ],\"x\",Tableau1[Le tavail exercé représente-t-il un Risque lié au COVID  19 ? ],\"X\")","v":0}]
[null,null,null,null,null,null,null,null,null,null,null,null,null,null,null,null,null,52,{"$f":"COUNTIF(Tableau1[Age], R44)","v":0},{"$f":"COUNTIFS(Tableau1[Age], R44, Tableau1[Le tavail exercé représente-t-il un Risque lié au COVID  19 ? ],\"x\",Tableau1[Le tavail exercé représente-t-il un Risque lié au COVID  19 ? ],\"X\")","v":0},{"$f":"COUNTIFS(Tableau1[Age],R44, Tableau1[Colonne1],\"x\",Tableau1[Colonne1],\"X\")","v":0},{"$f":"COUNTIFS(Tableau1[Age],R44, Tableau1[Colonne1],\"x\",Tableau1[Colonne1],\"X\", Tableau1[Le tavail exercé représente-t-il un Risque lié au COVID  19 ? ],\"x\",Tableau1[Le tavail exercé représente-t-il un Risque lié au COVID  19 ? ],\"X\")","v":0}]
[null,null,null,null,null,null,null,null,null,null,null,null,null,null,null,null,null,53,{"$f":"COUNTIF(Tableau1[Age], R45)","v":0},{"$f":"COUNTIFS(Tableau1[Age], R45, Tableau1[Le tavail exercé représente-t-il un Risque lié au COVID  19 ? ],\"x\",Tableau1[Le tavail exercé représente-t-il un Risque lié au COVID  19 ? ],\"X\")","v":0},{"$f":"COUNTIFS(Tableau1[Age],R45, Tableau1[Colonne1],\"x\",Tableau1[Colonne1],\"X\")","v":0},{"$f":"COUNTIFS(Tableau1[Age],R45, Tableau1[Colonne1],\"x\",Tableau1[Colonne1],\"X\", Tableau1[Le tavail exercé représente-t-il un Risque lié au COVID  19 ? ],\"x\",Tableau1[Le tavail exercé représente-t-il un Risque lié au COVID  19 ? ],\"X\")","v":0}]
[null,null,null,null,null,null,null,null,null,null,null,null,null,null,null,null,null,54,{"$f":"COUNTIF(Tableau1[Age], R46)","v":0},{"$f":"COUNTIFS(Tableau1[Age], R46, Tableau1[Le tavail exercé représente-t-il un Risque lié au COVID  19 ? ],\"x\",Tableau1[Le tavail exercé représente-t-il un Risque lié au COVID  19 ? ],\"X\")","v":0},{"$f":"COUNTIFS(Tableau1[Age],R46, Tableau1[Colonne1],\"x\",Tableau1[Colonne1],\"X\")","v":0},{"$f":"COUNTIFS(Tableau1[Age],R46, Tableau1[Colonne1],\"x\",Tableau1[Colonne1],\"X\", Tableau1[Le tavail exercé représente-t-il un Risque lié au COVID  19 ? ],\"x\",Tableau1[Le tavail exercé représente-t-il un Risque lié au COVID  19 ? ],\"X\")","v":0}]
[null,null,null,null,null,null,null,null,null,null,null,null,null,null,null,null,null,55,{"$f":"COUNTIF(Tableau1[Age], R47)","v":1},{"$f":"COUNTIFS(Tableau1[Age], R47, Tableau1[Le tavail exercé représente-t-il un Risque lié au COVID  19 ? ],\"x\",Tableau1[Le tavail exercé représente-t-il un Risque lié au COVID  19 ? ],\"X\")","v":0},{"$f":"COUNTIFS(Tableau1[Age],R47, Tableau1[Colonne1],\"x\",Tableau1[Colonne1],\"X\")","v":0},{"$f":"COUNTIFS(Tableau1[Age],R47, Tableau1[Colonne1],\"x\",Tableau1[Colonne1],\"X\", Tableau1[Le tavail exercé représente-t-il un Risque lié au COVID  19 ? ],\"x\",Tableau1[Le tavail exercé représente-t-il un Risque lié au COVID  19 ? ],\"X\")","v":0}]
[null,null,null,null,null,null,null,null,null,null,null,null,null,null,null,null,null,56,{"$f":"COUNTIF(Tableau1[Age], R48)","v":0},{"$f":"COUNTIFS(Tableau1[Age], R48, Tableau1[Le tavail exercé représente-t-il un Risque lié au COVID  19 ? ],\"x\",Tableau1[Le tavail exercé représente-t-il un Risque lié au COVID  19 ? ],\"X\")","v":0},{"$f":"COUNTIFS(Tableau1[Age],R48, Tableau1[Colonne1],\"x\",Tableau1[Colonne1],\"X\")","v":0},{"$f":"COUNTIFS(Tableau1[Age],R48, Tableau1[Colonne1],\"x\",Tableau1[Colonne1],\"X\", Tableau1[Le tavail exercé représente-t-il un Risque lié au COVID  19 ? ],\"x\",Tableau1[Le tavail exercé représente-t-il un Risque lié au COVID  19 ? ],\"X\")","v":0}]
[null,null,null,null,null,null,null,null,null,"Les métiers en tension concernés par un risque d'exposition COVID 19",null,null,null,null,null,null,null,57,{"$f":"COUNTIF(Tableau1[Age], R49)","v":0},{"$f":"COUNTIFS(Tableau1[Age], R49, Tableau1[Le tavail exercé représente-t-il un Risque lié au COVID  19 ? ],\"x\",Tableau1[Le tavail exercé représente-t-il un Risque lié au COVID  19 ? ],\"X\")","v":0},{"$f":"COUNTIFS(Tableau1[Age],R49, Tableau1[Colonne1],\"x\",Tableau1[Colonne1],\"X\")","v":0},{"$f":"COUNTIFS(Tableau1[Age],R49, Tableau1[Colonne1],\"x\",Tableau1[Colonne1],\"X\", Tableau1[Le tavail exercé représente-t-il un Risque lié au COVID  19 ? ],\"x\",Tableau1[Le tavail exercé représente-t-il un Risque lié au COVID  19 ? ],\"X\")","v":0}]
[null,null,null,null,null,null,null,null,null,null,null,null,null,null,null,null,null,58,{"$f":"COUNTIF(Tableau1[Age], R50)","v":1},{"$f":"COUNTIFS(Tableau1[Age], R50, Tableau1[Le tavail exercé représente-t-il un Risque lié au COVID  19 ? ],\"x\",Tableau1[Le tavail exercé représente-t-il un Risque lié au COVID  19 ? ],\"X\")","v":1},{"$f":"COUNTIFS(Tableau1[Age],R50, Tableau1[Colonne1],\"x\",Tableau1[Colonne1],\"X\")","v":0},{"$f":"COUNTIFS(Tableau1[Age],R50, Tableau1[Colonne1],\"x\",Tableau1[Colonne1],\"X\", Tableau1[Le tavail exercé représente-t-il un Risque lié au COVID  19 ? ],\"x\",Tableau1[Le tavail exercé représente-t-il un Risque lié au COVID  19 ? ],\"X\")","v":0}]
[null,null,null,null,null,null,null,null,null,null,null,null,null,null,null,null,null,59,{"$f":"COUNTIF(Tableau1[Age], R51)","v":0},{"$f":"COUNTIFS(Tableau1[Age], R51, Tableau1[Le tavail exercé représente-t-il un Risque lié au COVID  19 ? ],\"x\",Tableau1[Le tavail exercé représente-t-il un Risque lié au COVID  19 ? ],\"X\")","v":0},{"$f":"COUNTIFS(Tableau1[Age],R51, Tableau1[Colonne1],\"x\",Tableau1[Colonne1],\"X\")","v":0},{"$f":"COUNTIFS(Tableau1[Age],R51, Tableau1[Colonne1],\"x\",Tableau1[Colonne1],\"X\", Tableau1[Le tavail exercé représente-t-il un Risque lié au COVID  19 ? ],\"x\",Tableau1[Le tavail exercé représente-t-il un Risque lié au COVID  19 ? ],\"X\")","v":0}]
[null,null,null,null,null,null,null,null,null,"Étiquettes de lignes","Nombre de METIER",null,null,null,null,null,null,60,{"$f":"COUNTIF(Tableau1[Age], R52)","v":0},{"$f":"COUNTIFS(Tableau1[Age], R52, Tableau1[Le tavail exercé représente-t-il un Risque lié au COVID  19 ? ],\"x\",Tableau1[Le tavail exercé représente-t-il un Risque lié au COVID  19 ? ],\"X\")","v":0},{"$f":"COUNTIFS(Tableau1[Age],R52, Tableau1[Colonne1],\"x\",Tableau1[Colonne1],\"X\")","v":0},{"$f":"COUNTIFS(Tableau1[Age],R52, Tableau1[Colonne1],\"x\",Tableau1[Colonne1],\"X\", Tableau1[Le tavail exercé représente-t-il un Risque lié au COVID  19 ? ],\"x\",Tableau1[Le tavail exercé représente-t-il un Risque lié au COVID  19 ? ],\"X\")","v":0}]
[null,null,null,null,null,null,null,null,null,"IDEST",1,null,null,null,null,null,null,61,{"$f":"COUNTIF(Tableau1[Age], R53)","v":0},{"$f":"COUNTIFS(Tableau1[Age], R53, Tableau1[Le tavail exercé représente-t-il un Risque lié au COVID  19 ? ],\"x\",Tableau1[Le tavail exercé représente-t-il un Risque lié au COVID  19 ? ],\"X\")","v":0},{"$f":"COUNTIFS(Tableau1[Age],R53, Tableau1[Colonne1],\"x\",Tableau1[Colonne1],\"X\")","v":0},{"$f":"COUNTIFS(Tableau1[Age],R53, Tableau1[Colonne1],\"x\",Tableau1[Colonne1],\"X\", Tableau1[Le tavail exercé représente-t-il un Risque lié au COVID  19 ? ],\"x\",Tableau1[Le tavail exercé représente-t-il un Risque lié au COVID  19 ? ],\"X\")","v":0}]
[null,null,null,null,null,null,null,null,null,"MDT",2,null,null,null,null,null,null,62,{"$f":"COUNTIF(Tableau1[Age], R54)","v":0},{"$f":"COUNTIFS(Tableau1[Age], R54, Tableau1[Le tavail exercé représente-t-il un Risque lié au COVID  19 ? ],\"x\",Tableau1[Le tavail exercé représente-t-il un Risque lié au COVID  19 ? ],\"X\")","v":0},{"$f":"COUNTIFS(Tableau1[Age],R54, Tableau1[Colonne1],\"x\",Tableau1[Colonne1],\"X\")","v":0},{"$f":"COUNTIFS(Tableau1[Age],R54, Tableau1[Colonne1],\"x\",Tableau1[Colonne1],\"X\", Tableau1[Le tavail exercé représente-t-il un Risque lié au COVID  19 ? ],\"x\",Tableau1[Le tavail exercé représente-t-il un Risque lié au COVID  19 ? ],\"X\")","v":0}]
[null,null,null,null,null,null,null,null,null,"CM",1,null,null,null,null,null,null,63,{"$f":"COUNTIF(Tableau1[Age], R55)","v":0},{"$f":"COUNTIFS(Tableau1[Age], R55, Tableau1[Le tavail exercé représente-t-il un Risque lié au COVID  19 ? ],\"x\",Tableau1[Le tavail exercé représente-t-il un Risque lié au COVID  19 ? ],\"X\")","v":0},{"$f":"COUNTIFS(Tableau1[Age],R55, Tableau1[Colonne1],\"x\",Tableau1[Colonne1],\"X\")","v":0},{"$f":"COUNTIFS(Tableau1[Age],R55, Tableau1[Colonne1],\"x\",Tableau1[Colonne1],\"X\", Tableau1[Le tavail exercé représente-t-il un Risque lié au COVID  19 ? ],\"x\",Tableau1[Le tavail exercé représente-t-il un Risque lié au COVID  19 ? ],\"X\")","v":0}]
[null,null,null,null,null,null,null,null,null,"Total général",4,null,null,null,null,null,null,64,{"$f":"COUNTIF(Tableau1[Age], R56)","v":0},{"$f":"COUNTIFS(Tableau1[Age], R56, Tableau1[Le tavail exercé représente-t-il un Risque lié au COVID  19 ? ],\"x\",Tableau1[Le tavail exercé représente-t-il un Risque lié au COVID  19 ? ],\"X\")","v":0},{"$f":"COUNTIFS(Tableau1[Age],R56, Tableau1[Colonne1],\"x\",Tableau1[Colonne1],\"X\")","v":0},{"$f":"COUNTIFS(Tableau1[Age],R56, Tableau1[Colonne1],\"x\",Tableau1[Colonne1],\"X\", Tableau1[Le tavail exercé représente-t-il un Risque lié au COVID  19 ? ],\"x\",Tableau1[Le tavail exercé représente-t-il un Risque lié au COVID  19 ? ],\"X\")","v":0}]
[null,null,null,null,null,null,null,null,null,null,null,null,null,null,null,null,null,65,{"$f":"COUNTIF(Tableau1[Age], R57)","v":0},{"$f":"COUNTIFS(Tableau1[Age], R57, Tableau1[Le tavail exercé représente-t-il un Risque lié au COVID  19 ? ],\"x\",Tableau1[Le tavail exercé représente-t-il un Risque lié au COVID  19 ? ],\"X\")","v":0},{"$f":"COUNTIFS(Tableau1[Age],R57, Tableau1[Colonne1],\"x\",Tableau1[Colonne1],\"X\")","v":0},{"$f":"COUNTIFS(Tableau1[Age],R57, Tableau1[Colonne1],\"x\",Tableau1[Colonne1],\"X\", Tableau1[Le tavail exercé représente-t-il un Risque lié au COVID  19 ? ],\"x\",Tableau1[Le tavail exercé représente-t-il un Risque lié au COVID  19 ? ],\"X\")","v":0}]
[null,null,null,null,null,null,null,null,null,null,null,null,null,null,null,null,null,66,{"$f":"COUNTIF(Tableau1[Age], R58)","v":0},{"$f":"COUNTIFS(Tableau1[Age], R58, Tableau1[Le tavail exercé représente-t-il un Risque lié au COVID  19 ? ],\"x\",Tableau1[Le tavail exercé représente-t-il un Risque lié au COVID  19 ? ],\"X\")","v":0},{"$f":"COUNTIFS(Tableau1[Age],R58, Tableau1[Colonne1],\"x\",Tableau1[Colonne1],\"X\")","v":0},{"$f":"COUNTIFS(Tableau1[Age],R58, Tableau1[Colonne1],\"x\",Tableau1[Colonne1],\"X\", Tableau1[Le tavail exercé représente-t-il un Risque lié au COVID  19 ? ],\"x\",Tableau1[Le tavail exercé représente-t-il un Risque lié au COVID  19 ? ],\"X\")","v":0}]
[null,null,null,null,null,null,null,null,null,null,null,null,null,null,null,null,null,67,{"$f":"COUNTIF(Tableau1[Age], R59)","v":0},{"$f":"COUNTIFS(Tableau1[Age], R59, Tableau1[Le tavail exercé représente-t-il un Risque lié au COVID  19 ? ],\"x\",Tableau1[Le tavail exercé représente-t-il un Risque lié au COVID  19 ? ],\"X\")","v":0},{"$f":"COUNTIFS(Tableau1[Age],R59, Tableau1[Colonne1],\"x\",Tableau1[Colonne1],\"X\")","v":0},{"$f":"COUNTIFS(Tableau1[Age],R59, Tableau1[Colonne1],\"x\",Tableau1[Colonne1],\"X\", Tableau1[Le tavail exercé représente-t-il un Risque lié au COVID  19 ? ],\"x\",Tableau1[Le tavail exercé représente-t-il un Risque lié au COVID  19 ? ],\"X\")","v":0}]
[null,null,null,null,null,null,null,null,null,null,null,null,null,null,null,null,null,68,{"$f":"COUNTIF(Tableau1[Age], R60)","v":0},{"$f":"COUNTIFS(Tableau1[Age], R60, Tableau1[Le tavail exercé représente-t-il un Risque lié au COVID  19 ? ],\"x\",Tableau1[Le tavail exercé représente-t-il un Risque lié au COVID  19 ? ],\"X\")","v":0},{"$f":"COUNTIFS(Tableau1[Age],R60, Tableau1[Colonne1],\"x\",Tableau1[Colonne1],\"X\")","v":0},{"$f":"COUNTIFS(Tableau1[Age],R60, Tableau1[Colonne1],\"x\",Tableau1[Colonne1],\"X\", Tableau1[Le tavail exercé représente-t-il un Risque lié au COVID  19 ? ],\"x\",Tableau1[Le tavail exercé représente-t-il un Risque lié au COVID  19 ? ],\"X\")","v":0}]
[null,null,null,null,null,null,null,null,null,null,null,null,null,null,null,null,null,69,{"$f":"COUNTIF(Tableau1[Age], R61)","v":0},{"$f":"COUNTIFS(Tableau1[Age], R61, Tableau1[Le tavail exercé représente-t-il un Risque lié au COVID  19 ? ],\"x\",Tableau1[Le tavail exercé représente-t-il un Risque lié au COVID  19 ? ],\"X\")","v":0},{"$f":"COUNTIFS(Tableau1[Age],R61, Tableau1[Colonne1],\"x\",Tableau1[Colonne1],\"X\")","v":0},{"$f":"COUNTIFS(Tableau1[Age],R61, Tableau1[Colonne1],\"x\",Tableau1[Colonne1],\"X\", Tableau1[Le tavail exercé représente-t-il un Risque lié au COVID  19 ? ],\"x\",Tableau1[Le tavail exercé représente-t-il un Risque lié au COVID  19 ? ],\"X\")","v":0}]
[null,null,null,null,null,null,null,null,null,null,null,null,null,null,null,null,null,70,{"$f":"COUNTIF(Tableau1[Age], R62)","v":0},{"$f":"COUNTIFS(Tableau1[Age], R62, Tableau1[Le tavail exercé représente-t-il un Risque lié au COVID  19 ? ],\"x\",Tableau1[Le tavail exercé représente-t-il un Risque lié au COVID  19 ? ],\"X\")","v":0},{"$f":"COUNTIFS(Tableau1[Age],R62, Tableau1[Colonne1],\"x\",Tableau1[Colonne1],\"X\")","v":0},{"$f":"COUNTIFS(Tableau1[Age],R62, Tableau1[Colonne1],\"x\",Tableau1[Colonne1],\"X\", Tableau1[Le tavail exercé représente-t-il un Risque lié au COVID  19 ? ],\"x\",Tableau1[Le tavail exercé représente-t-il un Risque lié au COVID  19 ? ],\"X\")","v":0}]

{"sheet":"Age (Année en cours)","index":3,"n_rows":60,"n_cols":17,"rows_kept":60,"cut":false,"hidden":false,"merged":[[1,5,1,6],[2,5,2,6],[3,5,3,6]]}
[]
[null,"VOTRE STRUCTURE DES AGES  ?",null,null,null,"Nombre de Femmes ",null,{"$f":"COUNTIF(Tableau1[SEXE\n (F ou H)], \"F\")","v":7},{"$f":"H2/H4","v":0.875}]
[null,null,null,null,null,"Nombre d'Hommes",null,{"$f":"COUNTIF(Tableau1[SEXE\n (F ou H)], \"H\")","v":1},{"$f":"H3/H4","v":0.125}]
[null,"CARACTERISTIQUES POPULATION (ANNEE EN COURS)",null,null,null,"Effectif total",null,{"$f":"COUNT(Tableau1[ANNEE DE NAISSANCE])","v":8}]
[]
[null,null,null,null,null,null,null,null,null,null,null,null,null,null,null,null,"ANNEE EN COURS"]
[null,null,null,null,null,null,null,null,null,null,null,null,null,null,null,null,"Nombre"]
[null,null,null,null,null,null,null,null,null,null,null,null,null,null,null,18,{"$f":"COUNTIF(Tableau1[Age], 'Age (Année en cours)'!P8)","v":0}]
[null,null,null,null,null,null,null,null,null,null,null,null,null,null,null,19,{"$f":"COUNTIF(Tableau1[Age], 'Age (Année en cours)'!P9)","v":0}]
[null,null,null,null,null,null,null,null,null,null,null,null,null,null,null,20,{"$f":"COUNTIF(Tableau1[Age], 'Age (Année en cours)'!P10)","v":0}]
[null,null,null,null,null,null,null,null,null,null,null,null,null,null,null,21,{"$f":"COUNTIF(Tableau1[Age], 'Age (Année en cours)'!P11)","v":0}]
[null,null,null,null,null,null,null,null,null,null,null,null,null,null,null,22,{"$f":"COUNTIF(Tableau1[Age], 'Age (Année en cours)'!P12)","v":0}]
[null,null,null,null,null,null,null,null,null,null,null,null,null,null,null,23,{"$f":"COUNTIF(Tableau1[Age], 'Age (Année en cours)'!P13)","v":0}]
[null,null,null,null,null,null,null,null,null,null,null,null,null,null,null,24,{"$f":"COUNTIF(Tableau1[Age], 'Age (Année en cours)'!P14)","v":0}]
[null,null,null,null,null,null,null,null,null,null,null,null,null,null,null,25,{"$f":"COUNTIF(Tableau1[Age], 'Age (Année en cours)'!P15)","v":0}]
[null,null,null,null,null,null,null,null,null,null,null,null,null,null,null,26,{"$f":"COUNTIF(Tableau1[Age], 'Age (Année en cours)'!P16)","v":0}]
[null,null,null,null,null,null,null,null,null,null,null,null,null,null,null,27,{"$f":"COUNTIF(Tableau1[Age], 'Age (Année en cours)'!P17)","v":0}]
[null,null,null,null,null,null,null,null,null,null,null,null,null,null,null,28,{"$f":"COUNTIF(Tableau1[Age], 'Age (Année en cours)'!P18)","v":0}]
[null,null,null,null,null,null,null,null,null,null,null,null,null,null,null,29,{"$f":"COUNTIF(Tableau1[Age], 'Age (Année en cours)'!P19)","v":0}]
[null,null,null,null,null,null,null,null,null,null,null,null,null,null,null,30,{"$f":"COUNTIF(Tableau1[Age], 'Age (Année en cours)'!P20)","v":0}]
[null,null,null,null,null,null,null,null,null,null,null,null,null,null,null,31,{"$f":"COUNTIF(Tableau1[Age], 'Age (Année en cours)'!P21)","v":0}]
[null,null,null,null,null,null,null,null,null,null,null,null,null,null,null,32,{"$f":"COUNTIF(Tableau1[Age], 'Age (Année en cours)'!P22)","v":0}]
[null,null,null,null,null,null,null,null,null,null,null,null,null,null,null,33,{"$f":"COUNTIF(Tableau1[Age], 'Age (Année en cours)'!P23)","v":0}]
[null,null,null,null,null,null,null,null,null,null,null,null,null,null,null,34,{"$f":"COUNTIF(Tableau1[Age], 'Age (Année en cours)'!P24)","v":0}]
[null,null,null,null,null,null,null,null,null,null,null,null,null,null,null,35,{"$f":"COUNTIF(Tableau1[Age], 'Age (Année en cours)'!P25)","v":1}]
[null,null,null,null,null,null,null,null,null,null,null,null,null,null,null,36,{"$f":"COUNTIF(Tableau1[Age], 'Age (Année en cours)'!P26)","v":0}]
[null,null,null,null,null,null,null,null,null,null,null,null,null,null,null,37,{"$f":"COUNTIF(Tableau1[Age], 'Age (Année en cours)'!P27)","v":0}]
[null,null,null,null,null,null,null,null,null,null,null,null,null,null,null,38,{"$f":"COUNTIF(Tableau1[Age], 'Age (Année en cours)'!P28)","v":0}]
["POUR ALLER PLUS LOIN : Tableau Croisé Dynamique",null,null,null,null,null,null,null,null,null,null,null,null,null,null,39,{"$f":"COUNTIF(Tableau1[Age], 'Age (Année en cours)'!P29)","v":0}]
[null,null,null,null,null,null,null,null,null,null,null,null,null,null,null,40,{"$f":"COUNTIF(Tableau1[Age], 'Age (Année en cours)'!P30)","v":0}]
[null,"AGE Année en cours",null,null,null,null,null,null,null,null,null,null,null,null,null,41,{"$f":"COUNTIF(Tableau1[Age], 'Age (Année en cours)'!P31)","v":0}]
[null,null,null,null,null,null,null,null,null,null,null,null,null,null,null,42,{"$f":"COUNTIF(Tableau1[Age], 'Age (Année en cours)'!P32)","v":2}]
[null,"METIER","(Tous)",null,null,null,null,null,null,null,null,null,null,null,null,43,{"$f":"COUNTIF(Tableau1[Age], 'Age (Année en cours)'!P33)","v":0}]
[null,null,null,null,null,null,null,null,null,null,null,null,null,null,null,44,{"$f":"COUNTIF(Tableau1[Age], 'Age (Année en cours)'!P34)","v":0}]
[null,"Étiquettes de lignes","Nombre de Numéro",null,null,null,null,null,null,null,null,null,null,null,null,45,{"$f":"COUNTIF(Tableau1[Age], 'Age (Année en cours)'!P35)","v":0}]
[null,35,1,null,null,null,null,null,null,null,null,null,null,null,null,46,{"$f":"COUNTIF(Tableau1[Age], 'Age (Année en cours)'!P36)","v":0}]
[null,42,2,null,null,null,null,null,null,null,null,null,null,null,null,47,{"$f":"COUNTIF(Tableau1[Age], 'Age (Année en cours)'!P37)","v":1}]
[null,47,1,null,null,null,null,null,null,null,null,null,null,null,null,48,{"$f":"COUNTIF(Tableau1[Age], 'Age (Année en cours)'!P38)","v":1}]
[null,48,1,null,null,null,null,null,null,null,null,null,null,null,null,49,{"$f":"COUNTIF(Tableau1[Age], 'Age (Année en cours)'!P39)","v":0}]
[null,50,1,null,null,null,null,null,null,null,null,null,null,null,null,50,{"$f":"COUNTIF(Tableau1[Age], 'Age (Année en cours)'!P40)","v":1}]
[null,55,1,null,null,null,null,null,null,null,null,null,null,null,null,51,{"$f":"COUNTIF(Tableau1[Age], 'Age (Année en cours)'!P41)","v":0}]
[null,58,1,null,null,null,null,null,null,null,null,null,null,null,null,52,{"$f":"COUNTIF(Tableau1[Age], 'Age (Année en cours)'!P42)","v":0}]
[null,null,42,null,null,null,null,null,null,null,null,null,null,null,null,53,{"$f":"COUNTIF(Tableau1[Age], 'Age (Année en cours)'!P43)","v":0}]
[null,"Total général",50,null,null,null,null,null,null,null,null,null,null,null,null,54,{"$f":"COUNTIF(Tableau1[Age], 'Age (Année en cours)'!P44)","v":0}]
[null,null,null,null,null,null,null,null,null,null,null,null,null,null,null,55,{"$f":"COUNTIF(Tableau1[Age], 'Age (Année en cours)'!P45)","v":1}]
[null,null,null,null,null,null,null,null,null,null,null,null,null,null,null,56,{"$f":"COUNTIF(Tableau1[Age], 'Age (Année en cours)'!P46)","v":0}]
[null,null,null,null,null,null,null,null,null,null,null,null,null,null,null,57,{"$f":"COUNTIF(Tableau1[Age], 'Age (Année en cours)'!P47)","v":0}]
[null,null,null,null,null,null,null,null,null,null,null,null,null,null,null,58,{"$f":"COUNTIF(Tableau1[Age], 'Age (Année en cours)'!P48)","v":1}]
[null,null,null,null,null,null,null,null,null,null,null,null,null,null,null,59,{"$f":"COUNTIF(Tableau1[Age], 'Age (Année en cours)'!P49)","v":0}]
[null,null,null,null,null,null,null,null,null,null,null,null,null,null,null,60,{"$f":"COUNTIF(Tableau1[Age], 'Age (Année en cours)'!P50)","v":0}]
[null,null,null,null,null,null,null,null,null,null,null,null,null,null,null,61,{"$f":"COUNTIF(Tableau1[Age], 'Age (Année en cours)'!P51)","v":0}]
[null,null,null,null,null,null,null,null,null,null,null,null,null,null,null,62,{"$f":"COUNTIF(Tableau1[Age], 'Age (Année en cours)'!P52)","v":0}]
[null,null,null,null,null,null,null,null,null,null,null,null,null,null,null,63,{"$f":"COUNTIF(Tableau1[Age], 'Age (Année en cours)'!P53)","v":0}]
[null,null,null,null,null,null,null,null,null,null,null,null,null,null,null,64,{"$f":"COUNTIF(Tableau1[Age], 'Age (Année en cours)'!P54)","v":0}]
[null,null,null,null,null,null,null,null,null,null,null,null,null,null,null,65,{"$f":"COUNTIF(Tableau1[Age], 'Age (Année en cours)'!P55)","v":0}]
[null,null,null,null,null,null,null,null,null,null,null,null,null,null,null,66,{"$f":"COUNTIF(Tableau1[Age], 'Age (Année en cours)'!P56)","v":0}]
[null,null,null,null,null,null,null,null,null,null,null,null,null,null,null,67,{"$f":"COUNTIF(Tableau1[Age], 'Age (Année en cours)'!P57)","v":0}]
[null,null,null,null,null,null,null,null,null,null,null,null,null,null,null,68,{"$f":"COUNTIF(Tableau1[Age], 'Age (Année en cours)'!P58)","v":0}]
[null,null,null,null,null,null,null,null,null,null,null,null,null,null,null,69,{"$f":"COUNTIF(Tableau1[Age], 'Age (Année en cours)'!P59)","v":0}]
[null,null,null,null,null,null,null,null,null,null,null,null,null,null,null,70,{"$f":"COUNTIF(Tableau1[Age], 'Age (Année en cours)'!P60)","v":0}]

{"sheet":"Simulation Age","index":4,"n_rows":65,"n_cols":26,"rows_kept":65,"cut":false,"hidden":false,"merged":[[4,23,5,25]]}
[]
[null,"PROJECTION DE VOTRE STRUCTURE DES AGES  ?"]
[]
[]
[null,null,null,null,null,null,null,null,null,null,null,null,null,null,null,null,null,null,null,null,null,null,null,"NE PAS TOUCHER\nPRESENCE DE FORMULE"]
[]
[null,null,null,null,null,null,null,null,null,null,null,null,null,null,null,null,null,null,null,null,null,null,null,"Dans un an","Dans 2 ans","Année de votre choix"]
[null,null,null,null,null,null,null,null,null,null,null,null,null,null,null,null,null,null,null,null,null,null,18,{"$f":"COUNTIF(Tableau1[AGE 1], 'Simulation Age'!W8)","v":0},{"$f":"COUNTIF(Tableau1[AGE2], 'Simulation Age'!W8)","v":0},{"$f":"COUNTIF(Tableau1[AGE X], 'Simulation Age'!W8)","v":0}]
[null,null,null,null,null,null,null,null,null,null,null,null,null,null,null,null,null,null,null,null,null,null,19,{"$f":"COUNTIF(Tableau1[AGE 1], 'Simulation Age'!W9)","v":0},{"$f":"COUNTIF(Tableau1[AGE2], 'Simulation Age'!W9)","v":0},{"$f":"COUNTIF(Tableau1[AGE X], 'Simulation Age'!W9)","v":0}]
[null,null,null,null,null,null,null,null,null,null,null,null,null,null,null,null,null,null,null,null,null,null,20,{"$f":"COUNTIF(Tableau1[AGE 1], 'Simulation Age'!W10)","v":0},{"$f":"COUNTIF(Tableau1[AGE2], 'Simulation Age'!W10)","v":0},{"$f":"COUNTIF(Tableau1[AGE X], 'Simulation Age'!W10)","v":0}]
[null,null,null,null,null,null,null,null,null,null,null,null,null,null,null,null,null,null,null,null,null,null,21,{"$f":"COUNTIF(Tableau1[AGE 1], 'Simulation Age'!W11)","v":0},{"$f":"COUNTIF(Tableau1[AGE2], 'Simulation Age'!W11)","v":0},{"$f":"COUNTIF(Tableau1[AGE X], 'Simulation Age'!W11)","v":0}]
[null,null,null,null,null,null,null,null,null,null,null,null,null,null,null,null,null,null,null,null,null,null,22,{"$f":"COUNTIF(Tableau1[AGE 1], 'Simulation Age'!W12)","v":0},{"$f":"COUNTIF(Tableau1[AGE2], 'Simulation Age'!W12)","v":0},{"$f":"COUNTIF(Tableau1[AGE X], 'Simulation Age'!W12)","v":0}]
[null,null,null,null,null,null,null,null,null,null,null,null,null,null,null,null,null,null,null,null,null,null,23,{"$f":"COUNTIF(Tableau1[AGE 1], 'Simulation Age'!W13)","v":0},{"$f":"COUNTIF(Tableau1[AGE2], 'Simulation Age'!W13)","v":0},{"$f":"COUNTIF(Tableau1[AGE X], 'Simulation Age'!W13)","v":0}]
[null,null,null,null,null,null,null,null,null,null,null,null,null,null,null,null,null,null,null,null,null,null,24,{"$f":"COUNTIF(Tableau1[AGE 1], 'Simulation Age'!W14)","v":0},{"$f":"COUNTIF(Tableau1[AGE2], 'Simulation Age'!W14)","v":0},{"$f":"COUNTIF(Tableau1[AGE X], 'Simulation Age'!W14)","v":0}]
[null,null,null,null,null,null,null,null,null,null,null,null,null,null,null,null,null,null,null,null,null,null,25,{"$f":"COUNTIF(Tableau1[AGE 1], 'Simulation Age'!W15)","v":0},{"$f":"COUNTIF(Tableau1[AGE2], 'Simulation Age'!W15)","v":0},{"$f":"COUNTIF(Tableau1[AGE X], 'Simulation Age'!W15)","v":0}]
[null,null,null,null,null,null,null,null,null,null,null,null,null,null,null,null,null,null,null,null,null,null,26,{"$f":"COUNTIF(Tableau1[AGE 1], 'Simulation Age'!W16)","v":0},{"$f":"COUNTIF(Tableau1[AGE2], 'Simulation Age'!W16)","v":0},{"$f":"COUNTIF(Tableau1[AGE X], 'Simulation Age'!W16)","v":0}]
[null,null,null,null,null,null,null,null,null,null,null,null,null,null,null,null,null,null,null,null,null,null,27,{"$f":"COUNTIF(Tableau1[AGE 1], 'Simulation Age'!W17)","v":0},{"$f":"COUNTIF(Tableau1[AGE2], 'Simulation Age'!W17)","v":0},{"$f":"COUNTIF(Tableau1[AGE X], 'Simulation Age'!W17)","v":0}]
[null,null,null,null,null,null,null,null,null,null,null,null,null,null,null,null,null,null,null,null,null,null,28,{"$f":"COUNTIF(Tableau1[AGE 1], 'Simulation Age'!W18)","v":0},{"$f":"COUNTIF(Tableau1[AGE2], 'Simulation Age'!W18)","v":0},{"$f":"COUNTIF(Tableau1[AGE X], 'Simulation Age'!W18)","v":0}]
[null,null,null,null,null,null,null,null,null,null,null,null,null,null,null,null,null,null,null,null,null,null,29,{"$f":"COUNTIF(Tableau1[AGE 1], 'Simulation Age'!W19)","v":0},{"$f":"COUNTIF(Tableau1[AGE2], 'Simulation Age'!W19)","v":0},{"$f":"COUNTIF(Tableau1[AGE X], 'Simulation Age'!W19)","v":0}]
[null,null,null,null,null,null,null,null,null,null,null,null,null,null,null,null,null,null,null,null,null,null,30,{"$f":"COUNTIF(Tableau1[AGE 1], 'Simulation Age'!W20)","v":0},{"$f":"COUNTIF(Tableau1[AGE2], 'Simulation Age'!W20)","v":0},{"$f":"COUNTIF(Tableau1[AGE X], 'Simulation Age'!W20)","v":0}]
[null,null,null,null,null,null,null,null,null,null,null,null,null,null,null,null,null,null,null,null,null,null,31,{"$f":"COUNTIF(Tableau1[AGE 1], 'Simulation Age'!W21)","v":0},{"$f":"COUNTIF(Tableau1[AGE2], 'Simulation Age'!W21)","v":0},{"$f":"COUNTIF(Tableau1[AGE X], 'Simulation Age'!W21)","v":0}]
[null,null,null,null,null,null,null,null,null,null,null,null,null,null,null,null,null,null,null,null,null,null,32,{"$f":"COUNTIF(Tableau1[AGE 1], 'Simulation Age'!W22)","v":0},{"$f":"COUNTIF(Tableau1[AGE2], 'Simulation Age'!W22)","v":0},{"$f":"COUNTIF(Tableau1[AGE X], 'Simulation Age'!W22)","v":0}]
[null,null,null,null,null,null,null,null,null,null,null,null,null,null,null,null,null,null,null,null,null,null,33,{"$f":"COUNTIF(Tableau1[AGE 1], 'Simulation Age'!W23)","v":0},{"$f":"COUNTIF(Tableau1[AGE2], 'Simulation Age'!W23)","v":0},{"$f":"COUNTIF(Tableau1[AGE X], 'Simulation Age'!W23)","v":0}]
[null,null,null,null,null,null,null,null,null,null,null,null,null,null,null,null,null,null,null,null,null,null,34,{"$f":"COUNTIF(Tableau1[AGE 1], 'Simulation Age'!W24)","v":0},{"$f":"COUNTIF(Tableau1[AGE2], 'Simulation Age'!W24)","v":0},{"$f":"COUNTIF(Tableau1[AGE X], 'Simulation Age'!W24)","v":0}]
[null,null,null,null,null,null,null,null,null,null,null,null,null,null,null,null,null,null,null,null,null,null,35,{"$f":"COUNTIF(Tableau1[AGE 1], 'Simulation Age'!W25)","v":0},{"$f":"COUNTIF(Tableau1[AGE2], 'Simulation Age'!W25)","v":0},{"$f":"COUNTIF(Tableau1[AGE X], 'Simulation Age'!W25)","v":0}]
[null,null,null,null,null,null,null,null,null,null,null,null,null,null,null,null,null,null,null,null,null,null,36,{"$f":"COUNTIF(Tableau1[AGE 1], 'Simulation Age'!W26)","v":1},{"$f":"COUNTIF(Tableau1[AGE2], 'Simulation Age'!W26)","v":0},{"$f":"COUNTIF(Tableau1[AGE X], 'Simulation Age'!W26)","v":0}]
[null,null,null,null,null,null,null,null,null,null,null,null,null,null,null,null,null,null,null,null,null,null,37,{"$f":"COUNTIF(Tableau1[AGE 1], 'Simulation Age'!W27)","v":0},{"$f":"COUNTIF(Tableau1[AGE2], 'Simulation Age'!W27)","v":1},{"$f":"COUNTIF(Tableau1[AGE X], 'Simulation Age'!W27)","v":0}]
[null,null,null,null,null,null,null,null,null,null,null,null,null,null,null,null,null,null,null,null,null,null,38,{"$f":"COUNTIF(Tableau1[AGE 1], 'Simulation Age'!W28)","v":0},{"$f":"COUNTIF(Tableau1[AGE2], 'Simulation Age'!W28)","v":0},{"$f":"COUNTIF(Tableau1[AGE X], 'Simulation Age'!W28)","v":0}]
[null,null,null,null,null,null,null,null,null,null,null,null,null,null,null,null,null,null,null,null,null,null,39,{"$f":"COUNTIF(Tableau1[AGE 1], 'Simulation Age'!W29)","v":0},{"$f":"COUNTIF(Tableau1[AGE2], 'Simulation Age'!W29)","v":0},{"$f":"COUNTIF(Tableau1[AGE X], 'Simulation Age'!W29)","v":1}]
[null,null,null,null,null,null,null,null,null,null,null,null,null,null,null,null,null,null,null,null,null,null,40,{"$f":"COUNTIF(Tableau1[AGE 1], 'Simulation Age'!W30)","v":0},{"$f":"COUNTIF(Tableau1[AGE2], 'Simulation Age'!W30)","v":0},{"$f":"COUNTIF(Tableau1[AGE X], 'Simulation Age'!W30)","v":0}]
[null,null,null,null,null,null,null,null,null,null,null,null,null,null,null,null,null,null,null,null,null,null,41,{"$f":"COUNTIF(Tableau1[AGE 1], 'Simulation Age'!W31)","v":0},{"$f":"COUNTIF(Tableau1[AGE2], 'Simulation Age'!W31)","v":0},{"$f":"COUNTIF(Tableau1[AGE X], 'Simulation Age'!W31)","v":0}]
["POUR ALLER PLUS LOIN : Tableau Croisé Dynamique",null,null,null,null,null,null,null,null,null,null,null,null,null,null,null,null,null,null,null,null,null,42,{"$f":"COUNTIF(Tableau1[AGE 1], 'Simulation Age'!W32)","v":0},{"$f":"COUNTIF(Tableau1[AGE2], 'Simulation Age'!W32)","v":0},{"$f":"COUNTIF(Tableau1[AGE X], 'Simulation Age'!W32)","v":0}]
[null,null,null,null,null,null,null,null,null,null,null,null,null,null,null,null,null,null,null,null,null,null,43,{"$f":"COUNTIF(Tableau1[AGE 1], 'Simulation Age'!W33)","v":2},{"$f":"COUNTIF(Tableau1[AGE2], 'Simulation Age'!W33)","v":0},{"$f":"COUNTIF(Tableau1[AGE X], 'Simulation Age'!W33)","v":0}]
[null,"AGE Année en cours",null,null,null,null,null,"AGE +1",null,null,null,null,null,null,null,"AGE +X années",null,null,null,null,null,null,44,{"$f":"COUNTIF(Tableau1[AGE 1], 'Simulation Age'!W34)","v":0},{"$f":"COUNTIF(Tableau1[AGE2], 'Simulation Age'!W34)","v":2},{"$f":"COUNTIF(Tableau1[AGE X], 'Simulation Age'!W34)","v":0}]
[null,null,null,null,null,null,null,null,null,null,null,null,null,null,null,null,null,null,null,null,null,null,45,{"$f":"COUNTIF(Tableau1[AGE 1], 'Simulation Age'!W35)","v":0},{"$f":"COUNTIF(Tableau1[AGE2], 'Simulation Age'!W35)","v":0},{"$f":"COUNTIF(Tableau1[AGE X], 'Simulation Age'!W35)","v":0}]
[null,"METIER","(Tous)",null,null,null,null,"METIER","(Tous)",null,null,null,null,null,null,null,null,null,null,null,null,null,46,{"$f":"COUNTIF(Tableau1[AGE 1], 'Simulation Age'!W36)","v":0},{"$f":"COUNTIF(Tableau1[AGE2], 'Simulation Age'!W36)","v":0},{"$f":"COUNTIF(Tableau1[AGE X], 'Simulation Age'!W36)","v":2}]
[null,null,null,null,null,null,null,null,null,null,null,null,null,null,null,"METIER","(Tous)",null,null,null,null,null,47,{"$f":"COUNTIF(Tableau1[AGE 1], 'Simulation Age'!W37)","v":0},{"$f":"COUNTIF(Tableau1[AGE2], 'Simulation Age'!W37)","v":0},{"$f":"COUNTIF(Tableau1[AGE X], 'Simulation Age'!W37)","v":0}]
[null,"Étiquettes de lignes","Nombre de Numéro",null,null,null,null,"Étiquettes de lignes","Nombre de AGE2",null,null,null,null,null,null,null,null,null,null,null,null,null,48,{"$f":"COUNTIF(Tableau1[AGE 1], 'Simulation Age'!W38)","v":1},{"$f":"COUNTIF(Tableau1[AGE2], 'Simulation Age'!W38)","v":0},{"$f":"COUNTIF(Tableau1[AGE X], 'Simulation Age'!W38)","v":0}]
[null,36,1,null,null,null,null,37,1,null,null,null,null,null,null,"Étiquettes de lignes","Nombre de Numéro",null,null,null,null,null,49,{"$f":"COUNTIF(Tableau1[AGE 1], 'Simulation Age'!W39)","v":1},{"$f":"COUNTIF(Tableau1[AGE2], 'Simulation Age'!W39)","v":1},{"$f":"COUNTIF(Tableau1[AGE X], 'Simulation Age'!W39)","v":0}]
[null,43,2,null,null,null,null,44,2,null,null,null,null,null,null,39,1,null,null,null,null,null,50,{"$f":"COUNTIF(Tableau1[AGE 1], 'Simulation Age'!W40)","v":0},{"$f":"COUNTIF(Tableau1[AGE2], 'Simulation Age'!W40)","v":1},{"$f":"COUNTIF(Tableau1[AGE X], 'Simulation Age'!W40)","v":0}]
[null,48,1,null,null,null,null,49,1,null,null,null,null,null,null,46,2,null,null,null,null,null,51,{"$f":"COUNTIF(Tableau1[AGE 1], 'Simulation Age'!W41)","v":1},{"$f":"COUNTIF(Tableau1[AGE2], 'Simulation Age'!W41)","v":0},{"$f":"COUNTIF(Tableau1[AGE X], 'Simulation Age'!W41)","v":1}]
[null,49,1,null,null,null,null,50,1,null,null,null,null,null,null,51,1,null,null,null,null,null,52,{"$f":"COUNTIF(Tableau1[AGE 1], 'Simulation Age'!W42)","v":0},{"$f":"COUNTIF(Tableau1[AGE2], 'Simulation Age'!W42)","v":1},{"$f":"COUNTIF(Tableau1[AGE X], 'Simulation Age'!W42)","v":1}]
[null,51,1,null,null,null,null,52,1,null,null,null,null,null,null,52,1,null,null,null,null,null,53,{"$f":"COUNTIF(Tableau1[AGE 1], 'Simulation Age'!W43)","v":0},{"$f":"COUNTIF(Tableau1[AGE2], 'Simulation Age'!W43)","v":0},{"$f":"COUNTIF(Tableau1[AGE X], 'Simulation Age'!W43)","v":0}]
[null,56,1,null,null,null,null,57,1,null,null,null,null,null,null,54,1,null,null,null,null,null,54,{"$f":"COUNTIF(Tableau1[AGE 1], 'Simulation Age'!W44)","v":0},{"$f":"COUNTIF(Tableau1[AGE2], 'Simulation Age'!W44)","v":0},{"$f":"COUNTIF(Tableau1[AGE X], 'Simulation Age'!W44)","v":1}]
[null,59,1,null,null,null,null,60,1,null,null,null,null,null,null,59,1,null,null,null,null,null,55,{"$f":"COUNTIF(Tableau1[AGE 1], 'Simulation Age'!W45)","v":0},{"$f":"COUNTIF(Tableau1[AGE2], 'Simulation Age'!W45)","v":0},{"$f":"COUNTIF(Tableau1[AGE X], 'Simulation Age'!W45)","v":0}]
[null,null,42,null,null,null,null,null,42,null,null,null,null,null,null,62,1,null,null,null,null,null,56,{"$f":"COUNTIF(Tableau1[AGE 1], 'Simulation Age'!W46)","v":1},{"$f":"COUNTIF(Tableau1[AGE2], 'Simulation Age'!W46)","v":0},{"$f":"COUNTIF(Tableau1[AGE X], 'Simulation Age'!W46)","v":0}]
[null,"Total général",50,null,null,null,null,"Total général",50,null,null,null,null,null,null,null,42,null,null,null,null,null,57,{"$f":"COUNTIF(Tableau1[AGE 1], 'Simulation Age'!W47)","v":0},{"$f":"COUNTIF(Tableau1[AGE2], 'Simulation Age'!W47)","v":1},{"$f":"COUNTIF(Tableau1[AGE X], 'Simulation Age'!W47)","v":0}]
[null,null,null,null,null,null,null,null,null,null,null,null,null,null,null,"Total général",50,null,null,null,null,null,58,{"$f":"COUNTIF(Tableau1[AGE 1], 'Simulation Age'!W48)","v":0},{"$f":"COUNTIF(Tableau1[AGE2], 'Simulation Age'!W48)","v":0},{"$f":"COUNTIF(Tableau1[AGE X], 'Simulation Age'!W48)","v":0}]
[null,null,null,null,null,null,null,null,null,null,null,null,null,null,null,null,null,null,null,null,null,null,59,{"$f":"COUNTIF(Tableau1[AGE 1], 'Simulation Age'!W49)","v":1},{"$f":"COUNTIF(Tableau1[AGE2], 'Simulation Age'!W49)","v":0},{"$f":"COUNTIF(Tableau1[AGE X], 'Simulation Age'!W49)","v":1}]
[null,null,null,null,null,null,null,null,null,null,null,null,null,null,null,null,null,null,null,null,null,null,60,{"$f":"COUNTIF(Tableau1[AGE 1], 'Simulation Age'!W50)","v":0},{"$f":"COUNTIF(Tableau1[AGE2], 'Simulation Age'!W50)","v":1},{"$f":"COUNTIF(Tableau1[AGE X], 'Simulation Age'!W50)","v":0}]
[null,null,null,null,null,null,null,null,null,null,null,null,null,null,null,null,null,null,null,null,null,null,61,{"$f":"COUNTIF(Tableau1[AGE 1], 'Simulation Age'!W51)","v":0},{"$f":"COUNTIF(Tableau1[AGE2], 'Simulation Age'!W51)","v":0},{"$f":"COUNTIF(Tableau1[AGE X], 'Simulation Age'!W51)","v":0}]
[null,null,null,null,null,null,null,null,null,null,null,null,null,null,null,null,null,null,null,null,null,null,62,{"$f":"COUNTIF(Tableau1[AGE 1], 'Simulation Age'!W52)","v":0},{"$f":"COUNTIF(Tableau1[AGE2], 'Simulation Age'!W52)","v":0},{"$f":"COUNTIF(Tableau1[AGE X], 'Simulation Age'!W52)","v":1}]
[null,null,null,null,null,null,null,null,null,null,null,null,null,null,null,null,null,null,null,null,null,null,63,{"$f":"COUNTIF(Tableau1[AGE 1], 'Simulation Age'!W53)","v":0},{"$f":"COUNTIF(Tableau1[AGE2], 'Simulation Age'!W53)","v":0},{"$f":"COUNTIF(Tableau1[AGE X], 'Simulation Age'!W53)","v":0}]
[null,null,null,null,null,null,null,null,null,null,null,null,null,null,null,null,null,null,null,null,null,null,64,{"$f":"COUNTIF(Tableau1[AGE 1], 'Simulation Age'!W54)","v":0},{"$f":"COUNTIF(Tableau1[AGE2], 'Simulation Age'!W54)","v":0},{"$f":"COUNTIF(Tableau1[AGE X], 'Simulation Age'!W54)","v":0}]
[null,null,null,null,null,null,null,null,null,null,null,null,null,null,null,null,null,null,null,null,null,null,65,{"$f":"COUNTIF(Tableau1[AGE 1], 'Simulation Age'!W55)","v":0},{"$f":"COUNTIF(Tableau1[AGE2], 'Simulation Age'!W55)","v":0},{"$f":"COUNTIF(Tableau1[AGE X], 'Simulation Age'!W55)","v":0}]
[null,null,null,null,null,null,null,null,null,null,null,null,null,null,null,null,null,null,null,null,null,null,66,{"$f":"COUNTIF(Tableau1[AGE 1], 'Simulation Age'!W56)","v":0},{"$f":"COUNTIF(Tableau1[AGE2], 'Simulation Age'!W56)","v":0},{"$f":"COUNTIF(Tableau1[AGE X], 'Simulation Age'!W56)","v":0}]
[null,null,null,null,null,null,null,null,null,null,null,null,null,null,null,null,null,null,null,null,null,null,67,{"$f":"COUNTIF(Tableau1[AGE 1], 'Simulation Age'!W57)","v":0},{"$f":"COUNTIF(Tableau1[AGE2], 'Simulation Age'!W57)","v":0},{"$f":"COUNTIF(Tableau1[AGE X], 'Simulation Age'!W57)","v":0}]
[null,null,null,null,null,null,null,null,null,null,null,null,null,null,null,null,null,null,null,null,null,null,68,{"$f":"COUNTIF(Tableau1[AGE 1], 'Simulation Age'!W58)","v":0},{"$f":"COUNTIF(Tableau1[AGE2], 'Simulation Age'!W58)","v":0},{"$f":"COUNTIF(Tableau1[AGE X], 'Simulation Age'!W58)","v":0}]
[null,null,null,null,null,null,null,null,null,null,null,null,null,null,null,null,null,null,null,null,null,null,69,{"$f":"COUNTIF(Tableau1[AGE 1], 'Simulation Age'!W59)","v":0},{"$f":"COUNTIF(Tableau1[AGE2], 'Simulation Age'!W59)","v":0},{"$f":"COUNTIF(Tableau1[AGE X], 'Simulation Age'!W59)","v":0}]
[null,null,null,null,null,null,null,null,null,null,null,null,null,null,null,null,null,null,null,null,null,null,70,{"$f":"COUNTIF(Tableau1[AGE 1], 'Simulation Age'!W60)","v":0},{"$f":"COUNTIF(Tableau1[AGE2], 'Simulation Age'!W60)","v":0},{"$f":"COUNTIF(Tableau1[AGE X], 'Simulation Age'!W60)","v":0}]
[null,null,null,null,null,null,null,null,null,null,null,null,null,null,null,null,null,null,null,null,null,null,71,{"$f":"COUNTIF(Tableau1[AGE 1], 'Simulation Age'!W61)","v":0},{"$f":"COUNTIF(Tableau1[AGE2], 'Simulation Age'!W61)","v":0},{"$f":"COUNTIF(Tableau1[AGE X], 'Simulation Age'!W61)","v":0}]
[null,null,null,null,null,null,null,null,null,null,null,null,null,null,null,null,null,null,null,null,null,null,72,{"$f":"COUNTIF(Tableau1[AGE 1], 'Simulation Age'!W62)","v":0},{"$f":"COUNTIF(Tableau1[AGE2], 'Simulation Age'!W62)","v":0},{"$f":"COUNTIF(Tableau1[AGE X], 'Simulation Age'!W62)","v":0}]
[null,null,null,null,null,null,null,null,null,null,null,null,null,null,null,null,null,null,null,null,null,null,73,{"$f":"COUNTIF(Tableau1[AGE 1], 'Simulation Age'!W63)","v":0},{"$f":"COUNTIF(Tableau1[AGE2], 'Simulation Age'!W63)","v":0},{"$f":"COUNTIF(Tableau1[AGE X], 'Simulation Age'!W63)","v":0}]
[null,null,null,null,null,null,null,null,null,null,null,null,null,null,null,null,null,null,null,null,null,null,74,{"$f":"COUNTIF(Tableau1[AGE 1], 'Simulation Age'!W64)","v":0},{"$f":"COUNTIF(Tableau1[AGE2], 'Simulation Age'!W64)","v":0},{"$f":"COUNTIF(Tableau1[AGE X], 'Simulation Age'!W64)","v":0}]
[null,null,null,null,null,null,null,null,null,null,null,null,null,null,null,null,null,null,null,null,null,null,75,{"$f":"COUNTIF(Tableau1[AGE 1], 'Simulation Age'!W65)","v":0},{"$f":"COUNTIF(Tableau1[AGE2], 'Simulation Age'!W65)","v":0},{"$f":"COUNTIF(Tableau1[AGE X], 'Simulation Age'!W65)","v":0}]

{"sheet":"Age Ancienneté","index":5,"n_rows":63,"n_cols":4,"rows_kept":63,"cut":false,"hidden":false,"merged":[]}
[]
[null,"QUELS SONT LES LIENS ENTRE L'AGE ET L'ANCIENNETE  ?"]
[]
[null,"CARACTERISTIQUES POPULATION"]
[]
[]
[]
[]
[]
[null,"METIER","(Tous)"]
[]
[null,"Étiquettes de lignes","Somme de AGE","Somme de ANCIENNETE"]
[null,1,42,9]
[null,2,50,28]
[null,3,55,30]
[null,4,58,18]
[null,5,47,2]
[null,6,42,5]
[null,7,48,22]
[null,8,35,2]
[null,9,0,0]
[null,10,0,0]
[null,11,0,0]
[null,12,0,0]
[null,13,0,0]
[null,14,0,0]
[null,15,0,0]
[null,16,0,0]
[null,17,0,0]
[null,18,0,0]
[null,19,0,0]
[null,20,0,0]
[null,21,0,0]
[null,22,0,0]
[null,23,0,0]
[null,24,0,0]
[null,25,0,0]
[null,26,0,0]
[null,27,0,0]
[null,28,0,0]
[null,29,0,0]
[null,30,0,0]
[null,31,0,0]
[null,32,0,0]
[null,33,0,0]
[null,34,0,0]
[null,35,0,0]
[null,36,0,0]
[null,37,0,0]
[null,38,0,0]
[null,39,0,0]
[null,40,0,0]
[null,41,0,0]
[null,42,0,0]
[null,43,0,0]
[null,44,0,0]
[null,45,0,0]
[null,46,0,0]
[null,47,0,0]
[null,48,0,0]
[null,49,0,0]
[null,50,0,0]
[null,"Total général",377,116]

{"sheet":"Age Compétences","index":6,"n_rows":65,"n_cols":16,"rows_kept":65,"cut":false,"hidden":false,"merged":[]}
[]
[null,"QUELS SONT LES LIENS ENTRE L'AGE ET LES COMPETENCES CRITIQUES / METIER EN TENSION  ?"]
[]
[null,"CARACTERISTIQUES POPULATION"]
[]
[]
[]
[]
[]
[]
[null,null,null,null,null,null,null,null,null,null,null,null,null,"ANNEE EN COURS"]
[null,null,null,null,null,null,null,null,null,null,null,null,null,"Nombre","Compétences critiques","Metier en tensioin"]
[null,null,null,null,null,null,null,null,null,null,null,null,18,{"$f":"COUNTIF(Tableau1[Age], M13)","v":0},{"$f":"COUNTIFS(Tableau1[Age],M13, Tableau1[[COMPETENCES CRITIQUES ]],\"x\",Tableau1[[COMPETENCES CRITIQUES ]],\"X\")","v":0},{"$f":"COUNTIFS(Tableau1[Age],M13, Tableau1[METIER EN TENSION],\"x\",Tableau1[METIER EN TENSION],\"X\")","v":0}]
[null,null,null,null,null,null,null,null,null,null,null,null,19,{"$f":"COUNTIF(Tableau1[Age], M14)","v":0},{"$f":"COUNTIFS(Tableau1[Age],M14, Tableau1[[COMPETENCES CRITIQUES ]],\"x\",Tableau1[[COMPETENCES CRITIQUES ]],\"X\")","v":0},{"$f":"COUNTIFS(Tableau1[Age],M14, Tableau1[METIER EN TENSION],\"x\",Tableau1[METIER EN TENSION],\"X\")","v":0}]
[null,null,null,null,null,null,null,null,null,null,null,null,20,{"$f":"COUNTIF(Tableau1[Age], M15)","v":0},{"$f":"COUNTIFS(Tableau1[Age],M15, Tableau1[[COMPETENCES CRITIQUES ]],\"x\",Tableau1[[COMPETENCES CRITIQUES ]],\"X\")","v":0},{"$f":"COUNTIFS(Tableau1[Age],M15, Tableau1[METIER EN TENSION],\"x\",Tableau1[METIER EN TENSION],\"X\")","v":0}]
[null,null,null,null,null,null,null,null,null,null,null,null,21,{"$f":"COUNTIF(Tableau1[Age], M16)","v":0},{"$f":"COUNTIFS(Tableau1[Age],M16, Tableau1[[COMPETENCES CRITIQUES ]],\"x\",Tableau1[[COMPETENCES CRITIQUES ]],\"X\")","v":0},{"$f":"COUNTIFS(Tableau1[Age],M16, Tableau1[METIER EN TENSION],\"x\",Tableau1[METIER EN TENSION],\"X\")","v":0}]
[null,null,null,null,null,null,null,null,null,null,null,null,22,{"$f":"COUNTIF(Tableau1[Age], M17)","v":0},{"$f":"COUNTIFS(Tableau1[Age],M17, Tableau1[[COMPETENCES CRITIQUES ]],\"x\",Tableau1[[COMPETENCES CRITIQUES ]],\"X\")","v":0},{"$f":"COUNTIFS(Tableau1[Age],M17, Tableau1[METIER EN TENSION],\"x\",Tableau1[METIER EN TENSION],\"X\")","v":0}]
[null,null,null,null,null,null,null,null,null,null,null,null,23,{"$f":"COUNTIF(Tableau1[Age], M18)","v":0},{"$f":"COUNTIFS(Tableau1[Age],M18, Tableau1[[COMPETENCES CRITIQUES ]],\"x\",Tableau1[[COMPETENCES CRITIQUES ]],\"X\")","v":0},{"$f":"COUNTIFS(Tableau1[Age],M18, Tableau1[METIER EN TENSION],\"x\",Tableau1[METIER EN TENSION],\"X\")","v":0}]
[null,null,null,null,null,null,null,null,null,null,null,null,24,{"$f":"COUNTIF(Tableau1[Age], M19)","v":0},{"$f":"COUNTIFS(Tableau1[Age],M19, Tableau1[[COMPETENCES CRITIQUES ]],\"x\",Tableau1[[COMPETENCES CRITIQUES ]],\"X\")","v":0},{"$f":"COUNTIFS(Tableau1[Age],M19, Tableau1[METIER EN TENSION],\"x\",Tableau1[METIER EN TENSION],\"X\")","v":0}]
[null,null,null,null,null,null,null,null,null,null,null,null,25,{"$f":"COUNTIF(Tableau1[Age], M20)","v":0},{"$f":"COUNTIFS(Tableau1[Age],M20, Tableau1[[COMPETENCES CRITIQUES ]],\"x\",Tableau1[[COMPETENCES CRITIQUES ]],\"X\")","v":0},{"$f":"COUNTIFS(Tableau1[Age],M20, Tableau1[METIER EN TENSION],\"x\",Tableau1[METIER EN TENSION],\"X\")","v":0}]
[null,null,null,null,null,null,null,null,null,null,null,null,26,{"$f":"COUNTIF(Tableau1[Age], M21)","v":0},{"$f":"COUNTIFS(Tableau1[Age],M21, Tableau1[[COMPETENCES CRITIQUES ]],\"x\",Tableau1[[COMPETENCES CRITIQUES ]],\"X\")","v":0},{"$f":"COUNTIFS(Tableau1[Age],M21, Tableau1[METIER EN TENSION],\"x\",Tableau1[METIER EN TENSION],\"X\")","v":0}]
[null,null,null,null,null,null,null,null,null,null,null,null,27,{"$f":"COUNTIF(Tableau1[Age], M22)","v":0},{"$f":"COUNTIFS(Tableau1[Age],M22, Tableau1[[COMPETENCES CRITIQUES ]],\"x\",Tableau1[[COMPETENCES CRITIQUES ]],\"X\")","v":0},{"$f":"COUNTIFS(Tableau1[Age],M22, Tableau1[METIER EN TENSION],\"x\",Tableau1[METIER EN TENSION],\"X\")","v":0}]
[null,null,null,null,null,null,null,null,null,null,null,null,28,{"$f":"COUNTIF(Tableau1[Age], M23)","v":0},{"$f":"COUNTIFS(Tableau1[Age],M23, Tableau1[[COMPETENCES CRITIQUES ]],\"x\",Tableau1[[COMPETENCES CRITIQUES ]],\"X\")","v":0},{"$f":"COUNTIFS(Tableau1[Age],M23, Tableau1[METIER EN TENSION],\"x\",Tableau1[METIER EN TENSION],\"X\")","v":0}]
[null,null,null,null,null,null,null,null,null,null,null,null,29,{"$f":"COUNTIF(Tableau1[Age], M24)","v":0},{"$f":"COUNTIFS(Tableau1[Age],M24, Tableau1[[COMPETENCES CRITIQUES ]],\"x\",Tableau1[[COMPETENCES CRITIQUES ]],\"X\")","v":0},{"$f":"COUNTIFS(Tableau1[Age],M24, Tableau1[METIER EN TENSION],\"x\",Tableau1[METIER EN TENSION],\"X\")","v":0}]
[null,null,null,null,null,null,null,null,null,null,null,null,30,{"$f":"COUNTIF(Tableau1[Age], M25)","v":0},{"$f":"COUNTIFS(Tableau1[Age],M25, Tableau1[[COMPETENCES CRITIQUES ]],\"x\",Tableau1[[COMPETENCES CRITIQUES ]],\"X\")","v":0},{"$f":"COUNTIFS(Tableau1[Age],M25, Tableau1[METIER EN TENSION],\"x\",Tableau1[METIER EN TENSION],\"X\")","v":0}]
[null,null,null,null,null,null,null,null,null,null,null,null,31,{"$f":"COUNTIF(Tableau1[Age], M26)","v":0},{"$f":"COUNTIFS(Tableau1[Age],M26, Tableau1[[COMPETENCES CRITIQUES ]],\"x\",Tableau1[[COMPETENCES CRITIQUES ]],\"X\")","v":0},{"$f":"COUNTIFS(Tableau1[Age],M26, Tableau1[METIER EN TENSION],\"x\",Tableau1[METIER EN TENSION],\"X\")","v":0}]
[null,null,null,null,null,null,null,null,null,null,null,null,32,{"$f":"COUNTIF(Tableau1[Age], M27)","v":0},{"$f":"COUNTIFS(Tableau1[Age],M27, Tableau1[[COMPETENCES CRITIQUES ]],\"x\",Tableau1[[COMPETENCES CRITIQUES ]],\"X\")","v":0},{"$f":"COUNTIFS(Tableau1[Age],M27, Tableau1[METIER EN TENSION],\"x\",Tableau1[METIER EN TENSION],\"X\")","v":0}]
[null,null,null,null,null,null,null,null,null,null,null,null,33,{"$f":"COUNTIF(Tableau1[Age], M28)","v":0},{"$f":"COUNTIFS(Tableau1[Age],M28, Tableau1[[COMPETENCES CRITIQUES ]],\"x\",Tableau1[[COMPETENCES CRITIQUES ]],\"X\")","v":0},{"$f":"COUNTIFS(Tableau1[Age],M28, Tableau1[METIER EN TENSION],\"x\",Tableau1[METIER EN TENSION],\"X\")","v":0}]
[null,null,null,null,null,null,null,null,null,null,null,null,34,{"$f":"COUNTIF(Tableau1[Age], M29)","v":0},{"$f":"COUNTIFS(Tableau1[Age],M29, Tableau1[[COMPETENCES CRITIQUES ]],\"x\",Tableau1[[COMPETENCES CRITIQUES ]],\"X\")","v":0},{"$f":"COUNTIFS(Tableau1[Age],M29, Tableau1[METIER EN TENSION],\"x\",Tableau1[METIER EN TENSION],\"X\")","v":0}]
[null,null,null,null,null,null,null,null,null,null,null,null,35,{"$f":"COUNTIF(Tableau1[Age], M30)","v":1},{"$f":"COUNTIFS(Tableau1[Age],M30, Tableau1[[COMPETENCES CRITIQUES ]],\"x\",Tableau1[[COMPETENCES CRITIQUES ]],\"X\")","v":0},{"$f":"COUNTIFS(Tableau1[Age],M30, Tableau1[METIER EN TENSION],\"x\",Tableau1[METIER EN TENSION],\"X\")","v":1}]
[null,null,null,null,null,null,null,null,null,null,null,null,36,{"$f":"COUNTIF(Tableau1[Age], M31)","v":0},{"$f":"COUNTIFS(Tableau1[Age],M31, Tableau1[[COMPETENCES CRITIQUES ]],\"x\",Tableau1[[COMPETENCES CRITIQUES ]],\"X\")","v":0},{"$f":"COUNTIFS(Tableau1[Age],M31, Tableau1[METIER EN TENSION],\"x\",Tableau1[METIER EN TENSION],\"X\")","v":0}]
[null,null,null,null,null,null,null,null,null,null,null,null,37,{"$f":"COUNTIF(Tableau1[Age], M32)","v":0},{"$f":"COUNTIFS(Tableau1[Age],M32, Tableau1[[COMPETENCES CRITIQUES ]],\"x\",Tableau1[[COMPETENCES CRITIQUES ]],\"X\")","v":0},{"$f":"COUNTIFS(Tableau1[Age],M32, Tableau1[METIER EN TENSION],\"x\",Tableau1[METIER EN TENSION],\"X\")","v":0}]
[null,null,null,null,null,null,null,null,null,null,null,null,38,{"$f":"COUNTIF(Tableau1[Age], M33)","v":0},{"$f":"COUNTIFS(Tableau1[Age],M33, Tableau1[[COMPETENCES CRITIQUES ]],\"x\",Tableau1[[COMPETENCES CRITIQUES ]],\"X\")","v":0},{"$f":"COUNTIFS(Tableau1[Age],M33, Tableau1[METIER EN TENSION],\"x\",Tableau1[METIER EN TENSION],\"X\")","v":0}]
[null,null,null,null,null,null,null,null,null,null,null,null,39,{"$f":"COUNTIF(Tableau1[Age], M34)","v":0},{"$f":"COUNTIFS(Tableau1[Age],M34, Tableau1[[COMPETENCES CRITIQUES ]],\"x\",Tableau1[[COMPETENCES CRITIQUES ]],\"X\")","v":0},{"$f":"COUNTIFS(Tableau1[Age],M34, Tableau1[METIER EN TENSION],\"x\",Tableau1[METIER EN TENSION],\"X\")","v":0}]
[null,null,null,null,null,null,null,null,null,null,null,null,40,{"$f":"COUNTIF(Tableau1[Age], M35)","v":0},{"$f":"COUNTIFS(Tableau1[Age],M35, Tableau1[[COMPETENCES CRITIQUES ]],\"x\",Tableau1[[COMPETENCES CRITIQUES ]],\"X\")","v":0},{"$f":"COUNTIFS(Tableau1[Age],M35, Tableau1[METIER EN TENSION],\"x\",Tableau1[METIER EN TENSION],\"X\")","v":0}]
["POUR ALLER PLUS LOIN : Tableau Croisé Dynamique",null,null,null,null,null,null,null,null,null,null,null,41,{"$f":"COUNTIF(Tableau1[Age], M36)","v":0},{"$f":"COUNTIFS(Tableau1[Age],M36, Tableau1[[COMPETENCES CRITIQUES ]],\"x\",Tableau1[[COMPETENCES CRITIQUES ]],\"X\")","v":0},{"$f":"COUNTIFS(Tableau1[Age],M36, Tableau1[METIER EN TENSION],\"x\",Tableau1[METIER EN TENSION],\"X\")","v":0}]
[null,null,null,null,null,null,null,null,null,null,null,null,42,{"$f":"COUNTIF(Tableau1[Age], M37)","v":2},{"$f":"COUNTIFS(Tableau1[Age],M37, Tableau1[[COMPETENCES CRITIQUES ]],\"x\",Tableau1[[COMPETENCES CRITIQUES ]],\"X\")","v":1},{"$f":"COUNTIFS(Tableau1[Age],M37, Tableau1[METIER EN TENSION],\"x\",Tableau1[METIER EN TENSION],\"X\")","v":2}]
[null,null,null,null,null,null,null,null,null,null,null,null,43,{"$f":"COUNTIF(Tableau1[Age], M38)","v":0},{"$f":"COUNTIFS(Tableau1[Age],M38, Tableau1[[COMPETENCES CRITIQUES ]],\"x\",Tableau1[[COMPETENCES CRITIQUES ]],\"X\")","v":0},{"$f":"COUNTIFS(Tableau1[Age],M38, Tableau1[METIER EN TENSION],\"x\",Tableau1[METIER EN TENSION],\"X\")","v":0}]
[null,null,null,null,null,null,null,null,null,null,null,null,44,{"$f":"COUNTIF(Tableau1[Age], M39)","v":0},{"$f":"COUNTIFS(Tableau1[Age],M39, Tableau1[[COMPETENCES CRITIQUES ]],\"x\",Tableau1[[COMPETENCES CRITIQUES ]],\"X\")","v":0},{"$f":"COUNTIFS(Tableau1[Age],M39, Tableau1[METIER EN TENSION],\"x\",Tableau1[METIER EN TENSION],\"X\")","v":0}]
[null,null,null,null,null,null,null,null,null,null,null,null,45,{"$f":"COUNTIF(Tableau1[Age], M40)","v":0},{"$f":"COUNTIFS(Tableau1[Age],M40, Tableau1[[COMPETENCES CRITIQUES ]],\"x\",Tableau1[[COMPETENCES CRITIQUES ]],\"X\")","v":0},{"$f":"COUNTIFS(Tableau1[Age],M40, Tableau1[METIER EN TENSION],\"x\",Tableau1[METIER EN TENSION],\"X\")","v":0}]
[null,null,null,null,null,null,null,null,null,null,null,null,46,{"$f":"COUNTIF(Tableau1[Age], M41)","v":0},{"$f":"COUNTIFS(Tableau1[Age],M41, Tableau1[[COMPETENCES CRITIQUES ]],\"x\",Tableau1[[COMPETENCES CRITIQUES ]],\"X\")","v":0},{"$f":"COUNTIFS(Tableau1[Age],M41, Tableau1[METIER EN TENSION],\"x\",Tableau1[METIER EN TENSION],\"X\")","v":0}]
[null,"METIER","(Tous)",null,null,null,null,null,null,null,null,null,47,{"$f":"COUNTIF(Tableau1[Age], M42)","v":1},{"$f":"COUNTIFS(Tableau1[Age],M42, Tableau1[[COMPETENCES CRITIQUES ]],\"x\",Tableau1[[COMPETENCES CRITIQUES ]],\"X\")","v":0},{"$f":"COUNTIFS(Tableau1[Age],M42, Tableau1[METIER EN TENSION],\"x\",Tableau1[METIER EN TENSION],\"X\")","v":0}]
[null,null,null,null,null,null,null,null,null,null,null,null,48,{"$f":"COUNTIF(Tableau1[Age], M43)","v":1},{"$f":"COUNTIFS(Tableau1[Age],M43, Tableau1[[COMPETENCES CRITIQUES ]],\"x\",Tableau1[[COMPETENCES CRITIQUES ]],\"X\")","v":0},{"$f":"COUNTIFS(Tableau1[Age],M43, Tableau1[METIER EN TENSION],\"x\",Tableau1[METIER EN TENSION],\"X\")","v":0}]
[null,"Étiquettes de lignes","Nombre de COMPETENCES CRITIQUES ","Nombre de METIER EN TENSION",null,null,null,null,null,null,null,null,49,{"$f":"COUNTIF(Tableau1[Age], M44)","v":0},{"$f":"COUNTIFS(Tableau1[Age],M44, Tableau1[[COMPETENCES CRITIQUES ]],\"x\",Tableau1[[COMPETENCES CRITIQUES ]],\"X\")","v":0},{"$f":"COUNTIFS(Tableau1[Age],M44, Tableau1[METIER EN TENSION],\"x\",Tableau1[METIER EN TENSION],\"X\")","v":0}]
[null,35,null,1,null,null,null,null,null,null,null,null,50,{"$f":"COUNTIF(Tableau1[Age], M45)","v":1},{"$f":"COUNTIFS(Tableau1[Age],M45, Tableau1[[COMPETENCES CRITIQUES ]],\"x\",Tableau1[[COMPETENCES CRITIQUES ]],\"X\")","v":1},{"$f":"COUNTIFS(Tableau1[Age],M45, Tableau1[METIER EN TENSION],\"x\",Tableau1[METIER EN TENSION],\"X\")","v":0}]
[null,42,1,2,null,null,null,null,null,null,null,null,51,{"$f":"COUNTIF(Tableau1[Age], M46)","v":0},{"$f":"COUNTIFS(Tableau1[Age],M46, Tableau1[[COMPETENCES CRITIQUES ]],\"x\",Tableau1[[COMPETENCES CRITIQUES ]],\"X\")","v":0},{"$f":"COUNTIFS(Tableau1[Age],M46, Tableau1[METIER EN TENSION],\"x\",Tableau1[METIER EN TENSION],\"X\")","v":0}]
[null,47,null,null,null,null,null,null,null,null,null,null,52,{"$f":"COUNTIF(Tableau1[Age], M47)","v":0},{"$f":"COUNTIFS(Tableau1[Age],M47, Tableau1[[COMPETENCES CRITIQUES ]],\"x\",Tableau1[[COMPETENCES CRITIQUES ]],\"X\")","v":0},{"$f":"COUNTIFS(Tableau1[Age],M47, Tableau1[METIER EN TENSION],\"x\",Tableau1[METIER EN TENSION],\"X\")","v":0}]
[null,48,null,null,null,null,null,null,null,null,null,null,53,{"$f":"COUNTIF(Tableau1[Age], M48)","v":0},{"$f":"COUNTIFS(Tableau1[Age],M48, Tableau1[[COMPETENCES CRITIQUES ]],\"x\",Tableau1[[COMPETENCES CRITIQUES ]],\"X\")","v":0},{"$f":"COUNTIFS(Tableau1[Age],M48, Tableau1[METIER EN TENSION],\"x\",Tableau1[METIER EN TENSION],\"X\")","v":0}]
[null,50,1,null,null,null,null,null,null,null,null,null,54,{"$f":"COUNTIF(Tableau1[Age], M49)","v":0},{"$f":"COUNTIFS(Tableau1[Age],M49, Tableau1[[COMPETENCES CRITIQUES ]],\"x\",Tableau1[[COMPETENCES CRITIQUES ]],\"X\")","v":0},{"$f":"COUNTIFS(Tableau1[Age],M49, Tableau1[METIER EN TENSION],\"x\",Tableau1[METIER EN TENSION],\"X\")","v":0}]
[null,55,1,null,null,null,null,null,null,null,null,null,55,{"$f":"COUNTIF(Tableau1[Age], M50)","v":1},{"$f":"COUNTIFS(Tableau1[Age],M50, Tableau1[[COMPETENCES CRITIQUES ]],\"x\",Tableau1[[COMPETENCES CRITIQUES ]],\"X\")","v":1},{"$f":"COUNTIFS(Tableau1[Age],M50, Tableau1[METIER EN TENSION],\"x\",Tableau1[METIER EN TENSION],\"X\")","v":0}]
[null,58,null,1,null,null,null,null,null,null,null,null,56,{"$f":"COUNTIF(Tableau1[Age], M51)","v":0},{"$f":"COUNTIFS(Tableau1[Age],M51, Tableau1[[COMPETENCES CRITIQUES ]],\"x\",Tableau1[[COMPETENCES CRITIQUES ]],\"X\")","v":0},{"$f":"COUNTIFS(Tableau1[Age],M51, Tableau1[METIER EN TENSION],\"x\",Tableau1[METIER EN TENSION],\"X\")","v":0}]
[null,null,null,null,null,null,null,null,null,null,null,null,57,{"$f":"COUNTIF(Tableau1[Age], M52)","v":0},{"$f":"COUNTIFS(Tableau1[Age],M52, Tableau1[[COMPETENCES CRITIQUES ]],\"x\",Tableau1[[COMPETENCES CRITIQUES ]],\"X\")","v":0},{"$f":"COUNTIFS(Tableau1[Age],M52, Tableau1[METIER EN TENSION],\"x\",Tableau1[METIER EN TENSION],\"X\")","v":0}]
[null,"Total général",3,4,null,null,null,null,null,null,null,null,58,{"$f":"COUNTIF(Tableau1[Age], M53)","v":1},{"$f":"COUNTIFS(Tableau1[Age],M53, Tableau1[[COMPETENCES CRITIQUES ]],\"x\",Tableau1[[COMPETENCES CRITIQUES ]],\"X\")","v":0},{"$f":"COUNTIFS(Tableau1[Age],M53, Tableau1[METIER EN TENSION],\"x\",Tableau1[METIER EN TENSION],\"X\")","v":1}]
[null,null,null,null,null,null,null,null,null,null,null,null,59,{"$f":"COUNTIF(Tableau1[Age], M54)","v":0},{"$f":"COUNTIFS(Tableau1[Age],M54, Tableau1[[COMPETENCES CRITIQUES ]],\"x\",Tableau1[[COMPETENCES CRITIQUES ]],\"X\")","v":0},{"$f":"COUNTIFS(Tableau1[Age],M54, Tableau1[METIER EN TENSION],\"x\",Tableau1[METIER EN TENSION],\"X\")","v":0}]
[null,null,null,null,null,null,null,null,null,null,null,null,60,{"$f":"COUNTIF(Tableau1[Age], M55)","v":0},{"$f":"COUNTIFS(Tableau1[Age],M55, Tableau1[[COMPETENCES CRITIQUES ]],\"x\",Tableau1[[COMPETENCES CRITIQUES ]],\"X\")","v":0},{"$f":"COUNTIFS(Tableau1[Age],M55, Tableau1[METIER EN TENSION],\"x\",Tableau1[METIER EN TENSION],\"X\")","v":0}]
[null,null,null,null,null,null,null,null,null,null,null,null,61,{"$f":"COUNTIF(Tableau1[Age], M56)","v":0},{"$f":"COUNTIFS(Tableau1[Age],M56, Tableau1[[COMPETENCES CRITIQUES ]],\"x\",Tableau1[[COMPETENCES CRITIQUES ]],\"X\")","v":0},{"$f":"COUNTIFS(Tableau1[Age],M56, Tableau1[METIER EN TENSION],\"x\",Tableau1[METIER EN TENSION],\"X\")","v":0}]
[null,null,null,null,null,null,null,null,null,null,null,null,62,{"$f":"COUNTIF(Tableau1[Age], M57)","v":0},{"$f":"COUNTIFS(Tableau1[Age],M57, Tableau1[[COMPETENCES CRITIQUES ]],\"x\",Tableau1[[COMPETENCES CRITIQUES ]],\"X\")","v":0},{"$f":"COUNTIFS(Tableau1[Age],M57, Tableau1[METIER EN TENSION],\"x\",Tableau1[METIER EN TENSION],\"X\")","v":0}]
[null,null,null,null,null,null,null,null,null,null,null,null,63,{"$f":"COUNTIF(Tableau1[Age], M58)","v":0},{"$f":"COUNTIFS(Tableau1[Age],M58, Tableau1[[COMPETENCES CRITIQUES ]],\"x\",Tableau1[[COMPETENCES CRITIQUES ]],\"X\")","v":0},{"$f":"COUNTIFS(Tableau1[Age],M58, Tableau1[METIER EN TENSION],\"x\",Tableau1[METIER EN TENSION],\"X\")","v":0}]
[null,null,null,null,null,null,null,null,null,null,null,null,64,{"$f":"COUNTIF(Tableau1[Age], M59)","v":0},{"$f":"COUNTIFS(Tableau1[Age],M59, Tableau1[[COMPETENCES CRITIQUES ]],\"x\",Tableau1[[COMPETENCES CRITIQUES ]],\"X\")","v":0},{"$f":"COUNTIFS(Tableau1[Age],M59, Tableau1[METIER EN TENSION],\"x\",Tableau1[METIER EN TENSION],\"X\")","v":0}]
[null,null,null,null,null,null,null,null,null,null,null,null,65,{"$f":"COUNTIF(Tableau1[Age], M60)","v":0},{"$f":"COUNTIFS(Tableau1[Age],M60, Tableau1[[COMPETENCES CRITIQUES ]],\"x\",Tableau1[[COMPETENCES CRITIQUES ]],\"X\")","v":0},{"$f":"COUNTIFS(Tableau1[Age],M60, Tableau1[METIER EN TENSION],\"x\",Tableau1[METIER EN TENSION],\"X\")","v":0}]
[null,null,null,null,null,null,null,null,null,null,null,null,66,{"$f":"COUNTIF(Tableau1[Age], M61)","v":0},{"$f":"COUNTIFS(Tableau1[Age],M61, Tableau1[[COMPETENCES CRITIQUES ]],\"x\",Tableau1[[COMPETENCES CRITIQUES ]],\"X\")","v":0},{"$f":"COUNTIFS(Tableau1[Age],M61, Tableau1[METIER EN TENSION],\"x\",Tableau1[METIER EN TENSION],\"X\")","v":0}]
[null,null,null,null,null,null,null,null,null,null,null,null,67,{"$f":"COUNTIF(Tableau1[Age], M62)","v":0},{"$f":"COUNTIFS(Tableau1[Age],M62, Tableau1[[COMPETENCES CRITIQUES ]],\"x\",Tableau1[[COMPETENCES CRITIQUES ]],\"X\")","v":0},{"$f":"COUNTIFS(Tableau1[Age],M62, Tableau1[METIER EN TENSION],\"x\",Tableau1[METIER EN TENSION],\"X\")","v":0}]
[null,null,null,null,null,null,null,null,null,null,null,null,68,{"$f":"COUNTIF(Tableau1[Age], M63)","v":0},{"$f":"COUNTIFS(Tableau1[Age],M63, Tableau1[[COMPETENCES CRITIQUES ]],\"x\",Tableau1[[COMPETENCES CRITIQUES ]],\"X\")","v":0},{"$f":"COUNTIFS(Tableau1[Age],M63, Tableau1[METIER EN TENSION],\"x\",Tableau1[METIER EN TENSION],\"X\")","v":0}]
[null,null,null,null,null,null,null,null,null,null,null,null,69,{"$f":"COUNTIF(Tableau1[Age], M64)","v":0},{"$f":"COUNTIFS(Tableau1[Age],M64, Tableau1[[COMPETENCES CRITIQUES ]],\"x\",Tableau1[[COMPETENCES CRITIQUES ]],\"X\")","v":0},{"$f":"COUNTIFS(Tableau1[Age],M64, Tableau1[METIER EN TENSION],\"x\",Tableau1[METIER EN TENSION],\"X\")","v":0}]
[null,null,null,null,null,null,null,null,null,null,null,null,70,{"$f":"COUNTIF(Tableau1[Age], M65)","v":0},{"$f":"COUNTIFS(Tableau1[Age],M65, Tableau1[[COMPETENCES CRITIQUES ]],\"x\",Tableau1[[COMPETENCES CRITIQUES ]],\"X\")","v":0},{"$f":"COUNTIFS(Tableau1[Age],M65, Tableau1[METIER EN TENSION],\"x\",Tableau1[METIER EN TENSION],\"X\")","v":0}]

{"sheet":"Simulation Compétences Métiers ","index":7,"n_rows":69,"n_cols":29,"rows_kept":69,"cut":false,"hidden":false,"merged":[[5,19,6,28]]}
[]
[null,"QUELS SONT LES LIENS ENTRE L'AGE ET LES COMPETENCES  / METIERS EN TENSION ?"]
[]
[null,"CARACTERISTIQUES POPULATION"]
[]
[null,null,null,null,null,null,null,null,null,null,null,null,null,null,null,null,null,null,null,"NE PAS TOUCHER\nPRESENCE DE FORMULE"]
[]
[]
[]
[]
[]
[null,null,null,null,null,null,null,null,null,null,null,null,null,null,null,null,null,null,null,null,"Compétences critiques","Age+1","Age+2","Age+X",null,"Metier en tension","Age+1","Age+2","Age+X"]
[null,null,null,null,null,null,null,null,null,null,null,null,null,null,null,null,null,null,null,18,{"$f":"COUNTIFS(Tableau1[Age],T13, Tableau1[[COMPETENCES CRITIQUES ]],\"x\",Tableau1[[COMPETENCES CRITIQUES ]],\"X\")","v":0},{"$f":"IF($U13=0, 0, $T13+1)","v":0},{"$f":"IF($U13=0, 0, $T13+2)","v":0},{"$f":"IF($U13=0, 0, $T13+Données!$O$4)","v":0},18,{"$f":"COUNTIFS(Tableau1[Age],Y13, Tableau1[METIER EN TENSION],\"x\",Tableau1[METIER EN TENSION],\"X\")","v":0},{"$f":"IF($Z13=0, 0, $T13+1)","v":0},{"$f":"IF($Z13=0, 0, $T13+2)","v":0},{"$f":"IF($Z13=0, 0, $T13+Données!$O$4)","v":0}]
[null,null,null,null,null,null,null,null,null,null,null,null,null,null,null,null,null,null,null,19,{"$f":"COUNTIFS(Tableau1[Age],T14, Tableau1[[COMPETENCES CRITIQUES ]],\"x\",Tableau1[[COMPETENCES CRITIQUES ]],\"X\")","v":0},{"$f":"IF($U14=0, 0, T14+1)","v":0},{"$f":"IF($U14=0, 0, $T14+2)","v":0},{"$f":"IF($U14=0, 0, $T14+Données!$O$4)","v":0},19,{"$f":"COUNTIFS(Tableau1[Age],Y14, Tableau1[METIER EN TENSION],\"x\",Tableau1[METIER EN TENSION],\"X\")","v":0},{"$f":"IF($Z14=0, 0, $T14+1)","v":0},{"$f":"IF($Z14=0, 0, $T14+2)","v":0},{"$f":"IF($Z14=0, 0, $T14+Données!$O$4)","v":0}]
[null,null,null,null,null,null,null,null,null,null,null,null,null,null,null,null,null,null,null,20,{"$f":"COUNTIFS(Tableau1[Age],T15, Tableau1[[COMPETENCES CRITIQUES ]],\"x\",Tableau1[[COMPETENCES CRITIQUES ]],\"X\")","v":0},0,0,{"$f":"IF($U15=0, 0, $T15+Données!$O$4)","v":0},20,{"$f":"COUNTIFS(Tableau1[Age],Y15, Tableau1[METIER EN TENSION],\"x\",Tableau1[METIER EN TENSION],\"X\")","v":0},0,0,{"$f":"IF($Z15=0, 0, $T15+Données!$O$4)","v":0}]
[null,null,null,null,null,null,null,null,null,null,null,null,null,null,null,null,null,null,null,21,{"$f":"COUNTIFS(Tableau1[Age],T16, Tableau1[[COMPETENCES CRITIQUES ]],\"x\",Tableau1[[COMPETENCES CRITIQUES ]],\"X\")","v":0},0,0,{"$f":"IF($U16=0, 0, $T16+Données!$O$4)","v":0},21,{"$f":"COUNTIFS(Tableau1[Age],Y16, Tableau1[METIER EN TENSION],\"x\",Tableau1[METIER EN TENSION],\"X\")","v":0},0,0,{"$f":"IF($Z16=0, 0, $T16+Données!$O$4)","v":0}]
[null,null,null,null,null,null,null,null,null,null,null,null,null,null,null,null,null,null,null,22,{"$f":"COUNTIFS(Tableau1[Age],T17, Tableau1[[COMPETENCES CRITIQUES ]],\"x\",Tableau1[[COMPETENCES CRITIQUES ]],\"X\")","v":0},0,0,{"$f":"IF($U17=0, 0, $T17+Données!$O$4)","v":0},22,{"$f":"COUNTIFS(Tableau1[Age],Y17, Tableau1[METIER EN TENSION],\"x\",Tableau1[METIER EN TENSION],\"X\")","v":0},0,0,{"$f":"IF($Z17=0, 0, $T17+Données!$O$4)","v":0}]
[null,null,null,null,null,null,null,null,null,null,null,null,null,null,null,null,null,null,null,23,{"$f":"COUNTIFS(Tableau1[Age],T18, Tableau1[[COMPETENCES CRITIQUES ]],\"x\",Tableau1[[COMPETENCES CRITIQUES ]],\"X\")","v":0},0,0,{"$f":"IF($U18=0, 0, $T18+Données!$O$4)","v":0},23,{"$f":"COUNTIFS(Tableau1[Age],Y18, Tableau1[METIER EN TENSION],\"x\",Tableau1[METIER EN TENSION],\"X\")","v":0},0,0,{"$f":"IF($Z18=0, 0, $T18+Données!$O$4)","v":0}]
[null,null,null,null,null,null,null,null,null,null,null,null,null,null,null,null,null,null,null,24,{"$f":"COUNTIFS(Tableau1[Age],T19, Tableau1[[COMPETENCES CRITIQUES ]],\"x\",Tableau1[[COMPETENCES CRITIQUES ]],\"X\")","v":0},0,0,{"$f":"IF($U19=0, 0, $T19+Données!$O$4)","v":0},24,{"$f":"COUNTIFS(Tableau1[Age],Y19, Tableau1[METIER EN TENSION],\"x\",Tableau1[METIER EN TENSION],\"X\")","v":0},0,0,{"$f":"IF($Z19=0, 0, $T19+Données!$O$4)","v":0}]
[null,null,null,null,null,null,null,null,null,null,null,null,null,null,null,null,null,null,null,25,{"$f":"COUNTIFS(Tableau1[Age],T20, Tableau1[[COMPETENCES CRITIQUES ]],\"x\",Tableau1[[COMPETENCES CRITIQUES ]],\"X\")","v":0},0,0,{"$f":"IF($U20=0, 0, $T20+Données!$O$4)","v":0},25,{"$f":"COUNTIFS(Tableau1[Age],Y20, Tableau1[METIER EN TENSION],\"x\",Tableau1[METIER EN TENSION],\"X\")","v":0},0,0,{"$f":"IF($Z20=0, 0, $T20+Données!$O$4)","v":0}]
[null,null,null,null,null,null,null,null,null,null,null,null,null,null,null,null,null,null,null,26,{"$f":"COUNTIFS(Tableau1[Age],T21, Tableau1[[COMPETENCES CRITIQUES ]],\"x\",Tableau1[[COMPETENCES CRITIQUES ]],\"X\")","v":0},0,0,{"$f":"IF($U21=0, 0, $T21+Données!$O$4)","v":0},26,{"$f":"COUNTIFS(Tableau1[Age],Y21, Tableau1[METIER EN TENSION],\"x\",Tableau1[METIER EN TENSION],\"X\")","v":0},0,0,{"$f":"IF($Z21=0, 0, $T21+Données!$O$4)","v":0}]
[null,null,null,null,null,null,null,null,null,null,null,null,null,null,null,null,null,null,null,27,{"$f":"COUNTIFS(Tableau1[Age],T22, Tableau1[[COMPETENCES CRITIQUES ]],\"x\",Tableau1[[COMPETENCES CRITIQUES ]],\"X\")","v":0},0,0,{"$f":"IF($U22=0, 0, $T22+Données!$O$4)","v":0},27,{"$f":"COUNTIFS(Tableau1[Age],Y22, Tableau1[METIER EN TENSION],\"x\",Tableau1[METIER EN TENSION],\"X\")","v":0},0,0,{"$f":"IF($Z22=0, 0, $T22+Données!$O$4)","v":0}]
[null,null,null,null,null,null,null,null,null,null,null,null,null,null,null,null,null,null,null,28,{"$f":"COUNTIFS(Tableau1[Age],T23, Tableau1[[COMPETENCES CRITIQUES ]],\"x\",Tableau1[[COMPETENCES CRITIQUES ]],\"X\")","v":0},0,0,{"$f":"IF($U23=0, 0, $T23+Données!$O$4)","v":0},28,{"$f":"COUNTIFS(Tableau1[Age],Y23, Tableau1[METIER EN TENSION],\"x\",Tableau1[METIER EN TENSION],\"X\")","v":0},0,0,{"$f":"IF($Z23=0, 0, $T23+Données!$O$4)","v":0}]
[null,null,null,null,null,null,null,null,null,null,null,null,null,null,null,null,null,null,null,29,{"$f":"COUNTIFS(Tableau1[Age],T24, Tableau1[[COMPETENCES CRITIQUES ]],\"x\",Tableau1[[COMPETENCES CRITIQUES ]],\"X\")","v":0},0,0,{"$f":"IF($U24=0, 0, $T24+Données!$O$4)","v":0},29,{"$f":"COUNTIFS(Tableau1[Age],Y24, Tableau1[METIER EN TENSION],\"x\",Tableau1[METIER EN TENSION],\"X\")","v":0},0,0,{"$f":"IF($Z24=0, 0, $T24+Données!$O$4)","v":0}]
[null,null,null,null,null,null,null,null,null,null,null,null,null,null,null,null,null,null,null,30,{"$f":"COUNTIFS(Tableau1[Age],T25, Tableau1[[COMPETENCES CRITIQUES ]],\"x\",Tableau1[[COMPETENCES CRITIQUES ]],\"X\")","v":0},0,0,{"$f":"IF($U25=0, 0, $T25+Données!$O$4)","v":0},30,{"$f":"COUNTIFS(Tableau1[Age],Y25, Tableau1[METIER EN TENSION],\"x\",Tableau1[METIER EN TENSION],\"X\")","v":0},0,0,{"$f":"IF($Z25=0, 0, $T25+Données!$O$4)","v":0}]
[null,null,null,null,null,null,null,null,null,null,null,null,null,null,null,null,null,null,null,31,{"$f":"COUNTIFS(Tableau1[Age],T26, Tableau1[[COMPETENCES CRITIQUES ]],\"x\",Tableau1[[COMPETENCES CRITIQUES ]],\"X\")","v":0},0,0,{"$f":"IF($U26=0, 0, $T26+Données!$O$4)","v":0},31,{"$f":"COUNTIFS(Tableau1[Age],Y26, Tableau1[METIER EN TENSION],\"x\",Tableau1[METIER EN TENSION],\"X\")","v":0},0,0,{"$f":"IF($Z26=0, 0, $T26+Données!$O$4)","v":0}]
[null,null,null,null,null,null,null,null,null,null,null,null,null,null,null,null,null,null,null,32,{"$f":"COUNTIFS(Tableau1[Age],T27, Tableau1[[COMPETENCES CRITIQUES ]],\"x\",Tableau1[[COMPETENCES CRITIQUES ]],\"X\")","v":0},0,0,{"$f":"IF($U27=0, 0, $T27+Données!$O$4)","v":0},32,{"$f":"COUNTIFS(Tableau1[Age],Y27, Tableau1[METIER EN TENSION],\"x\",Tableau1[METIER EN TENSION],\"X\")","v":0},0,0,{"$f":"IF($Z27=0, 0, $T27+Données!$O$4)","v":0}]
[null,null,null,null,null,null,null,null,null,null,null,null,null,null,null,null,null,null,null,33,{"$f":"COUNTIFS(Tableau1[Age],T28, Tableau1[[COMPETENCES CRITIQUES ]],\"x\",Tableau1[[COMPETENCES CRITIQUES ]],\"X\")","v":0},0,0,{"$f":"IF($U28=0, 0, $T28+Données!$O$4)","v":0},33,{"$f":"COUNTIFS(Tableau1[Age],Y28, Tableau1[METIER EN TENSION],\"x\",Tableau1[METIER EN TENSION],\"X\")","v":0},0,0,{"$f":"IF($Z28=0, 0, $T28+Données!$O$4)","v":0}]
[null,null,null,null,null,null,null,null,null,null,null,null,null,null,null,null,null,null,null,34,{"$f":"COUNTIFS(Tableau1[Age],T29, Tableau1[[COMPETENCES CRITIQUES ]],\"x\",Tableau1[[COMPETENCES CRITIQUES ]],\"X\")","v":0},0,0,{"$f":"IF($U29=0, 0, $T29+Données!$O$4)","v":0},34,{"$f":"COUNTIFS(Tableau1[Age],Y29, Tableau1[METIER EN TENSION],\"x\",Tableau1[METIER EN TENSION],\"X\")","v":0},0,0,{"$f":"IF($Z29=0, 0, $T29+Données!$O$4)","v":0}]
[null,null,null,null,null,null,null,null,null,null,null,null,null,null,null,null,null,null,null,35,{"$f":"COUNTIFS(Tableau1[Age],T30, Tableau1[[COMPETENCES CRITIQUES ]],\"x\",Tableau1[[COMPETENCES CRITIQUES ]],\"X\")","v":0},0,0,{"$f":"IF($U30=0, 0, $T30+Données!$O$4)","v":0},35,{"$f":"COUNTIFS(Tableau1[Age],Y30, Tableau1[METIER EN TENSION],\"x\",Tableau1[METIER EN TENSION],\"X\")","v":1},36,37,{"$f":"IF($Z30=0, 0, $T30+Données!$O$4)","v":39}]
[null,null,null,null,null,null,null,null,null,null,null,null,null,null,null,null,null,null,null,36,{"$f":"COUNTIFS(Tableau1[Age],T31, Tableau1[[COMPETENCES CRITIQUES ]],\"x\",Tableau1[[COMPETENCES CRITIQUES ]],\"X\")","v":0},0,0,{"$f":"IF($U31=0, 0, $T31+Données!$O$4)","v":0},36,{"$f":"COUNTIFS(Tableau1[Age],Y31, Tableau1[METIER EN TENSION],\"x\",Tableau1[METIER EN TENSION],\"X\")","v":0},0,0,{"$f":"IF($Z31=0, 0, $T31+Données!$O$4)","v":0}]
[null,null,null,null,null,null,null,null,null,null,null,null,null,null,null,null,null,null,null,37,{"$f":"COUNTIFS(Tableau1[Age],T32, Tableau1[[COMPETENCES CRITIQUES ]],\"x\",Tableau1[[COMPETENCES CRITIQUES ]],\"X\")","v":0},0,0,{"$f":"IF($U32=0, 0, $T32+Données!$O$4)","v":0},37,{"$f":"COUNTIFS(Tableau1[Age],Y32, Tableau1[METIER EN TENSION],\"x\",Tableau1[METIER EN TENSION],\"X\")","v":0},{"$f":"IF($Z32=0, 0, $T32+1)","v":0},{"$f":"IF($Z32=0, 0, $T32+2)","v":0},{"$f":"IF($Z32=0, 0, $T32+Données!$O$4)","v":0}]
[null,null,null,null,null,null,null,null,null,null,null,null,null,null,null,null,null,null,null,38,{"$f":"COUNTIFS(Tableau1[Age],T33, Tableau1[[COMPETENCES CRITIQUES ]],\"x\",Tableau1[[COMPETENCES CRITIQUES ]],\"X\")","v":0},0,{"$f":"IF($U33=0, 0, $T33+2)","v":0},{"$f":"IF($U33=0, 0, $T33+Données!$O$4)","v":0},38,{"$f":"COUNTIFS(Tableau1[Age],Y33, Tableau1[METIER EN TENSION],\"x\",Tableau1[METIER EN TENSION],\"X\")","v":0},0,0,{"$f":"IF($Z33=0, 0, $T33+Données!$O$4)","v":0}]
[null,null,null,null,null,null,null,null,null,null,null,null,null,null,null,null,null,null,null,39,{"$f":"COUNTIFS(Tableau1[Age],T34, Tableau1[[COMPETENCES CRITIQUES ]],\"x\",Tableau1[[COMPETENCES CRITIQUES ]],\"X\")","v":0},0,0,{"$f":"IF($U34=0, 0, $T34+Données!$O$4)","v":0},39,{"$f":"COUNTIFS(Tableau1[Age],Y34, Tableau1[METIER EN TENSION],\"x\",Tableau1[METIER EN TENSION],\"X\")","v":0},0,0,{"$f":"IF($Z34=0, 0, $T34+Données!$O$4)","v":0}]
[null,null,null,null,null,null,null,null,null,null,null,null,null,null,null,null,null,null,null,40,{"$f":"COUNTIFS(Tableau1[Age],T35, Tableau1[[COMPETENCES CRITIQUES ]],\"x\",Tableau1[[COMPETENCES CRITIQUES ]],\"X\")","v":0},0,0,{"$f":"IF($U35=0, 0, $T35+Données!$O$4)","v":0},40,{"$f":"COUNTIFS(Tableau1[Age],Y35, Tableau1[METIER EN TENSION],\"x\",Tableau1[METIER EN TENSION],\"X\")","v":0},0,0,{"$f":"IF($Z35=0, 0, $T35+Données!$O$4)","v":0}]
[null,null,null,null,null,null,null,null,null,null,null,null,null,null,null,null,null,null,null,42,{"$f":"COUNTIFS(Tableau1[Age],T36, Tableau1[[COMPETENCES CRITIQUES ]],\"x\",Tableau1[[COMPETENCES CRITIQUES ]],\"X\")","v":1},43,44,{"$f":"IF($U36=0, 0, $T36+Données!$O$4)","v":46},42,{"$f":"COUNTIFS(Tableau1[Age],Y36, Tableau1[METIER EN TENSION],\"x\",Tableau1[METIER EN TENSION],\"X\")","v":2},43,44,{"$f":"IF($Z36=0, 0, $T36+Données!$O$4)","v":46}]
[null,null,null,null,null,null,null,null,null,null,null,null,null,null,null,null,null,null,null,43,{"$f":"COUNTIFS(Tableau1[Age],T37, Tableau1[[COMPETENCES CRITIQUES ]],\"x\",Tableau1[[COMPETENCES CRITIQUES ]],\"X\")","v":0},0,0,{"$f":"IF($U37=0, 0, $T37+Données!$O$4)","v":0},43,{"$f":"COUNTIFS(Tableau1[Age],Y37, Tableau1[METIER EN TENSION],\"x\",Tableau1[METIER EN TENSION],\"X\")","v":0},0,0,{"$f":"IF($Z37=0, 0, $T37+Données!$O$4)","v":0}]
[null,null,null,null,null,null,null,null,null,null,null,null,null,null,null,null,null,null,null,44,{"$f":"COUNTIFS(Tableau1[Age],T38, Tableau1[[COMPETENCES CRITIQUES ]],\"x\",Tableau1[[COMPETENCES CRITIQUES ]],\"X\")","v":0},0,0,{"$f":"IF($U38=0, 0, $T38+Données!$O$4)","v":0},44,{"$f":"COUNTIFS(Tableau1[Age],Y38, Tableau1[METIER EN TENSION],\"x\",Tableau1[METIER EN TENSION],\"X\")","v":0},0,0,{"$f":"IF($Z38=0, 0, $T38+Données!$O$4)","v":0}]
[null,null,null,null,null,null,null,null,null,null,null,null,null,null,null,null,null,null,null,45,{"$f":"COUNTIFS(Tableau1[Age],T39, Tableau1[[COMPETENCES CRITIQUES ]],\"x\",Tableau1[[COMPETENCES CRITIQUES ]],\"X\")","v":0},0,0,{"$f":"IF($U39=0, 0, $T39+Données!$O$4)","v":0},45,{"$f":"COUNTIFS(Tableau1[Age],Y39, Tableau1[METIER EN TENSION],\"x\",Tableau1[METIER EN TENSION],\"X\")","v":0},0,0,{"$f":"IF($Z39=0, 0, $T39+Données!$O$4)","v":0}]
[null,null,null,null,null,null,null,null,null,null,null,null,null,null,null,null,null,null,null,46,{"$f":"COUNTIFS(Tableau1[Age],T40, Tableau1[[COMPETENCES CRITIQUES ]],\"x\",Tableau1[[COMPETENCES CRITIQUES ]],\"X\")","v":0},0,0,{"$f":"IF($U40=0, 0, $T40+Données!$O$4)","v":0},46,{"$f":"COUNTIFS(Tableau1[Age],Y40, Tableau1[METIER EN TENSION],\"x\",Tableau1[METIER EN TENSION],\"X\")","v":0},0,0,{"$f":"IF($Z40=0, 0, $T40+Données!$O$4)","v":0}]
[null,null,null,null,null,null,null,null,null,null,null,null,null,null,null,null,null,null,null,47,{"$f":"COUNTIFS(Tableau1[Age],T41, Tableau1[[COMPETENCES CRITIQUES ]],\"x\",Tableau1[[COMPETENCES CRITIQUES ]],\"X\")","v":0},0,0,{"$f":"IF($U41=0, 0, $T41+Données!$O$4)","v":0},47,{"$f":"COUNTIFS(Tableau1[Age],Y41, Tableau1[METIER EN TENSION],\"x\",Tableau1[METIER EN TENSION],\"X\")","v":0},0,0,{"$f":"IF($Z41=0, 0, $T41+Données!$O$4)","v":0}]
[null,null,null,null,null,null,null,null,null,null,null,null,null,null,null,null,null,null,null,48,{"$f":"COUNTIFS(Tableau1[Age],T42, Tableau1[[COMPETENCES CRITIQUES ]],\"x\",Tableau1[[COMPETENCES CRITIQUES ]],\"X\")","v":0},0,0,{"$f":"IF($U42=0, 0, $T42+Données!$O$4)","v":0},48,{"$f":"COUNTIFS(Tableau1[Age],Y42, Tableau1[METIER EN TENSION],\"x\",Tableau1[METIER EN TENSION],\"X\")","v":0},0,0,{"$f":"IF($Z42=0, 0, $T42+Données!$O$4)","v":0}]
[null,null,null,null,null,null,null,null,null,null,null,null,null,null,null,null,null,null,null,49,{"$f":"COUNTIFS(Tableau1[Age],T43, Tableau1[[COMPETENCES CRITIQUES ]],\"x\",Tableau1[[COMPETENCES CRITIQUES ]],\"X\")","v":0},0,0,{"$f":"IF($U43=0, 0, $T43+Données!$O$4)","v":0},49,{"$f":"COUNTIFS(Tableau1[Age],Y43, Tableau1[METIER EN TENSION],\"x\",Tableau1[METIER EN TENSION],\"X\")","v":0},0,0,{"$f":"IF($Z43=0, 0, $T43+Données!$O$4)","v":0}]
[null,null,null,null,null,null,null,null,null,null,null,null,null,null,null,null,null,null,null,50,{"$f":"COUNTIFS(Tableau1[Age],T44, Tableau1[[COMPETENCES CRITIQUES ]],\"x\",Tableau1[[COMPETENCES CRITIQUES ]],\"X\")","v":1},51,52,{"$f":"IF($U44=0, 0, $T44+Données!$O$4)","v":54},50,{"$f":"COUNTIFS(Tableau1[Age],Y44, Tableau1[METIER EN TENSION],\"x\",Tableau1[METIER EN TENSION],\"X\")","v":0},0,0,{"$f":"IF($Z44=0, 0, $T44+Données!$O$4)","v":0}]
[null,null,null,null,null,null,null,null,null,null,null,null,null,null,null,null,null,null,null,51,{"$f":"COUNTIFS(Tableau1[Age],T45, Tableau1[[COMPETENCES CRITIQUES ]],\"x\",Tableau1[[COMPETENCES CRITIQUES ]],\"X\")","v":0},0,0,{"$f":"IF($U45=0, 0, $T45+Données!$O$4)","v":0},51,{"$f":"COUNTIFS(Tableau1[Age],Y45, Tableau1[METIER EN TENSION],\"x\",Tableau1[METIER EN TENSION],\"X\")","v":0},0,0,{"$f":"IF($Z45=0, 0, $T45+Données!$O$4)","v":0}]
[null,null,null,null,null,null,null,null,null,null,null,null,null,null,null,null,null,null,null,52,{"$f":"COUNTIFS(Tableau1[Age],T46, Tableau1[[COMPETENCES CRITIQUES ]],\"x\",Tableau1[[COMPETENCES CRITIQUES ]],\"X\")","v":0},0,0,{"$f":"IF($U46=0, 0, $T46+Données!$O$4)","v":0},52,{"$f":"COUNTIFS(Tableau1[Age],Y46, Tableau1[METIER EN TENSION],\"x\",Tableau1[METIER EN TENSION],\"X\")","v":0},0,0,{"$f":"IF($Z46=0, 0, $T46+Données!$O$4)","v":0}]
[null,null,null,null,null,null,null,null,null,null,null,null,null,null,null,null,null,null,null,53,{"$f":"COUNTIFS(Tableau1[Age],T47, Tableau1[[COMPETENCES CRITIQUES ]],\"x\",Tableau1[[COMPETENCES CRITIQUES ]],\"X\")","v":0},0,0,{"$f":"IF($U47=0, 0, $T47+Données!$O$4)","v":0},53,{"$f":"COUNTIFS(Tableau1[Age],Y47, Tableau1[METIER EN TENSION],\"x\",Tableau1[METIER EN TENSION],\"X\")","v":0},0,0,{"$f":"IF($Z47=0, 0, $T47+Données!$O$4)","v":0}]
[null,null,null,null,null,null,null,null,null,null,null,null,null,null,null,null,null,null,null,54,{"$f":"COUNTIFS(Tableau1[Age],T48, Tableau1[[COMPETENCES CRITIQUES ]],\"x\",Tableau1[[COMPETENCES CRITIQUES ]],\"X\")","v":0},0,0,{"$f":"IF($U48=0, 0, $T48+Données!$O$4)","v":0},54,{"$f":"COUNTIFS(Tableau1[Age],Y48, Tableau1[METIER EN TENSION],\"x\",Tableau1[METIER EN TENSION],\"X\")","v":0},0,0,{"$f":"IF($Z48=0, 0, $T48+Données!$O$4)","v":0}]
[null,null,null,null,null,null,null,null,null,null,null,null,null,null,null,null,null,null,null,55,{"$f":"COUNTIFS(Tableau1[Age],T49, Tableau1[[COMPETENCES CRITIQUES ]],\"x\",Tableau1[[COMPETENCES CRITIQUES ]],\"X\")","v":1},56,{"$f":"IF($U49=0, 0, $T49+2)","v":57},{"$f":"IF($U49=0, 0, $T49+Données!$O$4)","v":59},55,{"$f":"COUNTIFS(Tableau1[Age],Y49, Tableau1[METIER EN TENSION],\"x\",Tableau1[METIER EN TENSION],\"X\")","v":0},0,0,{"$f":"IF($Z49=0, 0, $T49+Données!$O$4)","v":0}]
[null,null,null,null,null,null,null,null,null,null,null,null,null,null,null,null,null,null,null,56,{"$f":"COUNTIFS(Tableau1[Age],T50, Tableau1[[COMPETENCES CRITIQUES ]],\"x\",Tableau1[[COMPETENCES CRITIQUES ]],\"X\")","v":0},0,0,{"$f":"IF($U50=0, 0, $T50+Données!$O$4)","v":0},56,{"$f":"COUNTIFS(Tableau1[Age],Y50, Tableau1[METIER EN TENSION],\"x\",Tableau1[METIER EN TENSION],\"X\")","v":0},0,0,{"$f":"IF($Z50=0, 0, $T50+Données!$O$4)","v":0}]
[null,null,null,null,null,null,null,null,null,null,null,null,null,null,null,null,null,null,null,57,{"$f":"COUNTIFS(Tableau1[Age],T51, Tableau1[[COMPETENCES CRITIQUES ]],\"x\",Tableau1[[COMPETENCES CRITIQUES ]],\"X\")","v":0},0,0,{"$f":"IF($U51=0, 0, $T51+Données!$O$4)","v":0},57,{"$f":"COUNTIFS(Tableau1[Age],Y51, Tableau1[METIER EN TENSION],\"x\",Tableau1[METIER EN TENSION],\"X\")","v":0},0,0,{"$f":"IF($Z51=0, 0, $T51+Données!$O$4)","v":0}]
[null,null,null,null,null,null,null,null,null,null,null,null,null,null,null,null,null,null,null,58,{"$f":"COUNTIFS(Tableau1[Age],T52, Tableau1[[COMPETENCES CRITIQUES ]],\"x\",Tableau1[[COMPETENCES CRITIQUES ]],\"X\")","v":0},0,0,{"$f":"IF($U52=0, 0, $T52+Données!$O$4)","v":0},58,{"$f":"COUNTIFS(Tableau1[Age],Y52, Tableau1[METIER EN TENSION],\"x\",Tableau1[METIER EN TENSION],\"X\")","v":1},59,60,{"$f":"IF($Z52=0, 0, $T52+Données!$O$4)","v":62}]
[null,null,null,null,null,null,null,null,null,null,null,null,null,null,null,null,null,null,null,59,{"$f":"COUNTIFS(Tableau1[Age],T53, Tableau1[[COMPETENCES CRITIQUES ]],\"x\",Tableau1[[COMPETENCES CRITIQUES ]],\"X\")","v":0},0,0,{"$f":"IF($U53=0, 0, $T53+Données!$O$4)","v":0},59,{"$f":"COUNTIFS(Tableau1[Age],Y53, Tableau1[METIER EN TENSION],\"x\",Tableau1[METIER EN TENSION],\"X\")","v":0},0,0,{"$f":"IF($Z53=0, 0, $T53+Données!$O$4)","v":0}]
[null,null,null,null,null,null,null,null,null,null,null,null,null,null,null,null,null,null,null,60,{"$f":"COUNTIFS(Tableau1[Age],T54, Tableau1[[COMPETENCES CRITIQUES ]],\"x\",Tableau1[[COMPETENCES CRITIQUES ]],\"X\")","v":0},{"$f":"IF($U54=0, 0, T54+1)","v":0},0,{"$f":"IF($U54=0, 0, $T54+Données!$O$4)","v":0},60,{"$f":"COUNTIFS(Tableau1[Age],Y54, Tableau1[METIER EN TENSION],\"x\",Tableau1[METIER EN TENSION],\"X\")","v":0},0,0,{"$f":"IF($Z54=0, 0, $T54+Données!$O$4)","v":0}]
[null,null,null,null,null,null,null,null,null,null,null,null,null,null,null,null,null,null,null,61,{"$f":"COUNTIFS(Tableau1[Age],T55, Tableau1[[COMPETENCES CRITIQUES ]],\"x\",Tableau1[[COMPETENCES CRITIQUES ]],\"X\")","v":0},0,0,{"$f":"IF($U55=0, 0, $T55+Données!$O$4)","v":0},61,{"$f":"COUNTIFS(Tableau1[Age],Y55, Tableau1[METIER EN TENSION],\"x\",Tableau1[METIER EN TENSION],\"X\")","v":0},0,0,{"$f":"IF($Z55=0, 0, $T55+Données!$O$4)","v":0}]
[null,null,null,null,null,null,null,null,null,null,null,null,null,null,null,null,null,null,null,62,{"$f":"COUNTIFS(Tableau1[Age],T56, Tableau1[[COMPETENCES CRITIQUES ]],\"x\",Tableau1[[COMPETENCES CRITIQUES ]],\"X\")","v":0},0,0,{"$f":"IF($U56=0, 0, $T56+Données!$O$4)","v":0},62,{"$f":"COUNTIFS(Tableau1[Age],Y56, Tableau1[METIER EN TENSION],\"x\",Tableau1[METIER EN TENSION],\"X\")","v":0},0,0,{"$f":"IF($Z56=0, 0, $T56+Données!$O$4)","v":0}]
[null,null,null,null,null,null,null,null,null,null,null,null,null,null,null,null,null,null,null,63,{"$f":"COUNTIFS(Tableau1[Age],T57, Tableau1[[COMPETENCES CRITIQUES ]],\"x\",Tableau1[[COMPETENCES CRITIQUES ]],\"X\")","v":0},0,0,{"$f":"IF($U57=0, 0, $T57+Données!$O$4)","v":0},63,{"$f":"COUNTIFS(Tableau1[Age],Y57, Tableau1[METIER EN TENSION],\"x\",Tableau1[METIER EN TENSION],\"X\")","v":0},0,0,{"$f":"IF($Z57=0, 0, $T57+Données!$O$4)","v":0}]
[null,null,null,null,null,null,null,null,null,null,null,null,null,null,null,null,null,null,null,64,{"$f":"COUNTIFS(Tableau1[Age],T58, Tableau1[[COMPETENCES CRITIQUES ]],\"x\",Tableau1[[COMPETENCES CRITIQUES ]],\"X\")","v":0},0,0,{"$f":"IF($U58=0, 0, $T58+Données!$O$4)","v":0},64,{"$f":"COUNTIFS(Tableau1[Age],Y58, Tableau1[METIER EN TENSION],\"x\",Tableau1[METIER EN TENSION],\"X\")","v":0},0,0,{"$f":"IF($Z58=0, 0, $T58+Données!$O$4)","v":0}]
[null,null,null,null,null,null,null,null,null,null,null,null,null,null,null,null,null,null,null,65,{"$f":"COUNTIFS(Tableau1[Age],T59, Tableau1[[COMPETENCES CRITIQUES ]],\"x\",Tableau1[[COMPETENCES CRITIQUES ]],\"X\")","v":0},0,0,{"$f":"IF($U59=0, 0, $T59+Données!$O$4)","v":0},65,{"$f":"COUNTIFS(Tableau1[Age],Y59, Tableau1[METIER EN TENSION],\"x\",Tableau1[METIER EN TENSION],\"X\")","v":0},0,0,{"$f":"IF($Z59=0, 0, $T59+Données!$O$4)","v":0}]
[null,null,null,null,null,null,null,null,null,null,null,null,null,null,null,null,null,null,null,66,{"$f":"COUNTIFS(Tableau1[Age],T60, Tableau1[[COMPETENCES CRITIQUES ]],\"x\",Tableau1[[COMPETENCES CRITIQUES ]],\"X\")","v":0},{"$f":"IF($U60=0, 0, T60+1)","v":0},0,{"$f":"IF($U60=0, 0, $T60+Données!$O$4)","v":0},66,{"$f":"COUNTIFS(Tableau1[Age],Y60, Tableau1[METIER EN TENSION],\"x\",Tableau1[METIER EN TENSION],\"X\")","v":0},0,0,{"$f":"IF($Z60=0, 0, $T60+Données!$O$4)","v":0}]
[null,null,null,null,null,null,null,null,null,null,null,null,null,null,null,null,null,null,null,67,{"$f":"COUNTIFS(Tableau1[Age],T61, Tableau1[[COMPETENCES CRITIQUES ]],\"x\",Tableau1[[COMPETENCES CRITIQUES ]],\"X\")","v":0},0,0,{"$f":"IF($U61=0, 0, $T61+Données!$O$4)","v":0},67,{"$f":"COUNTIFS(Tableau1[Age],Y61, Tableau1[METIER EN TENSION],\"x\",Tableau1[METIER EN TENSION],\"X\")","v":0},0,0,{"$f":"IF($Z61=0, 0, $T61+Données!$O$4)","v":0}]
[null,null,null,null,null,null,null,null,null,null,null,null,null,null,null,null,null,null,null,68,{"$f":"COUNTIFS(Tableau1[Age],T62, Tableau1[[COMPETENCES CRITIQUES ]],\"x\",Tableau1[[COMPETENCES CRITIQUES ]],\"X\")","v":0},0,0,{"$f":"IF($U62=0, 0, $T62+Données!$O$4)","v":0},68,{"$f":"COUNTIFS(Tableau1[Age],Y62, Tableau1[METIER EN TENSION],\"x\",Tableau1[METIER EN TENSION],\"X\")","v":0},0,0,{"$f":"IF($Z62=0, 0, $T62+Données!$O$4)","v":0}]
[null,null,null,null,null,null,null,null,null,null,null,null,null,null,null,null,null,null,null,69,{"$f":"COUNTIFS(Tableau1[Age],T63, Tableau1[[COMPETENCES CRITIQUES ]],\"x\",Tableau1[[COMPETENCES CRITIQUES ]],\"X\")","v":0},0,0,{"$f":"IF($U63=0, 0, $T63+Données!$O$4)","v":0},69,{"$f":"COUNTIFS(Tableau1[Age],Y63, Tableau1[METIER EN TENSION],\"x\",Tableau1[METIER EN TENSION],\"X\")","v":0},0,0,{"$f":"IF($Z63=0, 0, $T63+Données!$O$4)","v":0}]
[null,null,null,null,null,null,null,null,null,null,null,null,null,null,null,null,null,null,null,70,{"$f":"COUNTIFS(Tableau1[Age],T64, Tableau1[[COMPETENCES CRITIQUES ]],\"x\",Tableau1[[COMPETENCES CRITIQUES ]],\"X\")","v":0},0,0,{"$f":"IF($U64=0, 0, $T64+Données!$O$4)","v":0},70,{"$f":"COUNTIFS(Tableau1[Age],Y64, Tableau1[METIER EN TENSION],\"x\",Tableau1[METIER EN TENSION],\"X\")","v":0},0,0,{"$f":"IF($Z64=0, 0, $T64+Données!$O$4)","v":0}]
[null,null,null,null,null,null,null,null,null,null,null,null,null,null,null,null,null,null,null,71,{"$f":"COUNTIFS(Tableau1[Age],T65, Tableau1[[COMPETENCES CRITIQUES ]],\"x\",Tableau1[[COMPETENCES CRITIQUES ]],\"X\")","v":0},0,0,{"$f":"IF($U65=0, 0, $T65+Données!$O$4)","v":0},71,{"$f":"COUNTIFS(Tableau1[Age],Y65, Tableau1[METIER EN TENSION],\"x\",Tableau1[METIER EN TENSION],\"X\")","v":0},0,0,{"$f":"IF($Z65=0, 0, $T65+Données!$O$4)","v":0}]
[null,null,null,null,null,null,null,null,null,null,null,null,null,null,null,null,null,null,null,72,{"$f":"COUNTIFS(Tableau1[Age],T66, Tableau1[[COMPETENCES CRITIQUES ]],\"x\",Tableau1[[COMPETENCES CRITIQUES ]],\"X\")","v":0},0,0,{"$f":"IF($U66=0, 0, $T66+Données!$O$4)","v":0},72,{"$f":"COUNTIFS(Tableau1[Age],Y66, Tableau1[METIER EN TENSION],\"x\",Tableau1[METIER EN TENSION],\"X\")","v":0},0,0,{"$f":"IF($Z66=0, 0, $T66+Données!$O$4)","v":0}]
[null,null,null,null,null,null,null,null,null,null,null,null,null,null,null,null,null,null,null,73,{"$f":"COUNTIFS(Tableau1[Age],T67, Tableau1[[COMPETENCES CRITIQUES ]],\"x\",Tableau1[[COMPETENCES CRITIQUES ]],\"X\")","v":0},{"$f":"IF($U67=0, 0, T67+1)","v":0},0,{"$f":"IF($U67=0, 0, $T67+Données!$O$4)","v":0},73,{"$f":"COUNTIFS(Tableau1[Age],Y67, Tableau1[METIER EN TENSION],\"x\",Tableau1[METIER EN TENSION],\"X\")","v":0},0,0,{"$f":"IF($Z67=0, 0, $T67+Données!$O$4)","v":0}]
[null,null,null,null,null,null,null,null,null,null,null,null,null,null,null,null,null,null,null,74,{"$f":"COUNTIFS(Tableau1[Age],T68, Tableau1[[COMPETENCES CRITIQUES ]],\"x\",Tableau1[[COMPETENCES CRITIQUES ]],\"X\")","v":0},0,0,{"$f":"IF($U68=0, 0, $T68+Données!$O$4)","v":0},74,{"$f":"COUNTIFS(Tableau1[Age],Y68, Tableau1[METIER EN TENSION],\"x\",Tableau1[METIER EN TENSION],\"X\")","v":0},0,0,{"$f":"IF($Z68=0, 0, $T68+Données!$O$4)","v":0}]
[null,null,null,null,null,null,null,null,null,null,null,null,null,null,null,null,null,null,null,75,{"$f":"COUNTIFS(Tableau1[Age],T69, Tableau1[[COMPETENCES CRITIQUES ]],\"x\",Tableau1[[COMPETENCES CRITIQUES ]],\"X\")","v":0},0,0,{"$f":"IF($U69=0, 0, $T69+Données!$O$4)","v":0},75,{"$f":"COUNTIFS(Tableau1[Age],Y69, Tableau1[METIER EN TENSION],\"x\",Tableau1[METIER EN TENSION],\"X\")","v":0},0,0,{"$f":"IF($Z69=0, 0, $T69+Données!$O$4)","v":0}]

{"sheet":"Population et santé","index":8,"n_rows":36,"n_cols":14,"rows_kept":36,"cut":false,"hidden":false,"merged":[]}
[]
[]
[]
[]
[]
[]
[]
[]
[]
[]
[]
[]
[]
[]
[]
[]
[]
[]
[]
[]
[]
[]
[]
["METIER","(Tous)",null,null,"METIER","(Tous)",null,null,"METIER","(Tous)",null,null,"METIER","(Tous)"]
[]
["Étiquettes de lignes","Nombre de ACCIDENT DE TRAVAIL DANS L'ANNEE ",null,null,"Étiquettes de lignes","Nombre de ARRET DE TRAVAIL DANS L'ANNEE",null,null,"Étiquettes de lignes","Nombre de ACCIDENT DE TRAVAIL DANS L'ANNEE ",null,null,"Étiquettes de lignes","Nombre de ARRET DE TRAVAIL DANS L'ANNEE"]
[35,0,null,null,35,1,null,null,2,0,null,null,2,1]
[42,0,null,null,42,0,null,null,5,0,null,null,5,0]
[47,0,null,null,47,0,null,null,9,0,null,null,9,0]
[48,0,null,null,48,0,null,null,10,0,null,null,10,0]
[50,0,null,null,50,0,null,null,18,0,null,null,18,0]
[55,0,null,null,55,0,null,null,28,0,null,null,28,0]
[58,0,null,null,58,0,null,null,30,0,null,null,30,0]
["Total général",0,null,null,"Total général",1,null,null,null,0,null,null,null,0]
[null,null,null,null,null,null,null,null,"(vide)",0,null,null,"(vide)",0]
[null,null,null,null,null,null,null,null,"Total général",0,null,null,"Total général",1]